Service Area,Service Division,Expense Type,Expense Code,Detailed Expense Type,Payment Date,Transaction Number,Amount Exc VAT,Supplier Name
Resources BK0010,Legal & Democratic Services,Supplies and Services,384954,Miscellaneous Expenses,01/12/2023,4209230-ANMF-HMC-1123,"1,050.00",REDACTED - PAYMENT TO INDIVIDUAL
Neighbourhoods and Climate Change,Highways,Supplies and Services,304221,Equipment and Materials,01/12/2023,4209309-2101,"15,430.00",REDACTED - PAYMENT TO INDIVIDUAL
Regeneration Economy and Growth,Culture Sport and Tourism,Third Party Payments,430131,Rendered by Private Contractors,01/12/2023,4209344-2023031,"2,730.00",REDACTED - PAYMENT TO INDIVIDUAL
Regeneration Economy and Growth,Culture Sport and Tourism,Third Party Payments,430131,Rendered by Private Contractors,01/12/2023,4209344-2023032,576.00,REDACTED - PAYMENT TO INDIVIDUAL
Regeneration Economy and Growth,Culture Sport and Tourism,Supplies and Services,384199,Miscellaneous Expenses,01/12/2023,4209437-SC0587,636.00,REDACTED - PAYMENT TO INDIVIDUAL
Children and Young Peoples Services,Head of Education and Skills,Supplies and Services,384199,Miscellaneous Expenses,01/12/2023,4209443-STEPSINTOEET,"3,696.00",REDACTED - PAYMENT TO INDIVIDUAL
Children and Young Peoples Services,Head of Education and Skills,Transport,230008,Contract Hire,01/12/2023,4209464-0002517OCT23,"4,219.20",REDACTED - PAYMENT TO INDIVIDUAL
Children and Young Peoples Services,Head of Education and Skills,Transport,230008,Contract Hire,01/12/2023,4209464-2514OCT23,"3,946.00",REDACTED - PAYMENT TO INDIVIDUAL
Children and Young Peoples Services,Head of Education and Skills,Transport,230006,Contract Hire,01/12/2023,4209464-2515OCT23,"1,993.68",REDACTED - PAYMENT TO INDIVIDUAL
Children and Young Peoples Services,Head of Education and Skills,Transport,230008,Contract Hire,01/12/2023,4209464-2519OCT23,"4,129.60",REDACTED - PAYMENT TO INDIVIDUAL
Children and Young Peoples Services,Head of Education and Skills,Transport,230006,Contract Hire,01/12/2023,4209464-2520OCT23,"3,120.00",REDACTED - PAYMENT TO INDIVIDUAL
Regeneration Economy and Growth,Corporate Property and Land,Third Party Payments,430100,Rendered by Private Contractors,01/12/2023,4209135-9585,720.00,A19 DRILLING LTD.
Regeneration Economy and Growth,Culture Sport and Tourism,Supplies and Services,304259,Equipment and Materials,01/12/2023,4209137-116411576,731.66,AC ENTERTAINMENT TECHNOLOGIES.
Regeneration Economy and Growth,Corporate Property and Land,Third Party Payments,430100,Rendered by Private Contractors,01/12/2023,4209139-53816256,"4,762.08",ADT FIRE & SECURITY PLC.
Children and Young Peoples Services,Head of Childrens Social Care,Supplies and Services,338044,Services,01/12/2023,4209140-ACS103843,"2,227.20",ADVANCED CHILD CARE ASSESSMENTS LTD.
Neighbourhoods and Climate Change,Highways,Supplies and Services,304221,Equipment and Materials,01/12/2023,4209143-35320644,638.29,AGGREGATE INDUSTRIES UK LTD.
Regeneration Economy and Growth,Corporate Property and Land,Supplies and Services,342053,Computers and Communications,01/12/2023,4209152-CI-0000050558,557.45,ARGUS SOFTWARE (UK) LTD.
Regeneration Economy and Growth,Corporate Property and Land,Third Party Payments,430100,Rendered by Private Contractors,01/12/2023,4209153-INV-0133,"41,585.34",ARMIGER TIMBER FRAME LTD.
Neighbourhoods and Climate Change,Environmental Services,Supplies and Services,304999,Equipment and Materials,01/12/2023,4209154-927462,"1,093.60",ARNDALE GROUP OF COMPANIES.
Adult and Health Services,Head of Adults,Transport,230005,Contract Hire,01/12/2023,4209156-DCC18OCT23,"2,328.60",ATLAS TAXIS MANAGEMENT LTD.
Neighbourhoods and Climate Change,Highways,Construction work A908,908105,Construction work,01/12/2023,4209158-400178468,"1,644,526.06",BAM NUTTALL LTD.
Adult and Health Services,Head of Adults,Supplies and Services,384616,Miscellaneous Expenses,01/12/2023,4209162-8/2324/DEALO1,847.88,BERNICIA GROUP LTD.*
Regeneration Economy and Growth,Culture Sport and Tourism,Supplies and Services,384700,Miscellaneous Expenses,01/12/2023,4209165-NEI-HCL-11-2023-007,"8,000.00",BISHOP AUCKLAND TOWN COUNCIL.
Neighbourhoods and Climate Change,Partnerships & Community Engagement Div.,Cap Exp on Grants & Other Financial Assistance (REFCUS),918004,Contributions to other bodies 918004,01/12/2023,4209166-VOUCHER23NB-SPEN017,"2,260.00",BISHOP HOGARTH CATHOLIC EDUCATION TRUST.
Regeneration Economy and Growth,Culture Sport and Tourism,Supplies and Services,384199,Miscellaneous Expenses,01/12/2023,4209168-23073,"3,140.50",BLUEGRASS RESEARCH LTD.
Regeneration Economy and Growth,Culture Sport and Tourism,Premises,145023,Cleaning and Domestic Supplies,01/12/2023,4209173-22SI2295394,783.60,BRENNTAG UK LTD.
Neighbourhoods and Climate Change,Partnerships & Community Engagement Div.,Cap Exp on Grants & Other Financial Assistance (REFCUS),918004,Contributions to other bodies 918004,01/12/2023,4209178-VOUCHER23NB-CHES029,"2,600.00",BULLION COMMUNITY RESOURCE CENTRE.
Children and Young Peoples Services,Head of Childrens Social Care,Supplies and Services,364359,Grants to Voluntary Organisations,01/12/2023,4209181-0000174301,572.15,BUSY BEES (DURHAM) LTD.
Children and Young Peoples Services,Head of Education and Skills,Premises,108099,Service Repairs and Maintenance,01/12/2023,4209189-12088,605.00,CATHEDRAL LOCK & SAFE SERVICES LTD.
Regeneration Economy and Growth,Corporate Property and Land,Premises,106082,Centrally Controlled Rep and Maint,01/12/2023,4209189-12092,732.33,CATHEDRAL LOCK & SAFE SERVICES LTD.
Regeneration Economy and Growth,Business Durham,Premises,106082,Centrally Controlled Rep and Maint,01/12/2023,4209189-12104,"1,310.57",CATHEDRAL LOCK & SAFE SERVICES LTD.
Children and Young Peoples Services,Head of Education and Skills,Supplies and Services,384956,Miscellaneous Expenses,01/12/2023,4209192-42610A,"8,060.00",CHARANGA LTD.
Neighbourhoods and Climate Change,Environmental Services,Supplies and Services,338099,Services,01/12/2023,4209193-337328,503.88,CHAS LONG & SON (AGGREGATES) LTD.
Neighbourhoods and Climate Change,Partnerships & Community Engagement Div.,Supplies and Services,384086,Miscellaneous Expenses,01/12/2023,4209196-VOUCHERCAIJ03-23,500.00,CHILTON CATHOLIC CLUB.
Regeneration Economy and Growth,Culture Sport and Tourism,Supplies and Services,304259,Equipment and Materials,01/12/2023,4209199-CN30317119,"1,116.42",CITRON HYGIENE UK LTD.
Neighbourhoods and Climate Change,Environmental Services,Supplies and Services,304259,Equipment and Materials,01/12/2023,4209201-0000149378,"3,015.00",CLEVELAND CONTAINERS LTD.
Neighbourhoods and Climate Change,Environmental Services,Third Party Payments,460305,Contract Payments,01/12/2023,4209205-7587,"4,908.00",CO-WHEELS CAR CLUB CIC.
Neighbourhoods and Climate Change,Environmental Services,Third Party Payments,460305,Contract Payments,01/12/2023,4209205-7638,"4,908.00",CO-WHEELS CAR CLUB CIC.
Children and Young Peoples Services,Head of Education and Skills,Transport,230006,Contract Hire,01/12/2023,4209217-116690-116691,"1,597.81",CROFT BUSINESS SERVICES LTD T/A CROFT TRAVEL.
Children and Young Peoples Services,Head of Childrens Social Care,Transport,230005,Contract Hire,01/12/2023,4209217-116777,662.20,CROFT BUSINESS SERVICES LTD T/A CROFT TRAVEL.
Children and Young Peoples Services,Head of Childrens Social Care,Transport,230005,Contract Hire,01/12/2023,4209217-116778,927.08,CROFT BUSINESS SERVICES LTD T/A CROFT TRAVEL.
Children and Young Peoples Services,Head of Childrens Social Care,Transport,230005,Contract Hire,01/12/2023,4209217-116822,927.08,CROFT BUSINESS SERVICES LTD T/A CROFT TRAVEL.
Children and Young Peoples Services,Head of Childrens Social Care,Transport,230005,Contract Hire,01/12/2023,4209217-116858,624.59,CROFT BUSINESS SERVICES LTD T/A CROFT TRAVEL.
Children and Young Peoples Services,Head of Childrens Social Care,Transport,230005,Contract Hire,01/12/2023,4209217-116860,662.20,CROFT BUSINESS SERVICES LTD T/A CROFT TRAVEL.
Children and Young Peoples Services,Head of Childrens Social Care,Transport,230005,Contract Hire,01/12/2023,4209217-116861,927.08,CROFT BUSINESS SERVICES LTD T/A CROFT TRAVEL.
Neighbourhoods and Climate Change,Environmental Services,Transport,215013,Running Costs of Vehicles,01/12/2023,4209225-D111149,505.00,DENNIS EAGLE LTD.
Neighbourhoods and Climate Change,Environmental Services,Transport,210057,Repair and Maintenance of Vehicles,01/12/2023,4209225-DE11633199,"1,495.25",DENNIS EAGLE LTD.
Resources BK0010,Legal & Democratic Services,Supplies and Services,338042,Services,01/12/2023,4209226-388981/INVEMC634,775.00,DERE STREET BARRISTERS.
Children and Young Peoples Services,Head of Childrens Social Care,Transport,230005,Contract Hire,01/12/2023,4209227-DH2345A,582.00,DH2 CABS.
Children and Young Peoples Services,Head of Childrens Social Care,Transport,230005,Contract Hire,01/12/2023,4209227-DH2345E,500.00,DH2 CABS.
Children and Young Peoples Services,Head of Childrens Social Care,Transport,230005,Contract Hire,01/12/2023,4209227-DH2345F,582.00,DH2 CABS.
Children and Young Peoples Services,Head of Childrens Social Care,Transport,230005,Contract Hire,01/12/2023,4209227-DH2345O,"1,000.00",DH2 CABS.
Children and Young Peoples Services,Head of Childrens Social Care,Transport,230005,Contract Hire,01/12/2023,4209227-DH2345P,540.00,DH2 CABS.
Children and Young Peoples Services,Head of Childrens Social Care,Transport,230005,Contract Hire,01/12/2023,4209227-DH2345Q,696.00,DH2 CABS.
Children and Young Peoples Services,Head of Childrens Social Care,Transport,230005,Contract Hire,01/12/2023,4209227-DH2345Z,700.00,DH2 CABS.
Children and Young Peoples Services,Head of Childrens Social Care,Transport,230005,Contract Hire,01/12/2023,4209227-DH2345ZE,600.00,DH2 CABS.
Children and Young Peoples Services,Head of Childrens Social Care,Transport,230005,Contract Hire,01/12/2023,4209227-DH2346A,555.00,DH2 CABS.
Children and Young Peoples Services,Head of Childrens Social Care,Transport,230005,Contract Hire,01/12/2023,4209227-DH2346F,500.00,DH2 CABS.
Children and Young Peoples Services,Head of Childrens Social Care,Transport,230005,Contract Hire,01/12/2023,4209227-DH2346G,660.00,DH2 CABS.
Children and Young Peoples Services,Head of Childrens Social Care,Transport,230005,Contract Hire,01/12/2023,4209227-DH2346N,700.00,DH2 CABS.
Children and Young Peoples Services,Head of Childrens Social Care,Transport,230005,Contract Hire,01/12/2023,4209227-DH2346Q,712.00,DH2 CABS.
Children and Young Peoples Services,Head of Childrens Social Care,Transport,230005,Contract Hire,01/12/2023,4209227-DH2346U,500.00,DH2 CABS.
Children and Young Peoples Services,Head of Childrens Social Care,Transport,230005,Contract Hire,01/12/2023,4209227-DH2346ZA,504.00,DH2 CABS.
Children and Young Peoples Services,Head of Childrens Social Care,Transport,230005,Contract Hire,01/12/2023,4209227-DH2346ZC,700.00,DH2 CABS.
Children and Young Peoples Services,Head of Childrens Social Care,Transport,230005,Contract Hire,01/12/2023,4209227-DH2346ZG,600.00,DH2 CABS.
Regeneration Economy and Growth,Corporate Property and Land,Supplies and Services,304221,Equipment and Materials,01/12/2023,4209242-059-327934,588.40,EDMUNDSON ELECTRICAL LTD.
Regeneration Economy and Growth,Corporate Property and Land,Supplies and Services,304221,Equipment and Materials,01/12/2023,4209242-059-327982,622.69,EDMUNDSON ELECTRICAL LTD.
Regeneration Economy and Growth,Corporate Property and Land,Supplies and Services,304221,Equipment and Materials,01/12/2023,4209242-059-327989,"1,084.02",EDMUNDSON ELECTRICAL LTD.
Regeneration Economy and Growth,Corporate Property and Land,Premises,108099,Service Repairs and Maintenance,01/12/2023,4209248-103595,"6,426.00",EIAT UK LTD (ELECTRICAL INSTALLATION & APPLIANCE TESTING UK).
Regeneration Economy and Growth,Corporate Property and Land,Premises,108099,Service Repairs and Maintenance,01/12/2023,4209248-103638,841.50,EIAT UK LTD (ELECTRICAL INSTALLATION & APPLIANCE TESTING UK).
Neighbourhoods and Climate Change,Environmental Services,Supplies and Services,304337,Equipment and Materials,01/12/2023,4209253-6944532,"1,794.00",ESE WORLD LTD.
Regeneration Economy and Growth,Transport and Contracted Services,Supplies and Services,338080,Services,01/12/2023,4209254-6657,"1,618.20",ESP SYSTEX LTD.
Adult and Health Services,Commissioning inc Supporting People,Third Party Payments,479102,Purchase of Care,01/12/2023,4209257-OCT23-0022,"12,500.00",FAMILY ACTION T/A PAC-UK LTD.
Regeneration Economy and Growth,Transport and Contracted Services,Third Party Payments,430106,Rendered by Private Contractors,01/12/2023,4209259-PPT4123-25/11/23,"2,260.00",FERRYHILL VILLAGE TRAVEL.
Neighbourhoods and Climate Change,Partnerships & Community Engagement Div.,Cap Exp on Grants & Other Financial Assistance (REFCUS),918004,Contributions to other bodies 918004,01/12/2023,4209260-VOUCHER23MTVF-EDUR0022NDINST,"21,374.00",FOCUS EASINGTON (CHARITY) LTD.
Neighbourhoods and Climate Change,Highways,Supplies and Services,304221,Equipment and Materials,01/12/2023,4209265-DCC051123,"24,782.38",GAP GROUP LTD.
Chief Executives Office,Communications Management,Supplies and Services,336005,Advertising E336,01/12/2023,4209266-20361,920.00,GARDINER RICHARDSON LTD.
Regeneration Economy and Growth,Transport and Contracted Services,Third Party Payments,430106,Rendered by Private Contractors,01/12/2023,4209268-SR17072023,"4,032.00",GATESHEAD CENTRAL TAXIS LTD.
Regeneration Economy and Growth,Transport and Contracted Services,Third Party Payments,430106,Rendered by Private Contractors,01/12/2023,4209268-SR17092023,"2,268.00",GATESHEAD CENTRAL TAXIS LTD.
Regeneration Economy and Growth,Corporate Property and Land,Third Party Payments,430100,Rendered by Private Contractors,01/12/2023,4209269-88558023,"9,113.75",GEZE UK LTD.
Regeneration Economy and Growth,Corporate Property and Land,Third Party Payments,430100,Rendered by Private Contractors,01/12/2023,4209269-88558026,"8,963.75",GEZE UK LTD.
Children and Young Peoples Services,Head of Education and Skills,Transport,235005,Public Transport,01/12/2023,4209273-83015,"460,560.00",GO GATESHEAD LTD.
Regeneration Economy and Growth,Transport and Contracted Services,Third Party Payments,430106,Rendered by Private Contractors,01/12/2023,4209273-83409,"242,389.34",GO GATESHEAD LTD.
Children and Young Peoples Services,Head of Education and Skills,Transport,235005,Public Transport,01/12/2023,4209273-83455,"40,280.00",GO GATESHEAD LTD.
Regeneration Economy and Growth,Transport and Contracted Services,Third Party Payments,430106,Rendered by Private Contractors,01/12/2023,4209273-83564,"131,066.30",GO GATESHEAD LTD.
Children and Young Peoples Services,Head of Childrens Social Care,Supplies and Services,338044,Services,01/12/2023,4209282-PIG_181206,"1,000.00",HARBOUR COUNSELLING.
Regeneration Economy and Growth,Corporate Property and Land,Premises,108099,Service Repairs and Maintenance,01/12/2023,4209284-68466,"9,238.70",HEALTHY BUILDINGS (IRELAND) T/A HBE.
Neighbourhoods and Climate Change,Environmental Services,Transport,210057,Repair and Maintenance of Vehicles,01/12/2023,4209286-10225,789.00,HILLCREST AUTO ELECTRICS.
Regeneration Economy and Growth,Corporate Property and Land,Premises,108099,Service Repairs and Maintenance,01/12/2023,4209295-90034272,614.82,INTEGRATED UTILITY SERVICES LTD.*
Neighbourhoods and Climate Change,Highways,Construction work A908,908105,Construction work,01/12/2023,4209298-28592,"2,297.19",JACK COUPE & SONS LTD T/A COUPE LINE.
Neighbourhoods and Climate Change,Highways,Supplies and Services,304221,Equipment and Materials,01/12/2023,4209310-0113/00053945,"1,200.50",JT DOVE LTD.
Regeneration Economy and Growth,Corporate Property and Land,Supplies and Services,304221,Equipment and Materials,01/12/2023,4209310-0213/01069406,727.07,JT DOVE LTD.
Regeneration Economy and Growth,Planning & Housing,Supplies and Services,338045,Services,01/12/2023,4209315-515895-08/11/2023,"2,000.00",KINGS CHAMBERS.
Children and Young Peoples Services,Head of Education and Skills,Transport,230012,Contract Hire,01/12/2023,4209316-3330/1,"1,200.00",KINGSWAY CABS LTD.
Neighbourhoods and Climate Change,Environmental Services,Supplies and Services,384199,Miscellaneous Expenses,01/12/2023,4209317-IN-003968,"3,000.00",KOGITAS (MCPC) LTD.
Regeneration Economy and Growth,Corporate Property and Land,Premises,150005,Apportioned Exps of Operational Blds,01/12/2023,4209320-ARINV/00583490,"4,995.00",LAMBERT SMITH HAMPTON.
Neighbourhoods and Climate Change,Environmental Services,Third Party Payments,430100,Rendered by Private Contractors,01/12/2023,4209327-154634,662.00,LIFTING & COOLING LTD.
Regeneration Economy and Growth,Corporate Property and Land,Premises,150005,Apportioned Exps of Operational Blds,01/12/2023,4209331-25385,515.27,LOFTHOUSE & PARTNERS LTD.
Regeneration Economy and Growth,Corporate Property and Land,Premises,150005,Apportioned Exps of Operational Blds,01/12/2023,4209331-25386,515.27,LOFTHOUSE & PARTNERS LTD.
Regeneration Economy and Growth,Corporate Property and Land,Premises,108099,Service Repairs and Maintenance,01/12/2023,4209332-191767,"2,520.00",LUCION ENVIRONMENTAL LLP LTD.
Regeneration Economy and Growth,Planning & Housing,Supplies and Services,332047,Printing Stationery and Gen Off Exps,01/12/2023,4209334-6901774729,618.40,LYRECO UK LTD.
Resources BK0010,Digital Services,Supplies and Services,342033,Computers and Communications,01/12/2023,4209337-12661089,"2,046.00",MAINTEL EUROPE LTD.
Children and Young Peoples Services,Head of Childrens Social Care,Third Party Payments,440046,Other third party payments E440,01/12/2023,4209338-10156,"9,946.71",MAJOR RECRUITMENT LTD.*
Children and Young Peoples Services,Head of Childrens Social Care,Third Party Payments,440047,Other third party payments E440,01/12/2023,4209338-8095,"1,785.30",MAJOR RECRUITMENT LTD.*
Children and Young Peoples Services,Head of Childrens Social Care,Third Party Payments,440046,Other third party payments E440,01/12/2023,4209338-8106,"9,713.48",MAJOR RECRUITMENT LTD.*
Children and Young Peoples Services,Head of Childrens Social Care,Third Party Payments,440046,Other third party payments E440,01/12/2023,4209338-8122,"3,589.58",MAJOR RECRUITMENT LTD.*
Children and Young Peoples Services,Head of Childrens Social Care,Third Party Payments,440047,Other third party payments E440,01/12/2023,4209338-8123,"1,923.26",MAJOR RECRUITMENT LTD.*
Children and Young Peoples Services,Head of Childrens Social Care,Third Party Payments,440046,Other third party payments E440,01/12/2023,4209338-8124,"10,002.50",MAJOR RECRUITMENT LTD.*
Children and Young Peoples Services,Head of Childrens Social Care,Third Party Payments,440046,Other third party payments E440,01/12/2023,4209338-8125,"10,210.90",MAJOR RECRUITMENT LTD.*
Children and Young Peoples Services,Head of Childrens Social Care,Third Party Payments,440047,Other third party payments E440,01/12/2023,4209338-9262,"1,428.00",MAJOR RECRUITMENT LTD.*
Children and Young Peoples Services,Head of Education and Skills,Transport,230007,Contract Hire,01/12/2023,4209340-4223,500.00,MARK & JOHN CHISHOLM T/A (CHEVRON).
Children and Young Peoples Services,Head of Education and Skills,Transport,230007,Contract Hire,01/12/2023,4209340-5209/2023,"2,034.09",MARK & JOHN CHISHOLM T/A (CHEVRON).
Regeneration Economy and Growth,Planning & Housing,Supplies and Services,364501,Grants to Voluntary Organisations,01/12/2023,4209363-1179,790.00,NEXT2MOVE SALES & LETTINGS LTD.
Neighbourhoods and Climate Change,Highways,Construction work A908,908203,Capital - Public Utilities - Water Services,01/12/2023,4209367-915562812,"1,338.00",NORTHUMBRIAN WATER LTD.
Regeneration Economy and Growth,Corporate Property and Land,Third Party Payments,430100,Rendered by Private Contractors,01/12/2023,4209372-12320-86,937.44,OPUS BUILDING SERVICES LTD.
Regeneration Economy and Growth,Corporate Property and Land,Third Party Payments,430100,Rendered by Private Contractors,01/12/2023,4209372-12320-87,869.75,OPUS BUILDING SERVICES LTD.
Regeneration Economy and Growth,Corporate Property and Land,Third Party Payments,430100,Rendered by Private Contractors,01/12/2023,4209372-12320-88,"1,192.50",OPUS BUILDING SERVICES LTD.
Regeneration Economy and Growth,Corporate Property and Land,Third Party Payments,430100,Rendered by Private Contractors,01/12/2023,4209372-12320-89,"1,114.92",OPUS BUILDING SERVICES LTD.
Regeneration Economy and Growth,Corporate Property and Land,Third Party Payments,430100,Rendered by Private Contractors,01/12/2023,4209372-12320-90,973.88,OPUS BUILDING SERVICES LTD.
Regeneration Economy and Growth,Corporate Property and Land,Third Party Payments,430100,Rendered by Private Contractors,01/12/2023,4209372-12320-91,"1,207.80",OPUS BUILDING SERVICES LTD.
Regeneration Economy and Growth,Corporate Property and Land,Third Party Payments,430100,Rendered by Private Contractors,01/12/2023,4209372-12320-92,"1,184.85",OPUS BUILDING SERVICES LTD.
Regeneration Economy and Growth,Corporate Property and Land,Third Party Payments,430100,Rendered by Private Contractors,01/12/2023,4209372-12320-93,"1,192.50",OPUS BUILDING SERVICES LTD.
Regeneration Economy and Growth,Corporate Property and Land,Third Party Payments,430100,Rendered by Private Contractors,01/12/2023,4209372-12320-94,"1,117.44",OPUS BUILDING SERVICES LTD.
Regeneration Economy and Growth,Corporate Property and Land,Third Party Payments,430100,Rendered by Private Contractors,01/12/2023,4209372-12320-95,759.50,OPUS BUILDING SERVICES LTD.
Regeneration Economy and Growth,Corporate Property and Land,Third Party Payments,430100,Rendered by Private Contractors,01/12/2023,4209372-12320-96,"1,210.05",OPUS BUILDING SERVICES LTD.
Regeneration Economy and Growth,Corporate Property and Land,Third Party Payments,430100,Rendered by Private Contractors,01/12/2023,4209372-12320-97,"1,138.50",OPUS BUILDING SERVICES LTD.
Regeneration Economy and Growth,Corporate Property and Land,Third Party Payments,430100,Rendered by Private Contractors,01/12/2023,4209372-12320-98,840.75,OPUS BUILDING SERVICES LTD.
Regeneration Economy and Growth,Corporate Property and Land,Third Party Payments,430100,Rendered by Private Contractors,01/12/2023,4209372-12320-99,"1,092.00",OPUS BUILDING SERVICES LTD.
Regeneration Economy and Growth,Corporate Property and Land,Third Party Payments,430100,Rendered by Private Contractors,01/12/2023,4209372-12580-01,"1,189.80",OPUS BUILDING SERVICES LTD.
Regeneration Economy and Growth,Corporate Property and Land,Third Party Payments,430100,Rendered by Private Contractors,01/12/2023,4209372-12580-02,"1,138.50",OPUS BUILDING SERVICES LTD.
Regeneration Economy and Growth,Corporate Property and Land,Third Party Payments,430100,Rendered by Private Contractors,01/12/2023,4209372-12580-03,656.97,OPUS BUILDING SERVICES LTD.
Regeneration Economy and Growth,Corporate Property and Land,Third Party Payments,430100,Rendered by Private Contractors,01/12/2023,4209372-12580-04,759.50,OPUS BUILDING SERVICES LTD.
Regeneration Economy and Growth,Corporate Property and Land,Third Party Payments,430100,Rendered by Private Contractors,01/12/2023,4209372-12580-05,"1,209.60",OPUS BUILDING SERVICES LTD.
Regeneration Economy and Growth,Corporate Property and Land,Third Party Payments,430100,Rendered by Private Contractors,01/12/2023,4209372-12580-06,"1,207.80",OPUS BUILDING SERVICES LTD.
Regeneration Economy and Growth,Corporate Property and Land,Third Party Payments,430100,Rendered by Private Contractors,01/12/2023,4209372-12580-07,912.00,OPUS BUILDING SERVICES LTD.
Regeneration Economy and Growth,Corporate Property and Land,Third Party Payments,430100,Rendered by Private Contractors,01/12/2023,4209372-12580-08,"1,292.38",OPUS BUILDING SERVICES LTD.
Regeneration Economy and Growth,Corporate Property and Land,Third Party Payments,430100,Rendered by Private Contractors,01/12/2023,4209372-12580-09,"1,174.50",OPUS BUILDING SERVICES LTD.
Regeneration Economy and Growth,Corporate Property and Land,Third Party Payments,430100,Rendered by Private Contractors,01/12/2023,4209372-12580-10,"1,246.95",OPUS BUILDING SERVICES LTD.
Neighbourhoods and Climate Change,Environmental Services,Transport,210057,Repair and Maintenance of Vehicles,01/12/2023,4209376-24970003,663.16,PARTSPLUS.
Children and Young Peoples Services,Head of Education and Skills,Transport,230006,Contract Hire,01/12/2023,4209377-F321-OCT23,"4,557.54",PB PRIVATE HIRE.
Children and Young Peoples Services,Head of Education and Skills,Transport,230008,Contract Hire,01/12/2023,4209377-W179-OCT23,"3,299.90",PB PRIVATE HIRE.
Resources BK0010,Transactional & Customer Services,Supplies and Services,304259,Equipment and Materials,01/12/2023,4209387-INV1165708,966.55,POSTURITE (UK) LTD.
Neighbourhoods and Climate Change,Highways,Third Party Payments,430100,Rendered by Private Contractors,01/12/2023,4209394-15397,"22,574.91",QUANTUM POWER CONNECTIONS LTD.
Regeneration Economy and Growth,Corporate Property and Land,Supplies and Services,304221,Equipment and Materials,01/12/2023,4209399-0000072624,"1,995.80",RINNAI UK LTD.
Neighbourhoods and Climate Change,Environmental Services,Supplies and Services,384199,Miscellaneous Expenses,01/12/2023,4209408-SINV113240,"6,323.30",SALIX RIVER & WETLAND SERVICES LTD.
Regeneration Economy and Growth,Corporate Property and Land,Supplies and Services,338005,Services,01/12/2023,4209409-2772,723.00,SANDERSON WEATHERALL LLP.
Neighbourhoods and Climate Change,Partnerships & Community Engagement Div.,Supplies and Services,364501,Grants to Voluntary Organisations,01/12/2023,4209412-CARPETS/131123,500.00,SC CARPETS.
Chief Executives Office,Communications Management,Supplies and Services,332029,Printing Stationery and Gen Off Exps,01/12/2023,4209424-27146,635.00,SIMPLY STRIPES (THE SIGNMAKERS) LTD.
Neighbourhoods and Climate Change,Partnerships & Community Engagement Div.,Supplies and Services,384086,Miscellaneous Expenses,01/12/2023,4209428-VOUCHER22NB-BASH022,"2,500.00",SOUTH DURHAM ENTERPRISE AGENCY LTD.
Regeneration Economy and Growth,Transport and Contracted Services,Supplies and Services,342215,Computers and Communications,01/12/2023,4209433-135270,"1,995.00",STANDING STONE DRAWING OFFICE SUPPLIES LTD.
Neighbourhoods and Climate Change,Environmental Services,Supplies and Services,304252,Equipment and Materials,01/12/2023,4209436-V14I004570,"1,282.35",STANNERS EQUIPMENT LTD.
Children and Young Peoples Services,Head of Childrens Social Care,Transport,230005,Contract Hire,01/12/2023,4209438-NOV114/STL23,534.00,STL CABS LTD.
Children and Young Peoples Services,Head of Childrens Social Care,Transport,230005,Contract Hire,01/12/2023,4209438-NOV126/STL23,790.00,STL CABS LTD.
Children and Young Peoples Services,Head of Early Help Inclusion & Vulnerable Children.,Transport,230005,Contract Hire,01/12/2023,4209438-NOV55/STL23,784.00,STL CABS LTD.
Children and Young Peoples Services,Head of Childrens Social Care,Transport,230005,Contract Hire,01/12/2023,4209438-NOV58/STL23,772.00,STL CABS LTD.
Children and Young Peoples Services,Head of Childrens Social Care,Transport,230005,Contract Hire,01/12/2023,4209438-NOV72/STL23,534.00,STL CABS LTD.
Children and Young Peoples Services,Head of Childrens Social Care,Transport,230005,Contract Hire,01/12/2023,4209438-NOV79/STL23,558.00,STL CABS LTD.
Children and Young Peoples Services,Head of Childrens Social Care,Transport,230005,Contract Hire,01/12/2023,4209438-NOV81/STL23,572.00,STL CABS LTD.
Children and Young Peoples Services,Head of Early Help Inclusion & Vulnerable Children.,Transport,230005,Contract Hire,01/12/2023,4209438-NOV85/STL23,696.00,STL CABS LTD.
Children and Young Peoples Services,Head of Childrens Social Care,Transport,230005,Contract Hire,01/12/2023,4209438-NOV97/STL23,766.00,STL CABS LTD.
Regeneration Economy and Growth,Culture Sport and Tourism,Supplies and Services,304337,Equipment and Materials,01/12/2023,4209444-SWINV094711,970.65,SWIM ENGLAND TRADING LTD.*
Resources BK0010,Digital Services,Supplies and Services,342033,Computers and Communications,01/12/2023,4209445-147225,915.16,SWITCHSHOP LTD.
Regeneration Economy and Growth,Corporate Property and Land,Supplies and Services,304221,Equipment and Materials,01/12/2023,4209446-1099084,"6,637.62",T CROSSLING & CO LTD.
Regeneration Economy and Growth,Corporate Property and Land,Supplies and Services,304221,Equipment and Materials,01/12/2023,4209446-1099325,719.60,T CROSSLING & CO LTD.
Children and Young Peoples Services,Head of Early Help Inclusion & Vulnerable Children.,Employees,080025,Agency Staff,01/12/2023,4209449-0000544189,"1,442.00",TEACHERACTIVE LTD.
Neighbourhoods and Climate Change,Highways,Stock A926,926900,Stock in hand-Inventory system,01/12/2023,4209460-NSIN00103962,628.20,THOMAS OWEN & SONS (NEWCASTLE) LTD.
Regeneration Economy and Growth,Corporate Property and Land,Supplies and Services,328041,Clothing uniforms and laundry E328,01/12/2023,4209460-NSIN00103964,703.50,THOMAS OWEN & SONS (NEWCASTLE) LTD.
Resources BK0010,Transactional & Customer Services,Supplies and Services,338099,Services,01/12/2023,4209467-973061,"7,458.00",TRANSUNION INTERNATIONAL UK LTD.
Adult and Health Services,Public Health CC0450,Third Party Payments,460803,Contract Payments,01/12/2023,4209468-SI-TPL-00081278,"1,855.00",TURNING POINT (SERVICES) LTD.
Adult and Health Services,Public Health CC0450,Third Party Payments,460803,Contract Payments,01/12/2023,4209468-SI-TPL-00081279,"1,855.00",TURNING POINT (SERVICES) LTD.
Adult and Health Services,Public Health CC0450,Third Party Payments,460803,Contract Payments,01/12/2023,4209468-SI-TPL-00081280,"1,060.00",TURNING POINT (SERVICES) LTD.
Neighbourhoods and Climate Change,Highways,Supplies and Services,304221,Equipment and Materials,01/12/2023,4209470-253578,600.50,TYNEDALE ROADSTONE LTD.
Neighbourhoods and Climate Change,Highways,Supplies and Services,304221,Equipment and Materials,01/12/2023,4209470-253579,"1,248.10",TYNEDALE ROADSTONE LTD.
Neighbourhoods and Climate Change,Highways,Supplies and Services,304221,Equipment and Materials,01/12/2023,4209470-253580,"1,469.94",TYNEDALE ROADSTONE LTD.
Neighbourhoods and Climate Change,Highways,Supplies and Services,304221,Equipment and Materials,01/12/2023,4209470-253581,"2,778.90",TYNEDALE ROADSTONE LTD.
Neighbourhoods and Climate Change,Highways,Supplies and Services,304221,Equipment and Materials,01/12/2023,4209470-253582,"1,596.59",TYNEDALE ROADSTONE LTD.
Children and Young Peoples Services,Head of Early Help Inclusion & Vulnerable Children.,Supplies and Services,384199,Miscellaneous Expenses,01/12/2023,4209472-1800244749,"20,960.00",UNIVERSITY OF SHEFFIELD.
Regeneration Economy and Growth,Corporate Property and Land,Premises,108099,Service Repairs and Maintenance,01/12/2023,4209475-1517,660.00,VENTILATION HYGIENE SPECIALISTS (VHS) LTD.
Regeneration Economy and Growth,Corporate Property and Land,Premises,108099,Service Repairs and Maintenance,01/12/2023,4209475-1523A,640.00,VENTILATION HYGIENE SPECIALISTS (VHS) LTD.
Regeneration Economy and Growth,Corporate Property and Land,Premises,108099,Service Repairs and Maintenance,01/12/2023,4209475-1533,660.00,VENTILATION HYGIENE SPECIALISTS (VHS) LTD.
Resources BK0010,Legal & Democratic Services,Supplies and Services,338099,Services,01/12/2023,4209479-SLIVRL0126911,"1,170.00",VIVID RESOURCING.
Children and Young Peoples Services,Head of Education and Skills,Transport,230005,Contract Hire,01/12/2023,4209483-19458,"1,450.00",WEARDALE MOTOR SERVICES LTD.
Neighbourhoods and Climate Change,Partnerships & Community Engagement Div.,Supplies and Services,384086,Miscellaneous Expenses,01/12/2023,4209487-VOUCHERBING01-23,671.00,WHITE LE HEAD BOWLS CLUB.
Neighbourhoods and Climate Change,Environmental Services,Supplies and Services,304221,Equipment and Materials,01/12/2023,4209490-60008,"4,835.21",WILLOWCRETE MANUFACTURING COMPANY LTD (MFG).
Neighbourhoods and Climate Change,Environmental Services,Supplies and Services,304259,Equipment and Materials,01/12/2023,4209491-23-0729,"11,490.00",WM O SILMON LTD.
Chief Executives Office,Communications Management,Supplies and Services,384899,Miscellaneous Expenses,01/12/2023,4209220-NEI-HCL-11-2023-009,"10,000.00",CULTURE COMMONS LTD.
Neighbourhoods and Climate Change,Partnerships & Community Engagement Div.,Supplies and Services,384086,Miscellaneous Expenses,01/12/2023,4209415-VOUCHER22NB-EDUR013,"1,434.00",SEAHAM RUGBY FOOTBALL CLUB.
Neighbourhoods and Climate Change,Partnerships & Community Engagement Div.,Cap Exp on Grants & Other Financial Assistance (REFCUS),918004,Contributions to other bodies 918004,01/12/2023,4209486-VOUCHER23NB-BASH020,"18,831.50",WEST AUCKLAND MEMORIAL COMMUNITY ASSOCIATION.
Regeneration Economy and Growth,Corporate Property and Land,Supplies and Services,338045,Services,01/12/2023,4209495-25409,"1,839.20",YOUNGS RPS LLP.
Resources BK0010,Digital Services,Supplies and Services,342051,Computers and Communications,04/12/2023,4209619-GB/11/23/6000353,"20,000.00",MASTEK SYSTEMS COMPANY LTD.
Neighbourhoods and Climate Change,Environmental Services,Supplies and Services,384899,Miscellaneous Expenses,04/12/2023,4209683-RES-11-2023-501,"2,500.00",KWIKPART CAR ACCESSORIES.
Dedicated Schools Grant BG0015,DSG Schools Block,Supplies and Services,384199,Miscellaneous Expenses,04/12/2023,4209688-2007,785.00,LEISURE TRAINING & CONSULTANCY (NORTH EAST) LTD.
Children and Young Peoples Services,Head of Childrens Social Care,Supplies and Services,338066,Services,04/12/2023,4209591-INV-0412,510.67,REDACTED - PAYMENT TO INDIVIDUAL
Resources BK0010,Legal & Democratic Services,Supplies and Services,338101,Services,04/12/2023,4209592-0102023CHIPJMR,684.00,REDACTED - PAYMENT TO INDIVIDUAL
Resources BK0010,Legal & Democratic Services,Supplies and Services,338101,Services,04/12/2023,4209594-0102023POL,"1,050.00",REDACTED - PAYMENT TO INDIVIDUAL
Children and Young Peoples Services,Head of Education and Skills,Supplies and Services,338027,Services,04/12/2023,4209707-DCC7005,"1,710.00",REDACTED - PAYMENT TO INDIVIDUAL
Children and Young Peoples Services,Head of Childrens Social Care,Supplies and Services,338099,Services,04/12/2023,4209709-8473-1,615.00,REDACTED - PAYMENT TO INDIVIDUAL
Children and Young Peoples Services,Head of Childrens Social Care,Supplies and Services,338066,Services,04/12/2023,4209713-134503,700.00,REDACTED - PAYMENT TO INDIVIDUAL
Neighbourhoods and Climate Change,Environmental Services,Supplies and Services,384199,Miscellaneous Expenses,04/12/2023,4209744-01191,"1,304.00",REDACTED - PAYMENT TO INDIVIDUAL
Regeneration Economy and Growth,Corporate Property and Land,Supplies and Services,304221,Equipment and Materials,04/12/2023,4209502-IN11241,"4,763.83",ACROL AIR CONDITIONING CO LTD.
Resources BK0010,Legal & Democratic Services,Supplies and Services,332029,Printing Stationery and Gen Off Exps,04/12/2023,4209504-PSI0235666,"1,484.10",ADARE SEC LTD.
Neighbourhoods and Climate Change,Highways,Supplies and Services,304221,Equipment and Materials,04/12/2023,4209505-35327094,638.62,AGGREGATE INDUSTRIES UK LTD.
Neighbourhoods and Climate Change,Environmental Services,Supplies and Services,338099,Services,04/12/2023,4209506-CD971648324,"1,315.40",AGROVISTA UK LTD FORMERLY MAXWELL AMENITY LTD.
Neighbourhoods and Climate Change,Environmental Services,Supplies and Services,338099,Services,04/12/2023,4209506-CD971648325,"4,655.28",AGROVISTA UK LTD FORMERLY MAXWELL AMENITY LTD.
Neighbourhoods and Climate Change,Environmental Services,Supplies and Services,338099,Services,04/12/2023,4209506-CD971648326,"3,879.40",AGROVISTA UK LTD FORMERLY MAXWELL AMENITY LTD.
Neighbourhoods and Climate Change,Environmental Services,Supplies and Services,338099,Services,04/12/2023,4209506-CD971648327,716.00,AGROVISTA UK LTD FORMERLY MAXWELL AMENITY LTD.
Neighbourhoods and Climate Change,Environmental Services,Supplies and Services,338099,Services,04/12/2023,4209506-CD971648328,774.00,AGROVISTA UK LTD FORMERLY MAXWELL AMENITY LTD.
Neighbourhoods and Climate Change,Environmental Services,Supplies and Services,338099,Services,04/12/2023,4209506-CD971648329,516.00,AGROVISTA UK LTD FORMERLY MAXWELL AMENITY LTD.
Regeneration Economy and Growth,Corporate Property and Land,Supplies and Services,304221,Equipment and Materials,04/12/2023,4209510-SI30123,"3,116.95",AMBIC LTD.
Children and Young Peoples Services,Head of Childrens Social Care,Supplies and Services,364359,Grants to Voluntary Organisations,04/12/2023,4209514-33399,702.00,APPLE BLOSSOM DAY NURSERY.
Regeneration Economy and Growth,Culture Sport and Tourism,Supplies and Services,312013,Newspapers books and periodicals E312,04/12/2023,4209517-6967751,696.32,ASKEWS & HOLTS LIBRARY SERVICES LTD.
Regeneration Economy and Growth,Culture Sport and Tourism,Supplies and Services,312013,Newspapers books and periodicals E312,04/12/2023,4209517-6969379,569.90,ASKEWS & HOLTS LIBRARY SERVICES LTD.
Regeneration Economy and Growth,Corporate Property and Land,Supplies and Services,304252,Equipment and Materials,04/12/2023,4209518-14868,"2,194.00",ASPECT FIRE SOLUTIONS LTD.
Children and Young Peoples Services,Head of Education and Skills,Supplies and Services,384199,Miscellaneous Expenses,04/12/2023,4209520-DW3GRANT009-02,983.06,AUTON ACADEMY LTD.
Neighbourhoods and Climate Change,Highways,Supplies and Services,304221,Equipment and Materials,04/12/2023,4209529-207R03107,609.84,BIFFA WASTE SERVICES LTD.
Children and Young Peoples Services,Head of Education and Skills,Supplies and Services,384199,Miscellaneous Expenses,04/12/2023,4209530-DW3GRANT022-02,"2,079.01",BIG HANDS LITTLE HANDS CHILDCARE LTD.
Regeneration Economy and Growth,Culture Sport and Tourism,Premises,145023,Cleaning and Domestic Supplies,04/12/2023,4209536-22SI2295476,"1,038.60",BRENNTAG UK LTD.
Neighbourhoods and Climate Change,Highways,Supplies and Services,304221,Equipment and Materials,04/12/2023,4209537-53336,"10,752.48",BRIDGEWAY CONSULTING LTD.
Regeneration Economy and Growth,Corporate Property and Land,Supplies and Services,304221,Equipment and Materials,04/12/2023,4209543-140017033,"2,421.15",CARLISLE CONSTRUCTION MATERIALS LTD.
Children and Young Peoples Services,Head of Education and Skills,Construction work A908,908105,Construction work,04/12/2023,4209547-12061,711.33,CATHEDRAL LOCK & SAFE SERVICES LTD.
Regeneration Economy and Growth,Corporate Property and Land,Third Party Payments,430100,Rendered by Private Contractors,04/12/2023,4209549-840,"2,027.66",CEILINGS DIRECT LTD.
Resources BK0010,Transactional & Customer Services,Supplies and Services,338066,Services,04/12/2023,4209555-C/BN289861,"2,007.94",CIVICA UK LTD.
Resources BK0010,Transactional & Customer Services,Supplies and Services,338066,Services,04/12/2023,4209555-C/BN289862,"3,955.00",CIVICA UK LTD.
Resources BK0010,Transactional & Customer Services,Supplies and Services,338066,Services,04/12/2023,4209555-C/BN289863,"6,098.40",CIVICA UK LTD.
Neighbourhoods and Climate Change,Environmental Services,Supplies and Services,384199,Miscellaneous Expenses,04/12/2023,4209561-4100849124,"53,745.00",CONSERVEFOR.
Regeneration Economy and Growth,Corporate Property and Land,Construction work A908,908105,Construction work,04/12/2023,4209562-123029,920.00,CONSTRUCTION TESTING SOLUTIONS LTD.
Children and Young Peoples Services,Head of Education and Skills,Supplies and Services,384199,Miscellaneous Expenses,04/12/2023,4209567-DWF0012,"2,372.72",CR UTILITIES LTD.
Adult and Health Services,Public Health CC0450,Third Party Payments,460803,Contract Payments,04/12/2023,4209570-9810031076,"89,195.00",CUMBRIA NORTHUMBERLAND TYNE & WEAR NHS FOUNDATION TRUST.
Resources BK0010,Legal & Democratic Services,Supplies and Services,338042,Services,04/12/2023,4209579-372191/INVHT83,875.00,DERE STREET BARRISTERS.
Resources BK0010,Legal & Democratic Services,Supplies and Services,338042,Services,04/12/2023,4209579-383667/INVLW532,"4,125.00",DERE STREET BARRISTERS.
Resources BK0010,Legal & Democratic Services,Supplies and Services,338042,Services,04/12/2023,4209579-387070/INVJEB68,775.00,DERE STREET BARRISTERS.
Resources BK0010,Legal & Democratic Services,Supplies and Services,338042,Services,04/12/2023,4209579-388586/INVLC93,550.00,DERE STREET BARRISTERS.
Resources BK0010,Legal & Democratic Services,Supplies and Services,338042,Services,04/12/2023,4209579-389696/INVMMC39,"1,750.00",DERE STREET BARRISTERS.
Resources BK0010,Legal & Democratic Services,Supplies and Services,338042,Services,04/12/2023,4209579-389989/INVGA97,950.00,DERE STREET BARRISTERS.
Resources BK0010,Legal & Democratic Services,Supplies and Services,338042,Services,04/12/2023,4209579-390017/INVVCH211,775.00,DERE STREET BARRISTERS.
Resources BK0010,Legal & Democratic Services,Supplies and Services,338042,Services,04/12/2023,4209579-390642/INVRP9,"1,400.00",DERE STREET BARRISTERS.
Resources BK0010,Legal & Democratic Services,Supplies and Services,338042,Services,04/12/2023,4209579-392009/INVLC95,600.00,DERE STREET BARRISTERS.
Children and Young Peoples Services,Head of Childrens Social Care,Transport,230005,Contract Hire,04/12/2023,4209582-DH2347G,500.00,DH2 CABS.
Children and Young Peoples Services,Head of Childrens Social Care,Transport,230005,Contract Hire,04/12/2023,4209582-DH2347H,660.00,DH2 CABS.
Children and Young Peoples Services,Head of Childrens Social Care,Transport,230005,Contract Hire,04/12/2023,4209582-DH2347Q,700.00,DH2 CABS.
Children and Young Peoples Services,Head of Childrens Social Care,Transport,230005,Contract Hire,04/12/2023,4209582-DH2347R,540.00,DH2 CABS.
Children and Young Peoples Services,Head of Childrens Social Care,Transport,230005,Contract Hire,04/12/2023,4209582-DH2347S,696.00,DH2 CABS.
Children and Young Peoples Services,Head of Childrens Social Care,Transport,230005,Contract Hire,04/12/2023,4209582-DH2347W,688.00,DH2 CABS.
Children and Young Peoples Services,Head of Childrens Social Care,Transport,230005,Contract Hire,04/12/2023,4209582-DH2347ZF,700.00,DH2 CABS.
Children and Young Peoples Services,Head of Childrens Social Care,Transport,230005,Contract Hire,04/12/2023,4209582-DH2347ZK,600.00,DH2 CABS.
Neighbourhoods and Climate Change,Highways,Supplies and Services,336005,Advertising E336,04/12/2023,4209598-3193,736.00,EAST DURHAM LIFE LTD.
Neighbourhoods and Climate Change,Partnerships & Community Engagement Div.,Cap Exp on Grants & Other Financial Assistance (REFCUS),918004,Contributions to other bodies 918004,04/12/2023,4209603-VOUCHER23NB-CHES025,"1,744.00",EDMONDSLEY PARISH COUNCIL.
Regeneration Economy and Growth,Corporate Property and Land,Supplies and Services,304221,Equipment and Materials,04/12/2023,4209604-059-322242,"4,382.21",EDMUNDSON ELECTRICAL LTD.
Regeneration Economy and Growth,Corporate Property and Land,Supplies and Services,304221,Equipment and Materials,04/12/2023,4209604-059-328127,512.66,EDMUNDSON ELECTRICAL LTD.
Regeneration Economy and Growth,Culture Sport and Tourism,Supplies and Services,338047,Services,04/12/2023,4209616-20234303LB,"10,000.00",ENTERTAINMENT UNLIMITED.
Regeneration Economy and Growth,Culture Sport and Tourism,Supplies and Services,338047,Services,04/12/2023,4209616-20234304LBJACK,"30,000.00",ENTERTAINMENT UNLIMITED.
Children and Young Peoples Services,Head of Education and Skills,Supplies and Services,384199,Miscellaneous Expenses,04/12/2023,4209618-SI-3637A,"8,870.40",EVOLUTION TRAINING & CONSULTANCY SERVICES LTD.
Neighbourhoods and Climate Change,Environmental Services,Supplies and Services,304403,Equipment and Materials,04/12/2023,4209621-DI69679,"1,071.20",EXPRESS MOTOR FACTORS (NE) LTD.
Resources BK0010,Legal & Democratic Services,Supplies and Services,338101,Services,04/12/2023,4209624-PNC02542023JC,842.00,FORENSIC PATHOLOGY LTD.
Regeneration Economy and Growth,Planning & Housing,Supplies and Services,338094,Services,04/12/2023,4209637-Q0030,"3,166.00",GLEBE CENTRE ENTERPRISES LTD.
Children and Young Peoples Services,Head of Education and Skills,Transport,230008,Contract Hire,04/12/2023,4209638-002-23,"3,305.60",GMC TAXIS NORTH EAST.
Neighbourhoods and Climate Change,Partnerships & Community Engagement Div.,Cap Exp on Grants & Other Financial Assistance (REFCUS),918004,Contributions to other bodies 918004,04/12/2023,4209641-VOUCHER23NB-GAMP006,"5,400.00",GREAT AYCLIFFE TOWN COUNCIL.
Neighbourhoods and Climate Change,Environmental Services,Supplies and Services,328041,Clothing uniforms and laundry E328,04/12/2023,4209642-06/246569,680.00,GREENHAM TRADING LTD.
Regeneration Economy and Growth,Corporate Property and Land,Premises,145023,Cleaning and Domestic Supplies,04/12/2023,4209642-06/246874,668.60,GREENHAM TRADING LTD.
Neighbourhoods and Climate Change,Highways,Stock A926,926900,Stock in hand-Inventory system,04/12/2023,4209642-06/247362,"1,079.43",GREENHAM TRADING LTD.
Children and Young Peoples Services,Head of Education and Skills,Supplies and Services,304259,Equipment and Materials,04/12/2023,4209644-INV0196643,"3,036.00",GVAV LTD T/A AUDIO VISUAL SOLUTIONS.
Adult and Health Services,Public Health CC0450,Third Party Payments,460803,Contract Payments,04/12/2023,4209651-SI-HK-001633,"5,000.00",HUMANKIND CHARITY.
Regeneration Economy and Growth,Culture Sport and Tourism,Premises,120021,Energy Costs,04/12/2023,4209653-18265,"9,122.28",IMPALA ESTATES LTD.
Regeneration Economy and Growth,Business Durham,Supplies and Services,338066,Services,04/12/2023,4209654-8979,"2,120.00",INGRAM AV LTD T/A INGRAMSOUNDS.
Resources BK0010,Digital Services,Vehicles Equipment Furniture and Fittings,912701,Computer equipment,04/12/2023,4209656-2100758853,855.00,INSIGHT DIRECT (UK) LTD.
Resources BK0010,Digital Services,Vehicles Equipment Furniture and Fittings,912701,Computer equipment,04/12/2023,4209656-2100760688,"1,593.79",INSIGHT DIRECT (UK) LTD.
Children and Young Peoples Services,Head of Education and Skills,Supplies and Services,338035,Services,04/12/2023,4209657-806455640,925.00,INSTITUTE OF LEADERSHIP & MANAGEMENT (ILM).
Neighbourhoods and Climate Change,Environmental Services,Supplies and Services,384899,Miscellaneous Expenses,04/12/2023,4209661-RES-11-2023-527,500.00,J & J CLARK & SONS.
Children and Young Peoples Services,Head of Education and Skills,Supplies and Services,324117,Provisions E324,04/12/2023,4209662-28593,569.64,J MORAN LTD T/A CAFFE VINCI.
Neighbourhoods and Climate Change,Highways,Stock A926,926900,Stock in hand-Inventory system,04/12/2023,4209669-11705,774.90,JG UNIFORMS.
Regeneration Economy and Growth,Corporate Property and Land,Supplies and Services,304221,Equipment and Materials,04/12/2023,4209676-0213/01071410,635.51,JT DOVE LTD.
Regeneration Economy and Growth,Corporate Property and Land,Supplies and Services,304221,Equipment and Materials,04/12/2023,4209676-0303/01071408,"20,805.12",JT DOVE LTD.
Regeneration Economy and Growth,Corporate Property and Land,Supplies and Services,304221,Equipment and Materials,04/12/2023,4209676-0303/01073948,502.14,JT DOVE LTD.
Regeneration Economy and Growth,Corporate Property and Land,Supplies and Services,304221,Equipment and Materials,04/12/2023,4209676-0303/01076882,"2,694.74",JT DOVE LTD.
Neighbourhoods and Climate Change,Environmental Services,Supplies and Services,384199,Miscellaneous Expenses,04/12/2023,4209677-1758,"32,649.44",JW BAINBRIDGE CONTRACTORS LTD.
Neighbourhoods and Climate Change,Environmental Services,Supplies and Services,384700,Miscellaneous Expenses,04/12/2023,4209677-RES-11-2023-504,"13,528.80",JW BAINBRIDGE CONTRACTORS LTD.
Children and Young Peoples Services,Head of Education and Skills,Transport,230008,Contract Hire,04/12/2023,4209679-7876-W039,"1,040.00",KINGSWAY CABS LTD.
Resources - C A C,Resources - C A C- Level C,Supplies and Services,338015,Services,04/12/2023,4209694-DFE80207002,"75,000.00",LINK TREASURY SERVICES LTD.
Children and Young Peoples Services,Head of Childrens Social Care,Third Party Payments,440046,Other third party payments E440,04/12/2023,4209702-10153,535.50,MAJOR RECRUITMENT LTD.*
Children and Young Peoples Services,Head of Childrens Social Care,Third Party Payments,440047,Other third party payments E440,04/12/2023,4209702-7192,773.05,MAJOR RECRUITMENT LTD.*
Children and Young Peoples Services,Head of Childrens Social Care,Third Party Payments,440047,Other third party payments E440,04/12/2023,4209702-7193,"1,485.22",MAJOR RECRUITMENT LTD.*
Children and Young Peoples Services,Head of Childrens Social Care,Third Party Payments,440046,Other third party payments E440,04/12/2023,4209702-8120,"8,060.96",MAJOR RECRUITMENT LTD.*
Children and Young Peoples Services,Head of Education and Skills,Transport,230010,Contract Hire,04/12/2023,4209703-INV10/2023-12,"4,298.13",MARK & JOHN CHISHOLM T/A (CHEVRON).
Regeneration Economy and Growth,Corporate Property and Land,Third Party Payments,430100,Rendered by Private Contractors,04/12/2023,4209711-30559/92908415,"4,392.55",MITIE PROPERTY SERVICES (UK) LTD.
Neighbourhoods and Climate Change,Partnerships & Community Engagement Div.,Supplies and Services,384086,Miscellaneous Expenses,04/12/2023,4209719-VOUCHER23NB-EDUR045,"2,049.00",MURTON WELFARE ASSOCIATION.
Resources BK0010,Legal & Democratic Services,Supplies and Services,338025,Services,04/12/2023,4209720-23223-101123,960.00,N ALDERSON FUNERAL DIRECTOR LTD.
Neighbourhoods and Climate Change,Environmental Services,Premises,115125,Repairs to Grounds,04/12/2023,4209721-15918,749.92,N1 JETTING SYSTEMS LTD.
Regeneration Economy and Growth,Business Durham,Supplies and Services,336005,Advertising E336,04/12/2023,4209725-NMPR10112313,"1,950.00",NEWSMAKER PR & VIDEO PRODUCTION LTD.
Regeneration Economy and Growth,Planning & Housing,Supplies and Services,336005,Advertising E336,04/12/2023,4209726-43938463,824.99,NEWSQUEST (YORKSHIRE & NORTH EAST) LTD.
Regeneration Economy and Growth,Corporate Property and Land,Third Party Payments,430100,Rendered by Private Contractors,04/12/2023,4209732-11489-14,"2,381.27",OPUS BUILDING SERVICES LTD.
Regeneration Economy and Growth,Corporate Property and Land,Third Party Payments,430100,Rendered by Private Contractors,04/12/2023,4209732-11489-15,901.61,OPUS BUILDING SERVICES LTD.
Regeneration Economy and Growth,Corporate Property and Land,Third Party Payments,430100,Rendered by Private Contractors,04/12/2023,4209732-11489-16,"1,522.44",OPUS BUILDING SERVICES LTD.
Regeneration Economy and Growth,Corporate Property and Land,Third Party Payments,430100,Rendered by Private Contractors,04/12/2023,4209732-12010-04,"40,000.00",OPUS BUILDING SERVICES LTD.
Regeneration Economy and Growth,Corporate Property and Land,Third Party Payments,430100,Rendered by Private Contractors,04/12/2023,4209732-12010-05,"83,208.46",OPUS BUILDING SERVICES LTD.
Regeneration Economy and Growth,Corporate Property and Land,Third Party Payments,430100,Rendered by Private Contractors,04/12/2023,4209732-12010-06,"79,718.35",OPUS BUILDING SERVICES LTD.
Regeneration Economy and Growth,Corporate Property and Land,Third Party Payments,430100,Rendered by Private Contractors,04/12/2023,4209732-12010-07,"4,693.27",OPUS BUILDING SERVICES LTD.
Regeneration Economy and Growth,Corporate Property and Land,Supplies and Services,384199,Miscellaneous Expenses,04/12/2023,4209741-3710AMENDED,"1,125.00",PARAMOUNT CEILINGS & PARTITIONS LTD.
Regeneration Economy and Growth,Corporate Property and Land,Third Party Payments,430100,Rendered by Private Contractors,04/12/2023,4209741-3711,"3,680.00",PARAMOUNT CEILINGS & PARTITIONS LTD.
Regeneration Economy and Growth,Corporate Property and Land,Supplies and Services,304221,Equipment and Materials,04/12/2023,4209742-DT220931,592.25,PARK ELECTRICAL DISTRIBUTORS LTD.
Neighbourhoods and Climate Change,Highways,Stock A926,926900,Stock in hand-Inventory system,04/12/2023,4209742-XL310023,"3,148.50",PARK ELECTRICAL DISTRIBUTORS LTD.
Adult and Health Services,Head of Adults,Supplies and Services,338089,Services,04/12/2023,4209745-INV-0037,"1,430.00",PEER HUB COMMUNITY INTEREST COMPANY.
Children and Young Peoples Services,Head of Education and Skills,Transport,230003,Contract Hire,04/12/2023,4209747-1360,"3,280.00",PETERLEEONE LTD.
Regeneration Economy and Growth,Culture Sport and Tourism,Supplies and Services,384199,Miscellaneous Expenses,04/12/2023,4209752-INV11154,833.33,PICTUREHOUSE CINEMAS LTD.
Adult and Health Services,Head of Adults,Third Party Payments,479102,Purchase of Care,04/12/2023,4209754-INV-0265,"7,561.08",POSITIVE CARE & SUPPORT LTD.
Regeneration Economy and Growth,Culture Sport and Tourism,Supplies and Services,332047,Printing Stationery and Gen Off Exps,04/12/2023,4209756-0000476135,"3,864.08",PRESERVATION EQUIPMENT LTD.
Children and Young Peoples Services,Head of Childrens Social Care,Third Party Payments,440046,Other third party payments E440,04/12/2023,4209759-2080,"104,438.16",PROTECTIVE CARE GROUP LTD.
Children and Young Peoples Services,Head of Early Help Inclusion & Vulnerable Children.,Employees,080025,Agency Staff,04/12/2023,4209759-2083,"83,763.60",PROTECTIVE CARE GROUP LTD.
Neighbourhoods and Climate Change,Highways,Supplies and Services,304358,Equipment and Materials,04/12/2023,4209769-3896,"1,349.20",S & R LANDSCAPES.
Neighbourhoods and Climate Change,Highways,Supplies and Services,304358,Equipment and Materials,04/12/2023,4209769-3897,521.00,S & R LANDSCAPES.
Neighbourhoods and Climate Change,Highways,Supplies and Services,304358,Equipment and Materials,04/12/2023,4209769-3898,"1,070.00",S & R LANDSCAPES.
Neighbourhoods and Climate Change,Highways,Supplies and Services,304358,Equipment and Materials,04/12/2023,4209769-3899,918.00,S & R LANDSCAPES.
Neighbourhoods and Climate Change,Highways,Supplies and Services,304358,Equipment and Materials,04/12/2023,4209769-3901,890.00,S & R LANDSCAPES.
Neighbourhoods and Climate Change,Highways,Supplies and Services,304358,Equipment and Materials,04/12/2023,4209769-3902,632.00,S & R LANDSCAPES.
Neighbourhoods and Climate Change,Highways,Supplies and Services,304358,Equipment and Materials,04/12/2023,4209769-3903,"1,050.60",S & R LANDSCAPES.
Children and Young Peoples Services,Head of Education and Skills,Construction work A908,908105,Construction work,04/12/2023,4209772-7782,"23,500.00",SAFE STRIP UK LTD.
Neighbourhoods and Climate Change,Environmental Services,Construction work A908,908105,Construction work,04/12/2023,4209772-7783,"10,300.00",SAFE STRIP UK LTD.
Regeneration Economy and Growth,Corporate Property and Land,Third Party Payments,430100,Rendered by Private Contractors,04/12/2023,4209772-7784,"3,250.00",SAFE STRIP UK LTD.
Regeneration Economy and Growth,Planning & Housing,Supplies and Services,364501,Grants to Voluntary Organisations,04/12/2023,4209776-H-PITTARD-7-SOUTH-HETTON-ROAD,500.00,SARAHANN CAMPION PROPERTIES.
Neighbourhoods and Climate Change,Highways,Stock A926,926900,Stock in hand-Inventory system,04/12/2023,4209778-IN2438,640.00,SEYMOUR (PLANT & EQUIPMENT) LTD.
Adult and Health Services,Head of Adults,Supplies and Services,338066,Services,04/12/2023,4209779-SHAH467,713.50,SHAH MEDICAL SERVICES LTD.
Adult and Health Services,Head of Adults,Supplies and Services,338066,Services,04/12/2023,4209779-SHAH468,555.55,SHAH MEDICAL SERVICES LTD.
Neighbourhoods and Climate Change,Highways,Supplies and Services,338066,Services,04/12/2023,4209785-2023-426,"5,800.00",SOLMEK LTD.
Neighbourhoods and Climate Change,Highways,Supplies and Services,338066,Services,04/12/2023,4209785-2023-427,"5,800.00",SOLMEK LTD.
Children and Young Peoples Services,Head of Education and Skills,Supplies and Services,338027,Services,04/12/2023,4209786-EPINAY-423,"1,787.89",SOUTH TYNESIDE COUNCIL.
Neighbourhoods and Climate Change,Highways,Supplies and Services,304221,Equipment and Materials,04/12/2023,4209790-8845,"19,289.00",ST ASTIER LTD.
Children and Young Peoples Services,Head of Education and Skills,Supplies and Services,384199,Miscellaneous Expenses,04/12/2023,4209793-DW3GRANT026-02,693.94,STANLEY YOUNG PEOPLES CLUB.
Neighbourhoods and Climate Change,Highways,Supplies and Services,304221,Equipment and Materials,04/12/2023,4209796-44367,742.00,STONEGRAVE AGGREGATES LTD.
Regeneration Economy and Growth,Corporate Property and Land,Supplies and Services,304221,Equipment and Materials,04/12/2023,4209801-1100674,715.31,T CROSSLING & CO LTD.
Regeneration Economy and Growth,Corporate Property and Land,Supplies and Services,304221,Equipment and Materials,04/12/2023,4209801-1100686,"1,141.93",T CROSSLING & CO LTD.
Neighbourhoods and Climate Change,Highways,Supplies and Services,304221,Equipment and Materials,04/12/2023,4209802-9047715448,804.00,TARMAC TRADING LTD.
Regeneration Economy and Growth,Culture Sport and Tourism,Supplies and Services,304259,Equipment and Materials,04/12/2023,4209804-2372013051,730.60,TECHNOGYM UK LTD.
Regeneration Economy and Growth,Corporate Property and Land,Supplies and Services,384199,Miscellaneous Expenses,04/12/2023,4209811-00113205,"1,954.05",THOMAS TELFORD LTD.
Neighbourhoods and Climate Change,Highways,Supplies and Services,304221,Equipment and Materials,04/12/2023,4209817-253584,957.38,TYNEDALE ROADSTONE LTD.
Neighbourhoods and Climate Change,Highways,Supplies and Services,304221,Equipment and Materials,04/12/2023,4209817-253587,"1,624.49",TYNEDALE ROADSTONE LTD.
Neighbourhoods and Climate Change,Highways,Supplies and Services,304221,Equipment and Materials,04/12/2023,4209817-253588,598.95,TYNEDALE ROADSTONE LTD.
Neighbourhoods and Climate Change,Highways,Supplies and Services,304221,Equipment and Materials,04/12/2023,4209817-253589,"1,246.44",TYNEDALE ROADSTONE LTD.
Neighbourhoods and Climate Change,Highways,Supplies and Services,304221,Equipment and Materials,04/12/2023,4209817-253591,"1,589.14",TYNEDALE ROADSTONE LTD.
Children and Young Peoples Services,Head of Early Help Inclusion & Vulnerable Children.,Supplies and Services,344033,Telephones,04/12/2023,4209819-209930,572.70,UNIFY BUSINESS SOLUTIONS LTD.
Neighbourhoods and Climate Change,Highways,Third Party Payments,430100,Rendered by Private Contractors,04/12/2023,4209822-0005037658,"7,740.00",VISION TECHNIQUES (UK) LTD.
Regeneration Economy and Growth,Culture Sport and Tourism,Supplies and Services,384199,Miscellaneous Expenses,04/12/2023,4209824-6453,"1,233.00",VORTEX LIGHTING LTD.
Children and Young Peoples Services,Head of Education and Skills,Transport,230006,Contract Hire,04/12/2023,4209827-7816,544.50,WEARDALE PRIVATE HIRE.
Adult and Health Services,Public Health CC0450,Supplies and Services,336005,Advertising E336,04/12/2023,4209533-INV-1093,"1,800.00",BORN & BRED LTD T/A STUDIO INTER.
Neighbourhoods and Climate Change,Community Protection,Third Party Payments,430100,Rendered by Private Contractors,04/12/2023,4209541-1013,"1,454.00",CAMPBELL ROOFING AND BUILDING CONTRACTOR.
Children and Young Peoples Services,Head of Education and Skills,Supplies and Services,338027,Services,04/12/2023,4209545-497,722.90,CARMEL BONES EDUCATION LTD.
Neighbourhoods and Climate Change,Environmental Services,Supplies and Services,384899,Miscellaneous Expenses,04/12/2023,4209600-RES-11-2023-500,"2,340.00",EASY HIRE NORTH EAST LTD.
Children and Young Peoples Services,Head of Education and Skills,Transport,230007,Contract Hire,04/12/2023,4209620-2200,600.00,EX626 LTD.
Children and Young Peoples Services,Head of Education and Skills,Supplies and Services,372009,Subscriptions E372,04/12/2023,4209751-25547,"1,800.00",PICTURE NEWS LTD.
Regeneration Economy and Growth,Culture Sport and Tourism,Premises,150005,Apportioned Exps of Operational Blds,04/12/2023,4209757-LINV551082,618.00,PRIMARY HEALTH INVESTMENT PROPERTIES LTD.
Neighbourhoods and Climate Change,Highways,Third Party Payments,460224,Contract Payments,05/12/2023,4210418-30403,"149,105.18",ARM PIPETEK LTD.
Adult and Health Services,Head of Adults,Third Party Payments,478151,Purchase of Care,05/12/2023,4210420-D720004982,"5,185.28",AUTISM CARE UK (4) LTD.
Adult and Health Services,Head of Adults,Third Party Payments,478151,Purchase of Care,05/12/2023,4210420-D720004983,"5,185.28",AUTISM CARE UK (4) LTD.
Children and Young Peoples Services,Head of Education and Skills,Transport,230007,Contract Hire,05/12/2023,4210425-41554,"1,273.75",BLUELINE SOUTH INCORPORATING NAVIGATION TAXIS T/A BLUELINE TAXIS.
Neighbourhoods and Climate Change,Highways,Supplies and Services,304221,Equipment and Materials,05/12/2023,4210426-21554960,"1,469.92",BREEDON TRADING LTD.
Regeneration Economy and Growth,Culture Sport and Tourism,Supplies and Services,384199,Miscellaneous Expenses,05/12/2023,4210427-19719,"64,750.25",BROWN & ILLINGWORTH LTD.
Adult and Health Services,Commissioning inc Supporting People,Third Party Payments,479101,Purchase of Care,05/12/2023,4210429-INV048068,"25,416.67",CAREHOME SELECTION LTD (CHS HEALTHCARE).
Adult and Health Services,Commissioning inc Supporting People,Third Party Payments,479101,Purchase of Care,05/12/2023,4210429-INV048349,"25,416.67",CAREHOME SELECTION LTD (CHS HEALTHCARE).
Adult and Health Services,Commissioning inc Supporting People,Third Party Payments,479101,Purchase of Care,05/12/2023,4210429-INV048350,"7,000.00",CAREHOME SELECTION LTD (CHS HEALTHCARE).
Adult and Health Services,Commissioning inc Supporting People,Third Party Payments,479101,Purchase of Care,05/12/2023,4210429-INV050746,"7,000.00",CAREHOME SELECTION LTD (CHS HEALTHCARE).
Adult and Health Services,Commissioning inc Supporting People,Third Party Payments,479102,Purchase of Care,05/12/2023,4210430-1437,"41,750.00",CHANGING LIVES LEARNING TRUST.
Adult and Health Services,Head of Adults,Third Party Payments,478151,Purchase of Care,05/12/2023,4210435-421R210431,"1,055.43",COMMUNITY INTEGRATED CARE LTD.
Regeneration Economy and Growth,Corporate Property and Land,Third Party Payments,430100,Rendered by Private Contractors,05/12/2023,4210436-5123,883.08,COMPLETE DETECTION SYSTEMS LTD (CDS).
Children and Young Peoples Services,Head of Education and Skills,Transport,230008,Contract Hire,05/12/2023,4210444-111963,"1,110.00",CROFT BUSINESS SERVICES LTD T/A CROFT TRAVEL.
Neighbourhoods and Climate Change,Community Protection,Supplies and Services,338027,Services,05/12/2023,4210448-4389202,700.00,DARLINGTON BOROUGH COUNCIL.
Resources BK0010,Legal & Democratic Services,Supplies and Services,338042,Services,05/12/2023,4210451-387302/INVAD0227,"2,150.00",DERE STREET BARRISTERS.
Resources BK0010,Legal & Democratic Services,Supplies and Services,338042,Services,05/12/2023,4210451-388444/INVAD0228,"1,825.00",DERE STREET BARRISTERS.
Adult and Health Services,Public Health CC0450,Third Party Payments,460802,Contract Payments,05/12/2023,4210452-HEALTHCHECKS/027,"39,738.00",DERWENTSIDE HEALTHCARE LTD.
Neighbourhoods and Climate Change,Environmental Services,Supplies and Services,384199,Miscellaneous Expenses,05/12/2023,4210453-INV-1856,"59,400.00",DINSDALE MOORLAND SPECIALISTS.
Regeneration Economy and Growth,Corporate Property and Land,Supplies and Services,304221,Equipment and Materials,05/12/2023,4210458-059-325455,"2,850.70",EDMUNDSON ELECTRICAL LTD.
Children and Young Peoples Services,Head of Education and Skills,Supplies and Services,384199,Miscellaneous Expenses,05/12/2023,4210461-003,"1,100.00",ELEGANT TOUCH.
Neighbourhoods and Climate Change,Environmental Services,Transport,230005,Contract Hire,05/12/2023,4210462-13001946860,"1,724.36",ENTERPRISE FLEX-E-RENT T/A BURNT TREE GROUP LTD.
Adult and Health Services,Head of Adults,Construction work A908,908105,Construction work,05/12/2023,4210474-INV0196641,"1,140.00",GVAV LTD T/A AUDIO VISUAL SOLUTIONS.
Regeneration Economy and Growth,Corporate Property and Land,Third Party Payments,430100,Rendered by Private Contractors,05/12/2023,4210475-SW1045,538.53,H MALONE & SONS LTD.
Adult and Health Services,Public Health CC0450,Third Party Payments,460803,Contract Payments,05/12/2023,4210480-SI-HK-001589,"3,448.80",HUMANKIND CHARITY.
Regeneration Economy and Growth,Corporate Property and Land,Supplies and Services,384199,Miscellaneous Expenses,05/12/2023,4210482-077614,"10,000.00",HYDROCK CONSULTANTS LTD.
Neighbourhoods and Climate Change,Highways,Supplies and Services,304358,Equipment and Materials,05/12/2023,4210487-5307040,"1,286.50",JA GILSON (AGRICULTURAL CONTRACTORS) LTD.
Resources BK0010,Procurement Sales & Business Services,Supplies and Services,384150,Miscellaneous Expenses,05/12/2023,4210493-PSI-113689,"2,747.78",KAYS MEDICAL LTD.
Regeneration Economy and Growth,Culture Sport and Tourism,Supplies and Services,384199,Miscellaneous Expenses,05/12/2023,4210494-016,636.00,KEELAN SOUTHERN.
Children and Young Peoples Services,Childrens Services Operational Support,Supplies and Services,338089,Services,05/12/2023,4210495-1010/KKLL/2023/DURHAML5,"2,300.00",KINGSLEY KNIGHT LAW LTD.
Adult and Health Services,Commissioning inc Supporting People,Third Party Payments,470111,Purchase of Care,05/12/2023,4210500-LCD-FTI161970,"5,773.71",LEONARD CHESHIRE DISABILITY.
Adult and Health Services,Commissioning inc Supporting People,Third Party Payments,470111,Purchase of Care,05/12/2023,4210501-LCD-FTI158340,"7,024.41",LEONARD CHESHIRE DISABILITY.
Regeneration Economy and Growth,Culture Sport and Tourism,Supplies and Services,304259,Equipment and Materials,05/12/2023,4210502-INV05381,623.40,LIMELIGHT ENTERTAINMENT LTD.
Children and Young Peoples Services,Head of Childrens Social Care,Third Party Payments,440046,Other third party payments E440,05/12/2023,4210509-7195,"5,178.20",MAJOR RECRUITMENT LTD.*
Children and Young Peoples Services,Head of Childrens Social Care,Third Party Payments,440046,Other third party payments E440,05/12/2023,4210509-7196,"5,514.95",MAJOR RECRUITMENT LTD.*
Children and Young Peoples Services,Head of Childrens Social Care,Third Party Payments,440047,Other third party payments E440,05/12/2023,4210509-8094,"3,798.00",MAJOR RECRUITMENT LTD.*
Children and Young Peoples Services,Head of Education and Skills,Transport,230007,Contract Hire,05/12/2023,4210512-INV06/202205,"1,985.31",MARK & JOHN CHISHOLM T/A (CHEVRON).
Regeneration Economy and Growth,Corporate Property and Land,Third Party Payments,430100,Rendered by Private Contractors,05/12/2023,4210517-46929,"3,883.00",NE & C WINDOWS & DOORS LTD.
Neighbourhoods and Climate Change,Highways,Supplies and Services,338066,Services,05/12/2023,4210520-RES-11-2023-506,"42,571.56",NORTHERN GAS NETWORKS LTD.
Neighbourhoods and Climate Change,Highways,Supplies and Services,338066,Services,05/12/2023,4210520-RES-11-2023-507,"39,427.83",NORTHERN GAS NETWORKS LTD.
Children and Young Peoples Services,Head of Education and Skills,Supplies and Services,384199,Miscellaneous Expenses,05/12/2023,"4210531-DW3GRANT019-02
","1,487.73",PERCO FOODS LTD.
Neighbourhoods and Climate Change,Highways,Third Party Payments,430100,Rendered by Private Contractors,05/12/2023,4210534-6623,"7,360.62",PINKNEY BUILDING CONTRACTORS LTD.
Children and Young Peoples Services,Head of Childrens Social Care,Third Party Payments,440046,Other third party payments E440,05/12/2023,4210538-2080A,880.00,PROTECTIVE CARE GROUP LTD.
Chief Executives Office,Communications Management,Supplies and Services,332029,Printing Stationery and Gen Off Exps,05/12/2023,4210544-21327,"1,085.00",RADECAL SIGNS GRAPHICS & ADVERTISING.
Neighbourhoods and Climate Change,Environmental Services,Transport,230005,Contract Hire,05/12/2023,4210546-IV966988,"2,352.00",RIVERSIDE TRUCK RENTAL LTD (RTR).
Resources BK0010,Transactional & Customer Services,Supplies and Services,340001,Postages E340,05/12/2023,4210550-9068891512,"16,905.77",ROYAL MAIL GROUP PLC.
Regeneration Economy and Growth,Planning & Housing,Supplies and Services,364501,Grants to Voluntary Organisations,05/12/2023,4210554-RENT-7SOUTHHETTONROAD,500.00,SARAHANN CAMPION PROPERTIES.
Children and Young Peoples Services,Head of Education and Skills,Supplies and Services,384491,Miscellaneous Expenses,05/12/2023,4210555-889,600.00,SEAHAM KINDERGARTEN LTD.
Children and Young Peoples Services,Head of Education and Skills,Supplies and Services,384491,Miscellaneous Expenses,05/12/2023,4210555-890,600.00,SEAHAM KINDERGARTEN LTD.
Regeneration Economy and Growth,Corporate Property and Land,Supplies and Services,304221,Equipment and Materials,05/12/2023,4210564-0000164555A,710.41,TA PLASTIC SUPPLIES LTD.
Neighbourhoods and Climate Change,Highways,Supplies and Services,304221,Equipment and Materials,05/12/2023,4210574-249194,"3,099.40",TYNEDALE ROADSTONE LTD.
Neighbourhoods and Climate Change,Highways,Supplies and Services,304221,Equipment and Materials,05/12/2023,4210574-253590,"1,904.55",TYNEDALE ROADSTONE LTD.
Neighbourhoods and Climate Change,Environmental Services,Supplies and Services,338078,Services,05/12/2023,4210578-INV-60954,"2,503.20",VISTECH SERVICES LTD.
Neighbourhoods and Climate Change,Environmental Services,Supplies and Services,338078,Services,05/12/2023,4210578-INV-61808,"1,914.65",VISTECH SERVICES LTD.
Children and Young Peoples Services,Head of Early Help Inclusion & Vulnerable Children.,Supplies and Services,338078,Services,05/12/2023,4210578-INV-61809,"5,050.08",VISTECH SERVICES LTD.
Neighbourhoods and Climate Change,Environmental Services,Supplies and Services,338078,Services,05/12/2023,4210578-INV-61810,"1,028.10",VISTECH SERVICES LTD.
Neighbourhoods and Climate Change,Environmental Services,Supplies and Services,338078,Services,05/12/2023,4210578-INV-61811,"1,758.20",VISTECH SERVICES LTD.
Neighbourhoods and Climate Change,Environmental Services,Supplies and Services,338078,Services,05/12/2023,4210578-INV-61812,"2,503.20",VISTECH SERVICES LTD.
Regeneration Economy and Growth,Corporate Property and Land,Supplies and Services,304221,Equipment and Materials,05/12/2023,4210581-PSI-917314,"2,570.40",WATCO UK LTD.
Regeneration Economy and Growth,Business Durham,Supplies and Services,338045,Services,05/12/2023,4210585-3752325,884.00,WOMBLE BOND DICKINSON (UK) LLP.
Neighbourhoods and Climate Change,Environmental Services,Transport,215005,Running Costs of Vehicles,05/12/2023,4210588-1058769,"1,483.63",YOUR NRG LTD.
Adult and Health Services,Head of Adults,Third Party Payments,470101,Purchase of Care,05/12/2023,4210447-I-21-2903366,"4,339.31",DAIRY LANE CARE CENTRE.
Regeneration Economy and Growth,Corporate Property and Land,Third Party Payments,430100,Rendered by Private Contractors,05/12/2023,4210575-SIN000041,"13,785.00",UCS RENEWABLES LTD T/A UCS TECHNOLOGIES.
Neighbourhoods and Climate Change,Environmental Services,Supplies and Services,384199,Miscellaneous Expenses,06/12/2023,4210627-BH/SG/1163,"1,050.00",REDACTED - PAYMENT TO INDIVIDUAL
Children and Young Peoples Services,Head of Childrens Social Care,Supplies and Services,338066,Services,06/12/2023,4210672-INV-1387,840.85,REDACTED - PAYMENT TO INDIVIDUAL
Children and Young Peoples Services,Head of Education and Skills,Supplies and Services,304259,Equipment and Materials,06/12/2023,4210753-1167067452,"1,208.55",KONICA MINOLTA BUSINESS SOLUTIONS (UK) LTD.
Regeneration Economy and Growth,Culture Sport and Tourism,Supplies and Services,338047,Services,06/12/2023,4210626-230005,"2,500.00",REDACTED - PAYMENT TO INDIVIDUAL
Regeneration Economy and Growth,Culture Sport and Tourism,Supplies and Services,338047,Services,06/12/2023,4210639-02-29/11/23,"2,500.00",REDACTED - PAYMENT TO INDIVIDUAL
Regeneration Economy and Growth,Corporate Property and Land,Supplies and Services,304221,Equipment and Materials,06/12/2023,4210713-558565,507.99,REDACTED - PAYMENT TO INDIVIDUAL
Neighbourhoods and Climate Change,Environmental Services,Supplies and Services,338066,Services,06/12/2023,4210736-2324-30,910.00,REDACTED - PAYMENT TO INDIVIDUAL
Children and Young Peoples Services,Head of Education and Skills,Transport,230007,Contract Hire,06/12/2023,4210784-OCT23/4023,"4,200.00",REDACTED - PAYMENT TO INDIVIDUAL
Children and Young Peoples Services,Head of Education and Skills,Transport,230003,Contract Hire,06/12/2023,4210784-OCT23/4024,"2,450.00",REDACTED - PAYMENT TO INDIVIDUAL
Children and Young Peoples Services,Head of Childrens Social Care,Supplies and Services,338042,Services,06/12/2023,4210789-9551,979.17,REDACTED - PAYMENT TO INDIVIDUAL
Neighbourhoods and Climate Change,Environmental Services,Supplies and Services,338066,Services,06/12/2023,4210793-FFF5,"2,600.00",REDACTED - PAYMENT TO INDIVIDUAL
Neighbourhoods and Climate Change,Environmental Services,Third Party Payments,430100,Rendered by Private Contractors,06/12/2023,4210820-01189,620.00,REDACTED - PAYMENT TO INDIVIDUAL
Neighbourhoods and Climate Change,Environmental Services,Supplies and Services,328041,Clothing uniforms and laundry E328,06/12/2023,4210590-39714,710.95,1ST COVERALL COMPANY LTD.
Neighbourhoods and Climate Change,Environmental Services,Supplies and Services,328041,Clothing uniforms and laundry E328,06/12/2023,4210590-39715,710.95,1ST COVERALL COMPANY LTD.
Children and Young Peoples Services,Head of Education and Skills,Construction work A908,908105,Construction work,06/12/2023,4210592-DEMOLITION-GREENFIELD,"60,046.65",A BUCKLER (HAULAGE) LTD.
Neighbourhoods and Climate Change,Highways,Supplies and Services,304221,Equipment and Materials,06/12/2023,4210593-014160,"2,593.92",A HILL & SONS LTD.
Adult and Health Services,Public Health CC0450,Third Party Payments,460803,Contract Payments,06/12/2023,4210598-INV08451,"3,500.00",ADFERIAD RECOVERY LTD.
Neighbourhoods and Climate Change,Highways,Supplies and Services,304221,Equipment and Materials,06/12/2023,4210600-35336134,"1,114.43",AGGREGATE INDUSTRIES UK LTD.
Neighbourhoods and Climate Change,Environmental Services,Supplies and Services,304259,Equipment and Materials,06/12/2023,4210603-425906479,509.45,AIR PRODUCTS PLC.
Adult and Health Services,Head of Adults,Supplies and Services,384616,Miscellaneous Expenses,06/12/2023,4210607-200185102,"7,980.63",ANCHOR HANOVER GROUP.
Adult and Health Services,Head of Adults,Supplies and Services,384616,Miscellaneous Expenses,06/12/2023,4210607-200185105,"3,852.00",ANCHOR HANOVER GROUP.
Adult and Health Services,Head of Adults,Supplies and Services,384616,Miscellaneous Expenses,06/12/2023,4210607-200185106,804.20,ANCHOR HANOVER GROUP.
Adult and Health Services,Head of Adults,Supplies and Services,384616,Miscellaneous Expenses,06/12/2023,4210607-200185107,950.25,ANCHOR HANOVER GROUP.
Adult and Health Services,Head of Adults,Supplies and Services,384616,Miscellaneous Expenses,06/12/2023,4210607-200185109,"5,354.24",ANCHOR HANOVER GROUP.
Regeneration Economy and Growth,Corporate Property and Land,Third Party Payments,430100,Rendered by Private Contractors,06/12/2023,4210609-0000039342,910.00,AQUAJET DRAIN CLEANING LTD.
Regeneration Economy and Growth,Culture Sport and Tourism,Supplies and Services,338047,Services,06/12/2023,4210615-ICL00244,"6,000.00",BALLET BLACK.
Regeneration Economy and Growth,Corporate Property and Land,Third Party Payments,430100,Rendered by Private Contractors,06/12/2023,4210617-SI-7258,"4,886.00",BELL CONTROL SOLUTIONS LTD.
Neighbourhoods and Climate Change,Environmental Services,Transport,210057,Repair and Maintenance of Vehicles,06/12/2023,4210618-35256917,"1,113.99",BELL TRUCK SALES LTD T/A BELL TRUCK & VAN.
Neighbourhoods and Climate Change,Environmental Services,Third Party Payments,430100,Rendered by Private Contractors,06/12/2023,4210618-36158052,"1,298.70",BELL TRUCK SALES LTD T/A BELL TRUCK & VAN.
Neighbourhoods and Climate Change,Environmental Services,Third Party Payments,430100,Rendered by Private Contractors,06/12/2023,4210619-36158083,836.00,BELL TRUCK SALES LTD T/A BELL TRUCK & VAN.
Neighbourhoods and Climate Change,Environmental Services,Third Party Payments,430100,Rendered by Private Contractors,06/12/2023,4210619-46066865,564.50,BELL TRUCK SALES LTD T/A BELL TRUCK & VAN.
Adult and Health Services,Head of Adults,Supplies and Services,342053,Computers and Communications,06/12/2023,4210630-1198673,"1,570.77",BYTES SOFTWARE SERVICES LTD.
Adult and Health Services,Commissioning inc Supporting People,Third Party Payments,479101,Purchase of Care,06/12/2023,4210632-INV052260,"6,750.00",CAREHOME SELECTION LTD (CHS HEALTHCARE).
Children and Young Peoples Services,Head of Education and Skills,Central Support and Other Recharges,615208,Support Services,06/12/2023,4210633-RES-12-2023-017,866.89,CARMEL COLLEGE.*
Children and Young Peoples Services,Head of Childrens Social Care,Third Party Payments,440047,Other third party payments E440,06/12/2023,4210635-26094,"7,432.32",CASTLE VIEW GROUP TRAINING.
Children and Young Peoples Services,Head of Childrens Social Care,Third Party Payments,440047,Other third party payments E440,06/12/2023,4210635-26255,"6,105.12",CASTLE VIEW GROUP TRAINING.
Regeneration Economy and Growth,Corporate Property and Land,Third Party Payments,430100,Rendered by Private Contractors,06/12/2023,4210636-11899,693.82,CATHEDRAL LOCK & SAFE SERVICES LTD.
Regeneration Economy and Growth,Culture Sport and Tourism,Supplies and Services,304259,Equipment and Materials,06/12/2023,4210636-12067/2023,"1,973.00",CATHEDRAL LOCK & SAFE SERVICES LTD.
Children and Young Peoples Services,Head of Childrens Social Care,Supplies and Services,384500,Miscellaneous Expenses,06/12/2023,4210641-INV-9172,"1,014.00",CHROMA THERAPIES LTD.
Children and Young Peoples Services,Head of Childrens Social Care,Supplies and Services,384500,Miscellaneous Expenses,06/12/2023,4210642-2837,"1,800.00",CHRYSALIS ASSOCIATES LTD.
Regeneration Economy and Growth,Corporate Property and Land,Third Party Payments,430100,Rendered by Private Contractors,06/12/2023,4210646-CC146026,502.50,CITY CLEAN NORTHERN LTD.
Children and Young Peoples Services,Head of Early Help Inclusion & Vulnerable Children.,Premises,145009,Cleaning and Domestic Supplies,06/12/2023,4210646-CC146034,675.00,CITY CLEAN NORTHERN LTD.
Regeneration Economy and Growth,Corporate Property and Land,Supplies and Services,304221,Equipment and Materials,06/12/2023,4210647-2852ABX722,"1,838.85",CITY PLUMBING SUPPLIES HOLDINGS LTD.
Adult and Health Services,Public Health CC0450,Third Party Payments,460803,Contract Payments,06/12/2023,4210652-3910022703,"6,448.00",COUNTY DURHAM & DARLINGTON NHS FOUNDATION TRUST (CDDFT).
Adult and Health Services,Commissioning inc Supporting People,Third Party Payments,440999,Other third party payments E440,06/12/2023,4210652-RES-12-2023-069,"2,500,000.00",COUNTY DURHAM & DARLINGTON NHS FOUNDATION TRUST (CDDFT).
Neighbourhoods and Climate Change,Highways,Third Party Payments,430127,Rendered by Private Contractors,06/12/2023,4210658-INV-0292,"1,487.50",D & L HOPPS.
Adult and Health Services,Head of Adults,Third Party Payments,478151,Purchase of Care,06/12/2023,4210662-INV-1708,"1,972.46",DEACONSTAR LTD.
Adult and Health Services,Head of Adults,Third Party Payments,478151,Purchase of Care,06/12/2023,4210662-INV-1709,"3,447.21",DEACONSTAR LTD.
Neighbourhoods and Climate Change,Environmental Services,Transport,210057,Repair and Maintenance of Vehicles,06/12/2023,4210665-96449983,"1,106.90",DENNIS EAGLE LTD T/A TERBERG MATEC (UK) LTD.
Regeneration Economy and Growth,Corporate Property and Land,Third Party Payments,430100,Rendered by Private Contractors,06/12/2023,4210667-DGJSDCCWSS261123,"1,817.32",DG JOINERY SOLUTIONS LTD.
Regeneration Economy and Growth,Corporate Property and Land,Third Party Payments,430100,Rendered by Private Contractors,06/12/2023,4210667-DGJSDCCWSS2611232,"4,018.76",DG JOINERY SOLUTIONS LTD.
Neighbourhoods and Climate Change,Community Protection,Supplies and Services,338099,Services,06/12/2023,4210675-HIRESEPT23,"1,470.00",DURHAM ST NICHOLAS PCC.
Neighbourhoods and Climate Change,Environmental Services,Third Party Payments,430100,Rendered by Private Contractors,06/12/2023,4210678-R050354,"1,350.50",ECON ENGINEERING LTD.
Dedicated Schools Grant BG0015,Dedicated Schools Grant CG0050,Central Support and Other Recharges,615208,Support Services,06/12/2023,4210679-RES-12-2023-019,"2,600.68",EDEN LEARNING TRUST T/A FERRYHILL BUSINESS & ENTERPRISE COLLEGE.
Dedicated Schools Grant BG0015,Dedicated Schools Grant CG0050,Central Support and Other Recharges,615208,Support Services,06/12/2023,4210680-RES-12-2023-018,577.93,EDEN LEARNING TRUST T/A WOODHAM ACADEMY.
Regeneration Economy and Growth,Corporate Property and Land,Supplies and Services,304221,Equipment and Materials,06/12/2023,4210681-059-328166,"1,079.00",EDMUNDSON ELECTRICAL LTD.
Neighbourhoods and Climate Change,Environmental Services,Supplies and Services,304221,Equipment and Materials,06/12/2023,4210689-6945290,"19,092.48",ESE WORLD LTD.
Adult and Health Services,Head of Adults,Third Party Payments,478151,Purchase of Care,06/12/2023,4210692-ECS717-23,591.43,ESSENTIAL CARE & SUPPORT LTD.
Adult and Health Services,Head of Adults,Third Party Payments,478151,Purchase of Care,06/12/2023,4210692-ECS721-23,"1,242.00",ESSENTIAL CARE & SUPPORT LTD.
Regeneration Economy and Growth,Transport and Contracted Services,Third Party Payments,430100,Rendered by Private Contractors,06/12/2023,4210694-INV-3136,"20,308.64",EVENT TRAFFIC CONTROL LTD.
Regeneration Economy and Growth,Transport and Contracted Services,Third Party Payments,430100,Rendered by Private Contractors,06/12/2023,4210694-INV-3144,"85,860.50",EVENT TRAFFIC CONTROL LTD.
Children and Young Peoples Services,Head of Early Help Inclusion & Vulnerable Children.,Third Party Payments,486029,Service level agreements E486,06/12/2023,4210699-OCT23-0004,"19,042.50",FAMILY ACTION T/A PAC-UK LTD.
Neighbourhoods and Climate Change,Environmental Services,Transport,210057,Repair and Maintenance of Vehicles,06/12/2023,4210700-445789,"1,246.06",FORD & SLATER LTD.
Regeneration Economy and Growth,Culture Sport and Tourism,Premises,145023,Cleaning and Domestic Supplies,06/12/2023,4210715-06/247334,"1,368.84",GREENHAM TRADING LTD.
Neighbourhoods and Climate Change,Environmental Services,Supplies and Services,338099,Services,06/12/2023,4210718-RES-12-2023-030,"26,211.75",HARTLEPOOL BOROUGH COUNCIL.
Regeneration Economy and Growth,Corporate Property and Land,Supplies and Services,304221,Equipment and Materials,06/12/2023,4210720-01017895,"1,673.12",HEATSEAM LTD T/A LIKEWISE NORTH EAST.
Neighbourhoods and Climate Change,Highways,Third Party Payments,430100,Rendered by Private Contractors,06/12/2023,4210723-3586,"4,800.00",HIGHWAY CONSTRUCTION SERVICES LTD.
Neighbourhoods and Climate Change,Highways,Third Party Payments,430100,Rendered by Private Contractors,06/12/2023,4210723-3587,"8,436.00",HIGHWAY CONSTRUCTION SERVICES LTD.
Resources BK0010,Corporate Finance & Commercial Services,Supplies and Services,338066,Services,06/12/2023,4210728-6075,"1,225.00",HW CONTROLS & ASSURANCE LTD T/A VALIDERA.
Regeneration Economy and Growth,Corporate Property and Land,Premises,108099,Service Repairs and Maintenance,06/12/2023,4210738-29727,"18,571.36",JC MAINTENANCE SERVICES LTD.
Regeneration Economy and Growth,Business Durham,Construction work A908,908105,Construction work,06/12/2023,4210749-10325624,"4,931,143.96",KIER CONSTRUCTION LTD - SCOTLAND
Neighbourhoods and Climate Change,Environmental Services,Third Party Payments,430100,Rendered by Private Contractors,06/12/2023,4210759-DFE8026922,"1,250.00",LINK TREASURY SERVICES LTD.
Children and Young Peoples Services,Head of Childrens Social Care,Supplies and Services,338066,Services,06/12/2023,4210765-9569,648.50,MAJOR RECRUITMENT LTD.*
Children and Young Peoples Services,Head of Education and Skills,Transport,230007,Contract Hire,06/12/2023,4210768-INV07-2023-05,"1,609.72",MARK & JOHN CHISHOLM T/A (CHEVRON).
Regeneration Economy and Growth,Planning & Housing,Third Party Payments,440999,Other third party payments E440,06/12/2023,4210775-5410247,770.00,MIDDLESBROUGH BOROUGH COUNCIL.
Regeneration Economy and Growth,Culture Sport and Tourism,Supplies and Services,324001,Provisions E324,06/12/2023,4210779-907370827,733.55,MOLSON COORS BREWING COMPANY (UK) LTD.
Neighbourhoods and Climate Change,Environmental Services,Third Party Payments,430100,Rendered by Private Contractors,06/12/2023,4210781-54688,"2,400.00",MOTOR FACTORS LTD T/A ENGINE SERVICES LTD.
Adult and Health Services,Commissioning inc Supporting People,Third Party Payments,440999,Other third party payments E440,06/12/2023,4210794-60792,"5,756.70",NATIONAL YOUTH ADVOCACY SERVICE.
Adult and Health Services,Commissioning inc Supporting People,Third Party Payments,440999,Other third party payments E440,06/12/2023,4210794-61099,"5,062.55",NATIONAL YOUTH ADVOCACY SERVICE.
Regeneration Economy and Growth,Corporate Property and Land,Third Party Payments,430100,Rendered by Private Contractors,06/12/2023,4210796-46535,"236,130.00",NE & C WINDOWS & DOORS LTD.
Regeneration Economy and Growth,Corporate Property and Land,Third Party Payments,430100,Rendered by Private Contractors,06/12/2023,4210796-46945,"3,577.65",NE & C WINDOWS & DOORS LTD.
Regeneration Economy and Growth,Corporate Property and Land,Third Party Payments,430100,Rendered by Private Contractors,06/12/2023,4210796-47004,703.00,NE & C WINDOWS & DOORS LTD.
Regeneration Economy and Growth,Corporate Property and Land,Third Party Payments,430100,Rendered by Private Contractors,06/12/2023,4210796-47092,"4,728.00",NE & C WINDOWS & DOORS LTD.
Regeneration Economy and Growth,Corporate Property and Land,Third Party Payments,430100,Rendered by Private Contractors,06/12/2023,4210796-47096,"2,382.00",NE & C WINDOWS & DOORS LTD.
Regeneration Economy and Growth,Corporate Property and Land,Third Party Payments,430100,Rendered by Private Contractors,06/12/2023,4210796-47100,"2,834.00",NE & C WINDOWS & DOORS LTD.
Regeneration Economy and Growth,Corporate Property and Land,Third Party Payments,430100,Rendered by Private Contractors,06/12/2023,4210796-47106,"6,941.00",NE & C WINDOWS & DOORS LTD.
Neighbourhoods and Climate Change,Environmental Services,Transport,210057,Repair and Maintenance of Vehicles,06/12/2023,4210797-INV93602,946.02,NE TRUCK SPARES LTD (NETS).
Neighbourhoods and Climate Change,Environmental Services,Stock A926,926004,Stock,06/12/2023,4210797-INVHE82747,533.66,NE TRUCK SPARES LTD (NETS).
Neighbourhoods and Climate Change,Environmental Services,Stock A926,926004,Stock,06/12/2023,4210797-INVHEIMP2216,630.77,NE TRUCK SPARES LTD (NETS).
Dedicated Schools Grant BG0015,Dedicated Schools Grant CG0050,Central Support and Other Recharges,615208,Support Services,06/12/2023,4210798-RES-12-2023-020,"11,558.56",NEW COLLEGE DURHAM ACADEMIES TRUST.
Children and Young Peoples Services,Head of Childrens Social Care,Third Party Payments,486041,Service level agreements E486,06/12/2023,4210800-7441000816,"130,000.00",NHS NORTH EAST & NORTH CUMBRIA ICB.
Neighbourhoods and Climate Change,Environmental Services,Third Party Payments,430100,Rendered by Private Contractors,06/12/2023,4210805-21918463,"5,491.87",NORTH EAST TRUCK & VAN LTD.
Neighbourhoods and Climate Change,Environmental Services,Third Party Payments,430100,Rendered by Private Contractors,06/12/2023,4210805-21918539,"1,634.75",NORTH EAST TRUCK & VAN LTD.
Neighbourhoods and Climate Change,Environmental Services,Construction work A908,908105,Construction work,06/12/2023,4210808-DI20417124,"65,108.63",NORTHERN POWERGRID (NORTHEAST) LTD.
Adult and Health Services,Head of Adults,Supplies and Services,308011,Furniture,06/12/2023,4210813-0000200859,928.21,ONLINE ERGONOMICS LTD.
Neighbourhoods and Climate Change,Highways,Stock A926,926900,Stock in hand-Inventory system,06/12/2023,4210817-XL310230,"2,500.00",PARK ELECTRICAL DISTRIBUTORS LTD.
Neighbourhoods and Climate Change,Environmental Services,Transport,210057,Repair and Maintenance of Vehicles,06/12/2023,4210818-24932141,617.00,PARTSPLUS.
Neighbourhoods and Climate Change,Environmental Services,Supplies and Services,304252,Equipment and Materials,06/12/2023,4210824-106094,"1,247.50",PETERLEE FIRE CO LTD.
Neighbourhoods and Climate Change,Highways,Third Party Payments,430100,Rendered by Private Contractors,06/12/2023,4210829-6632,"7,360.62",PINKNEY BUILDING CONTRACTORS LTD.
Neighbourhoods and Climate Change,Highways,Third Party Payments,430100,Rendered by Private Contractors,06/12/2023,4210829-6633,"4,056.00",PINKNEY BUILDING CONTRACTORS LTD.
Adult and Health Services,Head of Adults,Third Party Payments,479102,Purchase of Care,06/12/2023,4210834-INV-0232,"5,527.40",POSITIVE CARE & SUPPORT LTD.
Adult and Health Services,Head of Adults,Third Party Payments,479102,Purchase of Care,06/12/2023,4210834-INV-0233,"2,921.10",POSITIVE CARE & SUPPORT LTD.
Chief Executives Office,Communications Management,Supplies and Services,332029,Printing Stationery and Gen Off Exps,06/12/2023,4210835-723420,"1,420.00",POTTS PRINTERS LTD.
Neighbourhoods and Climate Change,Partnerships & Community Engagement Div.,Supplies and Services,384965,Miscellaneous Expenses,06/12/2023,4210838-180035,800.00,PREMIER TRAFFIC MANAGEMENT LTD.
Adult and Health Services,Head of Adults,Supplies and Services,338089,Services,06/12/2023,4210839-6597,"1,860.00",PRICE TRAINING LTD.
Children and Young Peoples Services,Head of Education and Skills,Third Party Payments,410037,Rendered by Other Local Authorities,06/12/2023,4210841-51816187,907.32,PROTOCOL EDUCATION LTD.*
Neighbourhoods and Climate Change,Highways,Third Party Payments,430100,Rendered by Private Contractors,06/12/2023,4210842-15406,"1,679.18",QUANTUM POWER CONNECTIONS LTD.
Chief Executives Office,Communications Management,Supplies and Services,332029,Printing Stationery and Gen Off Exps,06/12/2023,4210847-21344,"1,848.00",RADECAL SIGNS GRAPHICS & ADVERTISING.
Neighbourhoods and Climate Change,Environmental Services,Transport,210057,Repair and Maintenance of Vehicles,06/12/2023,4210851-714223,"1,633.27",RICKERBY LTD.
Regeneration Economy and Growth,Planning & Housing,Supplies and Services,384999,Miscellaneous Expenses,06/12/2023,4210859-13/11/23,"1,500.00",SARAHANN CAMPION PROPERTIES.
Regeneration Economy and Growth,Planning & Housing,Supplies and Services,364501,Grants to Voluntary Organisations,06/12/2023,4210859-DEPOSIT-48CONNISTONROAD,500.00,SARAHANN CAMPION PROPERTIES.
Neighbourhoods and Climate Change,Environmental Services,Third Party Payments,430100,Rendered by Private Contractors,06/12/2023,4210860-2024.1000002028,758.12,SCARAB SWEEPERS LTD.
Children and Young Peoples Services,Head of Education and Skills,Transport,230007,Contract Hire,06/12/2023,4210865-0605,"1,825.00",SHAWS OF DURHAM COACH HIRE.
Neighbourhoods and Climate Change,Highways,Stock A926,926900,Stock in hand-Inventory system,06/12/2023,4210870-SI23012862,631.80,SOLON SECURITY LTD.
Adult and Health Services,Public Health CC0450,Third Party Payments,460803,Contract Payments,06/12/2023,4210871-D0047525,"10,491.00",SOUTH TEES HOSPITALS NHS FOUNDATION TRUST.
Adult and Health Services,Public Health CC0450,Third Party Payments,460803,Contract Payments,06/12/2023,4210871-D0047638,"10,491.00",SOUTH TEES HOSPITALS NHS FOUNDATION TRUST.
Children and Young Peoples Services,Head of Education and Skills,Transport,230034,Contract Hire,06/12/2023,4210873-09247,"3,673.67",STANLEY TRAVEL (NORTH EAST) LTD.
Regeneration Economy and Growth,Corporate Property and Land,Third Party Payments,430100,Rendered by Private Contractors,06/12/2023,4210880-180946,"2,185.00",SUPATINT LTD T/A SUPATINT WINDOW FILMS & BLINDS.
Regeneration Economy and Growth,Corporate Property and Land,Supplies and Services,304221,Equipment and Materials,06/12/2023,4210881-1101399,"19,822.86",T CROSSLING & CO LTD.
Neighbourhoods and Climate Change,Highways,Supplies and Services,304221,Equipment and Materials,06/12/2023,4210882-9047725807,804.00,TARMAC TRADING LTD.
Neighbourhoods and Climate Change,Highways,Stock A926,926900,Stock in hand-Inventory system,06/12/2023,4210882-9047725809,"2,168.06",TARMAC TRADING LTD.
Regeneration Economy and Growth,Culture Sport and Tourism,Supplies and Services,304259,Equipment and Materials,06/12/2023,4210884-2370016012,"14,835.00",TECHNOGYM UK LTD.
Neighbourhoods and Climate Change,Highways,Stock A926,926900,Stock in hand-Inventory system,06/12/2023,4210894-115525,"5,612.40",TOTAL RENTAL SOLUTIONS LTD.
Regeneration Economy and Growth,Planning & Housing,Third Party Payments,440999,Other third party payments E440,06/12/2023,4210895-CD970038963,"38,337.64",TUNSTALL HEALTHCARE (UK) LTD.
Neighbourhoods and Climate Change,Highways,Supplies and Services,304221,Equipment and Materials,06/12/2023,4210897-253688,"1,481.86",TYNEDALE ROADSTONE LTD.
Neighbourhoods and Climate Change,Highways,Supplies and Services,304221,Equipment and Materials,06/12/2023,4210897-253689,"1,621.27",TYNEDALE ROADSTONE LTD.
Neighbourhoods and Climate Change,Highways,Supplies and Services,304221,Equipment and Materials,06/12/2023,4210897-253690,740.00,TYNEDALE ROADSTONE LTD.
Neighbourhoods and Climate Change,Highways,Supplies and Services,304221,Equipment and Materials,06/12/2023,4210897-253691,"1,133.70",TYNEDALE ROADSTONE LTD.
Neighbourhoods and Climate Change,Highways,Supplies and Services,304221,Equipment and Materials,06/12/2023,4210897-253692,"1,195.70",TYNEDALE ROADSTONE LTD.
Regeneration Economy and Growth,Culture Sport and Tourism,Supplies and Services,384199,Miscellaneous Expenses,06/12/2023,4210898-DCC131123,650.00,TYNESIGHT PHOTOGRAPHIC SERVICES.
Children and Young Peoples Services,Head of Education and Skills,Transport,230006,Contract Hire,06/12/2023,4210904-87-OCT23,"1,035.96",WALTONS TAXIS.
Neighbourhoods and Climate Change,Highways,Supplies and Services,304221,Equipment and Materials,06/12/2023,4210905-202350275,"16,458.00",WEMO-TEC UK LTD.
Children and Young Peoples Services,Head of Early Help Inclusion & Vulnerable Children.,Third Party Payments,410037,Rendered by Other Local Authorities,06/12/2023,4210908-0611,"1,755.00",WORLD ALTERNATIVE EDUCATION LTD.
Neighbourhoods and Climate Change,Environmental Services,Transport,215023,Running Costs of Vehicles,06/12/2023,4210910-1024011,570.00,YOUR NRG LTD.
Neighbourhoods and Climate Change,Environmental Services,Transport,215023,Running Costs of Vehicles,06/12/2023,4210910-1055890,510.00,YOUR NRG LTD.
Neighbourhoods and Climate Change,Environmental Services,Transport,215005,Running Costs of Vehicles,06/12/2023,4210910-1058909,"16,344.77",YOUR NRG LTD.
Neighbourhoods and Climate Change,Environmental Services,Transport,210057,Repair and Maintenance of Vehicles,06/12/2023,4210602-INV-684,650.00,AIM STRAIGHT ALIGNMENTS LTD.
Regeneration Economy and Growth,Business Durham,Supplies and Services,338066,Services,06/12/2023,4210656-INV-1981,"1,565.00",CREATIVE LOGISTIX SOLUTIONS LTD.
Children and Young Peoples Services,Head of Education and Skills,Supplies and Services,352001,Conference Expenses,06/12/2023,4210721-23/5203,"9,693.00",HEMPSALLS EARLY YEARS & CHILDCARE MATTERS.*
Children and Young Peoples Services,Head of Education and Skills,Supplies and Services,384199,Miscellaneous Expenses,06/12/2023,4210795-INV-0287,"1,500.00",NATIONAL YOUTH JAZZ ORCHESTRA LTD.
Regeneration Economy and Growth,Culture Sport and Tourism,Supplies and Services,338047,Services,06/12/2023,4210828-237675,611.88,PIECE OF MAGIC ENTERTAINMENT.
Regeneration Economy and Growth,Culture Sport and Tourism,Supplies and Services,338047,Services,07/12/2023,4211383-60259008,768.98,STUDIOCANAL LTD.
Regeneration Economy and Growth,Culture Sport and Tourism,Supplies and Services,304259,Equipment and Materials,07/12/2023,4210936-3080142532,620.93,REDACTED - PAYMENT TO INDIVIDUAL
Children and Young Peoples Services,Head of Childrens Social Care,Transport,230005,Contract Hire,07/12/2023,4210944-1765,"4,853.30",REDACTED - PAYMENT TO INDIVIDUAL
Adult and Health Services,Adults Excluded,Supplies and Services,384999,Miscellaneous Expenses,07/12/2023,4210965-801,775.00,REDACTED - PAYMENT TO INDIVIDUAL
Neighbourhoods and Climate Change,Environmental Services,Supplies and Services,384700,Miscellaneous Expenses,07/12/2023,4211057-RES-12-2023-074,670.11,REDACTED - PAYMENT TO INDIVIDUAL
Children and Young Peoples Services,Head of Childrens Social Care,Supplies and Services,338044,Services,07/12/2023,4211058-390,769.50,REDACTED - PAYMENT TO INDIVIDUAL
Neighbourhoods and Climate Change,Environmental Services,Construction work A908,908105,Construction work,07/12/2023,4211099-00269,"2,480.00",REDACTED - PAYMENT TO INDIVIDUAL
Dedicated Schools Grant BG0015,DSG Early Years Block,Transfer Payments,510030,School Children,07/12/2023,4211178-38531,"1,633.87",REDACTED - PAYMENT TO INDIVIDUAL
Regeneration Economy and Growth,Culture Sport and Tourism,Supplies and Services,338047,Services,07/12/2023,4211181-JT23/MS0026,"3,500.00",REDACTED - PAYMENT TO INDIVIDUAL
Dedicated Schools Grant BG0015,DSG Early Years Block,Transfer Payments,510030,School Children,07/12/2023,4211195-38585,"1,061.57",REDACTED - PAYMENT TO INDIVIDUAL
Children and Young Peoples Services,Head of Education and Skills,Transport,230013,Contract Hire,07/12/2023,4211245-150-2023,"2,134.00",REDACTED - PAYMENT TO INDIVIDUAL
Children and Young Peoples Services,Head of Childrens Social Care,Supplies and Services,338045,Services,07/12/2023,4211257-NE23C50439,885.00,REDACTED - PAYMENT TO INDIVIDUAL
Regeneration Economy and Growth,Culture Sport and Tourism,Supplies and Services,338047,Services,07/12/2023,4211335-002710232,"2,500.00",REDACTED - PAYMENT TO INDIVIDUAL
Neighbourhoods and Climate Change,Environmental Services,Supplies and Services,338066,Services,07/12/2023,4211414-2023/000028,856.80,REDACTED - PAYMENT TO INDIVIDUAL
Dedicated Schools Grant BG0015,DSG Early Years Block,Transfer Payments,510030,School Children,07/12/2023,4210912-38662,583.58,1EXCELLENCE MULTI ACADEMY TRUST.
Neighbourhoods and Climate Change,Highways,Supplies and Services,304221,Equipment and Materials,07/12/2023,4210917-014158,"2,720.00",A HILL & SONS LTD.
Children and Young Peoples Services,Head of Education and Skills,Supplies and Services,342053,Computers and Communications,07/12/2023,4210919-1762785,"7,179.12",ACCESS UK LTD T/A PEOPLE HR.
Dedicated Schools Grant BG0015,DSG Early Years Block,Transfer Payments,510030,School Children,07/12/2023,4210922-38504,715.96,ADVANCE LEARNING PARTNERSHIP.
Dedicated Schools Grant BG0015,DSG Early Years Block,Transfer Payments,510030,School Children,07/12/2023,4210926-38484,"2,015.78",ADVENTURE VALLEY DAY NURSERY LTD.
Neighbourhoods and Climate Change,Highways,Supplies and Services,304221,Equipment and Materials,07/12/2023,4210927-35341396,643.86,AGGREGATE INDUSTRIES UK LTD.
Children and Young Peoples Services,Head of Early Help Inclusion & Vulnerable Children.,Supplies and Services,308011,Furniture,07/12/2023,4210929-179994,525.00,ALBANY OFFICE EQUIPMENT (WHOLESALE) LTD.
Regeneration Economy and Growth,Corporate Property and Land,Third Party Payments,430100,Rendered by Private Contractors,07/12/2023,4210933-SI30227,"2,675.00",AMBIC LTD.
Regeneration Economy and Growth,Corporate Property and Land,Third Party Payments,430100,Rendered by Private Contractors,07/12/2023,4210933-SI30229,857.50,AMBIC LTD.
Regeneration Economy and Growth,Corporate Property and Land,Third Party Payments,430100,Rendered by Private Contractors,07/12/2023,4210948-INV-0331,"91,000.00",APEX ROOFING SPECIALISTS LTD.
Neighbourhoods and Climate Change,Highways,Third Party Payments,430100,Rendered by Private Contractors,07/12/2023,4210950-30377,"4,146.93",ARM PIPETEK LTD.
Regeneration Economy and Growth,Corporate Property and Land,Supplies and Services,384199,Miscellaneous Expenses,07/12/2023,4210955-23047130,"18,580.00",ATKINSREALIS UK LTD.
Regeneration Economy and Growth,Corporate Property and Land,Supplies and Services,384199,Miscellaneous Expenses,07/12/2023,4210955-23047137,"3,543.76",ATKINSREALIS UK LTD.
Children and Young Peoples Services,Head of Education and Skills,Transport,230008,Contract Hire,07/12/2023,4210956-R010OCT23,525.00,ATLAS TAXIS MANAGEMENT LTD.
Adult and Health Services,Head of Adults,Third Party Payments,478151,Purchase of Care,07/12/2023,4210957-D720004625,"4,732.28",AUTISM CARE UK (4) LTD.
Adult and Health Services,Head of Adults,Third Party Payments,478151,Purchase of Care,07/12/2023,4210957-D720004821,"5,185.28",AUTISM CARE UK (4) LTD.
Adult and Health Services,Head of Adults,Third Party Payments,478151,Purchase of Care,07/12/2023,4210957-D720004822,"5,185.28",AUTISM CARE UK (4) LTD.
Adult and Health Services,Head of Adults,Third Party Payments,478151,Purchase of Care,07/12/2023,4210957-D720004901,"5,185.28",AUTISM CARE UK (4) LTD.
Adult and Health Services,Head of Adults,Third Party Payments,478151,Purchase of Care,07/12/2023,4210957-D720004902,"5,185.28",AUTISM CARE UK (4) LTD.
Adult and Health Services,Head of Adults,Third Party Payments,478151,Purchase of Care,07/12/2023,4210957-D720004916,"5,185.28",AUTISM CARE UK (4) LTD.
Adult and Health Services,Head of Adults,Third Party Payments,478151,Purchase of Care,07/12/2023,4210957-D720004917,"5,185.28",AUTISM CARE UK (4) LTD.
Dedicated Schools Grant BG0015,DSG Early Years Block,Transfer Payments,510030,School Children,07/12/2023,4210966-38496,696.99,BIG HANDS LITTLE HANDS CHILDCARE LTD.
Dedicated Schools Grant BG0015,DSG Early Years Block,Transfer Payments,510030,School Children,07/12/2023,4210970-38658,"1,159.29",BISHOP HOGARTH CATHOLIC EDUCATION TRUST.
Dedicated Schools Grant BG0015,DSG Early Years Block,Transfer Payments,510030,School Children,07/12/2023,4210972-38655,684.84,BISHOP HOGARTH CATHOLIC EDUCATION TRUST.
Dedicated Schools Grant BG0015,DSG Early Years Block,Transfer Payments,510030,School Children,07/12/2023,4210976-38667,540.67,BISHOP HOGARTH CATHOLIC EDUCATION TRUST.
Dedicated Schools Grant BG0015,DSG Early Years Block,Transfer Payments,510030,School Children,07/12/2023,4210980-38659,640.79,BISHOP WILKINSON CATHOLIC EDUCATION TRUST.
Dedicated Schools Grant BG0015,DSG Early Years Block,Transfer Payments,510030,School Children,07/12/2023,4210981-38656,"7,221.22",BISHOP WILKINSON CATHOLIC EDUCATION TRUST.
Neighbourhoods and Climate Change,Highways,Fees,901001,Internal fees,07/12/2023,4210985-SIN047885,"194,539.59",BLOOM PROCUREMENT SERVICES LTD (FORMERLY NEPRO LTD).
Dedicated Schools Grant BG0015,DSG Early Years Block,Transfer Payments,510030,School Children,07/12/2023,4210986-38607,739.34,BLUE SKY CHILDCARE.
Dedicated Schools Grant BG0015,DSG Early Years Block,Transfer Payments,510030,School Children,07/12/2023,4210989-38538,787.26,BOW SCHOOL & NURSERY.
Dedicated Schools Grant BG0015,DSG Early Years Block,Transfer Payments,510030,School Children,07/12/2023,4210993-38506,"1,071.60",BRIGHT STAR NURSERY.
Dedicated Schools Grant BG0015,DSG Early Years Block,Transfer Payments,510030,School Children,07/12/2023,4210997-38509,"1,010.56",BUSY BEARS (DURHAM) LTD.
Dedicated Schools Grant BG0015,DSG Early Years Block,Transfer Payments,510030,School Children,07/12/2023,4210998-38510,"6,272.28",BUSY BEES (DURHAM) LTD.
Dedicated Schools Grant BG0015,DSG Early Years Block,Transfer Payments,510030,School Children,07/12/2023,4211000-38511,"1,360.23",BYERLEY ROAD PRE SCHOOL.
Children and Young Peoples Services,Head of Childrens Social Care,Supplies and Services,342053,Computers and Communications,07/12/2023,4211002-1198805,523.59,BYTES SOFTWARE SERVICES LTD.
Adult and Health Services,Commissioning inc Supporting People,Third Party Payments,479101,Purchase of Care,07/12/2023,4211004-INV048540,"32,416.67",CAREHOME SELECTION LTD (CHS HEALTHCARE).
Dedicated Schools Grant BG0015,DSG Early Years Block,Transfer Payments,510030,School Children,07/12/2023,4211006-38514,680.84,CASTLE KINDERGARTEN LTD.
Dedicated Schools Grant BG0015,DSG Early Years Block,Transfer Payments,510030,School Children,07/12/2023,4211008-38515,"2,598.35",CASTLE VIEW PRIVATE DAY NURSERY LTD.
Children and Young Peoples Services,Head of Education and Skills,Transport,230006,Contract Hire,07/12/2023,4211013-2082,"3,654.00",CHEVRON TAXIS LTD.
Children and Young Peoples Services,Head of Education and Skills,Transport,230034,Contract Hire,07/12/2023,4211013-2412,"1,354.50",CHEVRON TAXIS LTD.
Dedicated Schools Grant BG0015,DSG Early Years Block,Transfer Payments,510030,School Children,07/12/2023,4211020-38524,704.30,CLEVER CLOGS DAY NURSERIES LTD.
Dedicated Schools Grant BG0015,DSG Early Years Block,Transfer Payments,510030,School Children,07/12/2023,4211021-38525,"2,408.07",CLEVER CLOGS DAY NURSERY (DURHAM) LTD.
Regeneration Economy and Growth,Culture Sport and Tourism,Supplies and Services,384199,Miscellaneous Expenses,07/12/2023,4211033-NEI-HCL-12-2023-001,"1,407.00",COUNTY DURHAM SPORT.
Children and Young Peoples Services,Head of Early Help Inclusion & Vulnerable Children.,Supplies and Services,324500,Provisions E324,07/12/2023,4211036-25571,"21,031.93",CREATIVE MANAGEMENT SERVICES LTD.
Children and Young Peoples Services,Head of Education and Skills,Transport,230008,Contract Hire,07/12/2023,4211038-116688,"1,948.80",CROFT BUSINESS SERVICES LTD T/A CROFT TRAVEL.
Children and Young Peoples Services,Head of Childrens Social Care,Transport,230005,Contract Hire,07/12/2023,4211038-DH2348A,555.00,CROFT BUSINESS SERVICES LTD T/A CROFT TRAVEL.
Neighbourhoods and Climate Change,Highways,Supplies and Services,338029,Services,07/12/2023,4211040-0100080659,"8,350.00",CUNDALL LTD.
Adult and Health Services,Head of Adults,Supplies and Services,338089,Services,07/12/2023,4211042-MH-4,500.00,DANTRAIN CONSULTANTS.
Dedicated Schools Grant BG0015,DSG Early Years Block,Transfer Payments,510030,School Children,07/12/2023,4211045-38698,633.04,DAYPARK LTD T/A YELLOW WELLIES.
Dedicated Schools Grant BG0015,DSG Early Years Block,Transfer Payments,510030,School Children,07/12/2023,4211046-38699,699.38,DAYPARK LTD T/A YELLOW WELLIES.
Children and Young Peoples Services,Head of Childrens Social Care,Transport,230005,Contract Hire,07/12/2023,4211052-DH2344ZB,600.00,DH2 CABS.
Children and Young Peoples Services,Head of Childrens Social Care,Transport,230005,Contract Hire,07/12/2023,4211052-DH2348G,500.00,DH2 CABS.
Children and Young Peoples Services,Head of Childrens Social Care,Transport,230005,Contract Hire,07/12/2023,4211052-DH2348J,618.00,DH2 CABS.
Children and Young Peoples Services,Head of Childrens Social Care,Transport,230005,Contract Hire,07/12/2023,4211052-DH2348Q,540.00,DH2 CABS.
Children and Young Peoples Services,Head of Childrens Social Care,Transport,230005,Contract Hire,07/12/2023,4211052-DH2348R,702.00,DH2 CABS.
Children and Young Peoples Services,Head of Childrens Social Care,Transport,230005,Contract Hire,07/12/2023,4211052-DH2348V,698.00,DH2 CABS.
Children and Young Peoples Services,Head of Childrens Social Care,Transport,230005,Contract Hire,07/12/2023,4211052-DH2348ZC,560.00,DH2 CABS.
Children and Young Peoples Services,Head of Education and Skills,Supplies and Services,338027,Services,07/12/2023,4211066-364506,750.00,DURHAM UNIVERSITY.
Dedicated Schools Grant BG0015,DSG Early Years Block,Transfer Payments,510030,School Children,07/12/2023,4211072-38501,768.85,EDEN ACADEMY TRUST LTD T/A BLUEBELL MEADOW PRIMARY SCHOOL.
Dedicated Schools Grant BG0015,DSG Early Years Block,Transfer Payments,510030,School Children,07/12/2023,4211073-38540,913.13,EDEN GARDEN NURSERY.
Dedicated Schools Grant BG0015,DSG Early Years Block,Transfer Payments,510030,School Children,07/12/2023,4211074-38518,728.34,EDEN LEARNING TRUST T/A CHILTON ACADEMY.
Regeneration Economy and Growth,Corporate Property and Land,Supplies and Services,304221,Equipment and Materials,07/12/2023,4211076-059-328216,719.52,EDMUNDSON ELECTRICAL LTD.
Dedicated Schools Grant BG0015,DSG Early Years Block,Transfer Payments,510030,School Children,07/12/2023,4211085-38543,722.03,EMERALDS LITTLE GEMS DAYCARE LTD.
Dedicated Schools Grant BG0015,DSG Early Years Block,Transfer Payments,510030,School Children,07/12/2023,4211085-38544,"1,743.94",EMERALDS LITTLE GEMS DAYCARE LTD.
Neighbourhoods and Climate Change,Environmental Services,Supplies and Services,304999,Equipment and Materials,07/12/2023,4211089-02467351,506.40,ERIKS UK HOLDINGS LTD.
Adult and Health Services,Head of Adults,Third Party Payments,478151,Purchase of Care,07/12/2023,4211090-ECS719-23,"2,994.86",ESSENTIAL CARE & SUPPORT LTD.
Dedicated Schools Grant BG0015,DSG Early Years Block,Transfer Payments,510030,School Children,07/12/2023,4211093-38546,"1,698.09",EXPLORERS DAY CARE.
Children and Young Peoples Services,Head of Childrens Social Care,Supplies and Services,384500,Miscellaneous Expenses,07/12/2023,4211101-3Q27B,550.00,FSK THERAPY (MINDS MATTER).
Neighbourhoods and Climate Change,Environmental Services,Supplies and Services,304999,Equipment and Materials,07/12/2023,4211103-13904,"1,438.80",GB SPORT & LEISURE UK LTD.
Children and Young Peoples Services,Head of Childrens Social Care,Employees,080025,Agency Staff,07/12/2023,4211106-2477144,"145,326.92",GEOMETRIC RESULTS INTERNATIONAL.
Dedicated Schools Grant BG0015,DSG Early Years Block,Transfer Payments,510030,School Children,07/12/2023,4211107-38550,"1,937.10",GIANT STEPS LTD.
Dedicated Schools Grant BG0015,DSG Early Years Block,Transfer Payments,510030,School Children,07/12/2023,4211109-38598,"1,039.95",GLOW CHURCH T/A LITTLE CUBS DAY NURSERY.
Children and Young Peoples Services,Head of Education and Skills,Transport,235005,Public Transport,07/12/2023,4211112-83347,"63,080.00",GO GATESHEAD LTD.
Children and Young Peoples Services,Head of Education and Skills,Transport,235005,Public Transport,07/12/2023,4211112-83691,"4,560.00",GO GATESHEAD LTD.
Neighbourhoods and Climate Change,Environmental Services,Transport,230005,Contract Hire,07/12/2023,4211113-INV00343832,"1,173.66",GO PLANT FLEET SERVICES LTD.*
Dedicated Schools Grant BG0015,DSG Early Years Block,Transfer Payments,510030,School Children,07/12/2023,4211119-38551,784.59,GREEN LANE NURSERY & CHILDCARE CENTRE.
Regeneration Economy and Growth,Culture Sport and Tourism,Premises,145023,Cleaning and Domestic Supplies,07/12/2023,4211120-06/247057,521.22,GREENHAM TRADING LTD.
Children and Young Peoples Services,Head of Education and Skills,Third Party Payments,440999,Other third party payments E440,07/12/2023,4211121-DWF-YFF,"56,043.48",GROUNDWORK NORTH EAST.
Dedicated Schools Grant BG0015,DSG Early Years Block,Transfer Payments,510030,School Children,07/12/2023,4211130-38555,"1,092.78",HAYSTACKS NURSERY..
Neighbourhoods and Climate Change,Environmental Services,Fees,901002,Consultants fees 901002,07/12/2023,4211137-28489,"1,440.00",HICKTON CONSULTANTS LIMITED.
Regeneration Economy and Growth,Culture Sport and Tourism,Supplies and Services,338047,Services,07/12/2023,4211138-4581,795.00,HIGHLIGHTS PRODUCTIONS LTD.
Dedicated Schools Grant BG0015,DSG Early Years Block,Transfer Payments,510030,School Children,07/12/2023,4211140-38561,806.66,HIPPITOTS LTD.
Dedicated Schools Grant BG0015,DSG High Needs Block,Third Party Payments,440110,Other third party payments E440,07/12/2023,4211141-RES-12-2023-073,"179,496.00",HOPE WOOD ACADEMY.
Dedicated Schools Grant BG0015,DSG Early Years Block,Transfer Payments,510030,School Children,07/12/2023,4211145-38562,"1,598.40",HOUSE OF EDEN LTD.
Adult and Health Services,Public Health CC0450,Third Party Payments,460803,Contract Payments,07/12/2023,4211154-2654,"3,445.00",IMPROVING PERFORMANCE IN PRACTICE.
Adult and Health Services,Public Health CC0450,Third Party Payments,460803,Contract Payments,07/12/2023,4211154-2656,"5,564.00",IMPROVING PERFORMANCE IN PRACTICE.
Resources BK0010,Digital Services,Vehicles Equipment Furniture and Fittings,912701,Computer equipment,07/12/2023,4211158-2100763051,541.71,INSIGHT DIRECT (UK) LTD.
Neighbourhoods and Climate Change,Highways,Stock A926,926900,Stock in hand-Inventory system,07/12/2023,4211160-914318,"2,021.60",INSTARMAC GROUP PLC.
Neighbourhoods and Climate Change,Highways,Construction work A908,908105,Construction work,07/12/2023,4211164-28621,"8,958.83",JACK COUPE & SONS LTD T/A COUPE LINE.
Dedicated Schools Grant BG0015,DSG Early Years Block,Transfer Payments,510030,School Children,07/12/2023,4211194-38584,953.17,KIDS 1ST NURSERIES DURHAM.
Dedicated Schools Grant BG0015,DSG Early Years Block,Transfer Payments,510030,School Children,07/12/2023,4211196-38586,863.32,KIDZ VILLAGE LTD.
Dedicated Schools Grant BG0015,DSG Early Years Block,Transfer Payments,510030,School Children,07/12/2023,4211213-38696,578.14,LINGFIELD EDUCATION TRUST T/A WOODHAM BURN COMMUNITY PRIMARY SCHOOL.
Dedicated Schools Grant BG0015,DSG Early Years Block,Transfer Payments,510030,School Children,07/12/2023,4211219-38601,"2,355.34",LITTLE STARS EARLY YEARS.
Dedicated Schools Grant BG0015,DSG Early Years Block,Transfer Payments,510030,School Children,07/12/2023,4211220-38603,905.40,LITTLE WAVES DAY NURSERY LTD.
Children and Young Peoples Services,Head of Childrens Social Care,Third Party Payments,440046,Other third party payments E440,07/12/2023,4211229-9864,"10,676.61",MAJOR RECRUITMENT LTD.*
Children and Young Peoples Services,Head of Childrens Social Care,Third Party Payments,440046,Other third party payments E440,07/12/2023,4211229-9866,"9,984.75",MAJOR RECRUITMENT LTD.*
Children and Young Peoples Services,Head of Childrens Social Care,Third Party Payments,440046,Other third party payments E440,07/12/2023,4211229-9867,"9,975.51",MAJOR RECRUITMENT LTD.*
Children and Young Peoples Services,Head of Childrens Social Care,Third Party Payments,440047,Other third party payments E440,07/12/2023,4211229-9868,"2,000.15",MAJOR RECRUITMENT LTD.*
Children and Young Peoples Services,Head of Childrens Social Care,Third Party Payments,440046,Other third party payments E440,07/12/2023,4211229-9869,"9,710.25",MAJOR RECRUITMENT LTD.*
Children and Young Peoples Services,Head of Childrens Social Care,Third Party Payments,440046,Other third party payments E440,07/12/2023,4211229-9870,"8,492.73",MAJOR RECRUITMENT LTD.*
Children and Young Peoples Services,Head of Childrens Social Care,Third Party Payments,440046,Other third party payments E440,07/12/2023,4211229-9871,"10,076.73",MAJOR RECRUITMENT LTD.*
Children and Young Peoples Services,Head of Childrens Social Care,Third Party Payments,440046,Other third party payments E440,07/12/2023,4211229-9872,"10,103.10",MAJOR RECRUITMENT LTD.*
Children and Young Peoples Services,Head of Childrens Social Care,Third Party Payments,440047,Other third party payments E440,07/12/2023,4211229-9873,994.81,MAJOR RECRUITMENT LTD.*
Children and Young Peoples Services,Head of Childrens Social Care,Third Party Payments,440047,Other third party payments E440,07/12/2023,4211229-9874,"9,248.26",MAJOR RECRUITMENT LTD.*
Neighbourhoods and Climate Change,Environmental Services,Supplies and Services,372009,Subscriptions E372,07/12/2023,4211230-6272,999.00,MALLARD CONSULTANCY LTD.
Children and Young Peoples Services,Head of Education and Skills,Transport,230007,Contract Hire,07/12/2023,4211233-INV04/202205,"1,288.41",MARK & JOHN CHISHOLM T/A (CHEVRON).
Neighbourhoods and Climate Change,Highways,Supplies and Services,304221,Equipment and Materials,07/12/2023,4211234-Z001755301,"1,284.84",MARSHALLS MONO LTD.
Regeneration Economy and Growth,Corporate Property and Land,Third Party Payments,430100,Rendered by Private Contractors,07/12/2023,4211265-869192,"2,735.00",NATIONWIDE CHIMNEY COMPONENTS LTD.
Dedicated Schools Grant BG0015,DSG Early Years Block,Transfer Payments,510030,School Children,07/12/2023,4211271-38618,640.79,NEW BEGINNINGS (MOORSIDE) CO LTD.
Adult and Health Services,Adults Excluded,Supplies and Services,338027,Services,07/12/2023,4211273-1800012128343,"3,000.00",NEWCASTLE UPON TYNE CITY COUNCIL.
Adult and Health Services,Adults Excluded,Supplies and Services,338027,Services,07/12/2023,4211273-1800012128355,"3,000.00",NEWCASTLE UPON TYNE CITY COUNCIL.
Neighbourhoods and Climate Change,Highways,Fees,901004,Capital - Detailed Design,07/12/2023,4211274-43969878,561.67,NEWSQUEST (YORKSHIRE & NORTH EAST) LTD.
Adult and Health Services,Public Health CC0450,Third Party Payments,460803,Contract Payments,07/12/2023,4211276-7441000837,"10,000.00",NHS NORTH EAST & NORTH CUMBRIA ICB.
Adult and Health Services,Central/Other,Third Party Payments,440150,Other third party payments E440,07/12/2023,4211276-BCF/DECEMBER2023,"1,672,011.00",NHS NORTH EAST & NORTH CUMBRIA ICB.
Regeneration Economy and Growth,Planning & Housing,Premises,135005,Water Services,07/12/2023,4211283-442916020028173991,"6,951.04",NORTHUMBRIAN WATER LTD.
Regeneration Economy and Growth,Transport and Contracted Services,Third Party Payments,430100,Rendered by Private Contractors,07/12/2023,4211285-00026407,"2,301.98",NSL LTD.
Regeneration Economy and Growth,Transport and Contracted Services,Third Party Payments,430100,Rendered by Private Contractors,07/12/2023,4211285-00026408,"37,615.29",NSL LTD.
Regeneration Economy and Growth,Transport and Contracted Services,Third Party Payments,430100,Rendered by Private Contractors,07/12/2023,4211285-00026409,"10,140.92",NSL LTD.
Regeneration Economy and Growth,Transport and Contracted Services,Third Party Payments,430100,Rendered by Private Contractors,07/12/2023,4211285-00026410,"68,726.92",NSL LTD.
Regeneration Economy and Growth,Transport and Contracted Services,Third Party Payments,430100,Rendered by Private Contractors,07/12/2023,4211285-00026411,"17,900.94",NSL LTD.
Regeneration Economy and Growth,Transport and Contracted Services,Third Party Payments,430100,Rendered by Private Contractors,07/12/2023,4211285-00026412,"3,103.41",NSL LTD.
Regeneration Economy and Growth,Transport and Contracted Services,Third Party Payments,430100,Rendered by Private Contractors,07/12/2023,4211285-00026413,"3,656.98",NSL LTD.
Regeneration Economy and Growth,Transport and Contracted Services,Third Party Payments,430100,Rendered by Private Contractors,07/12/2023,4211285-00026414,"4,289.16",NSL LTD.
Regeneration Economy and Growth,Transport and Contracted Services,Third Party Payments,430100,Rendered by Private Contractors,07/12/2023,4211285-00026415,"5,419.78",NSL LTD.
Regeneration Economy and Growth,Transport and Contracted Services,Third Party Payments,430100,Rendered by Private Contractors,07/12/2023,4211285-00026416,"23,494.29",NSL LTD.
Regeneration Economy and Growth,Transport and Contracted Services,Third Party Payments,430100,Rendered by Private Contractors,07/12/2023,4211285-00026417,"4,162.60",NSL LTD.
Regeneration Economy and Growth,Transport and Contracted Services,Third Party Payments,430100,Rendered by Private Contractors,07/12/2023,4211285-00026418,"9,357.00",NSL LTD.
Dedicated Schools Grant BG0015,DSG Early Years Block,Transfer Payments,510030,School Children,07/12/2023,4211287-38620,600.74,NURSERYTIME LTD.
Adult and Health Services,Head of Adults,Supplies and Services,308011,Furniture,07/12/2023,4211290-0000200857,928.21,ONLINE ERGONOMICS LTD.
Neighbourhoods and Climate Change,Environmental Services,Supplies and Services,304999,Equipment and Materials,07/12/2023,4211293-201425,"1,420.80",PALINTEST LTD.
Neighbourhoods and Climate Change,Highways,Stock A926,926900,Stock in hand-Inventory system,07/12/2023,4211296-XL310299,"4,722.12",PARK ELECTRICAL DISTRIBUTORS LTD.
Neighbourhoods and Climate Change,Highways,Stock A926,926900,Stock in hand-Inventory system,07/12/2023,4211296-XL310300,540.00,PARK ELECTRICAL DISTRIBUTORS LTD.
Neighbourhoods and Climate Change,Highways,Stock A926,926900,Stock in hand-Inventory system,07/12/2023,4211296-XL310301,900.00,PARK ELECTRICAL DISTRIBUTORS LTD.
Neighbourhoods and Climate Change,Partnerships & Community Engagement Div.,Cap Exp on Grants & Other Financial Assistance (REFCUS),918004,Contributions to other bodies 918004,07/12/2023,4211297-VOUCHER22AB-EDUR001GREEN6,"8,363.00",PARKSIDE & DISTRICT COMMUNITY ASSOCIATION.
Children and Young Peoples Services,Head of Education and Skills,Supplies and Services,384199,Miscellaneous Expenses,07/12/2023,4211301-23125,"1,597.50",PENSHAW VIEW TRAINING LTD.
Children and Young Peoples Services,Head of Education and Skills,Supplies and Services,384199,Miscellaneous Expenses,07/12/2023,4211302-DW3GRANT024-2,651.64,PERCO FOODS LTD.
Dedicated Schools Grant BG0015,DSG Early Years Block,Transfer Payments,510030,School Children,07/12/2023,4211309-38627,740.91,PLAYDAY NURSERY.
Dedicated Schools Grant BG0015,DSG Early Years Block,Transfer Payments,510030,School Children,07/12/2023,4211310-38628,500.62,PLAYOLOGY LTD.
Adult and Health Services,Head of Adults,Third Party Payments,478151,Purchase of Care,07/12/2023,4211311-77002769,"1,894.68",POTENSIAL LTD T/A POTENS.
Children and Young Peoples Services,Head of Childrens Social Care,Third Party Payments,440046,Other third party payments E440,07/12/2023,4211315-2035,"138,526.20",PROTECTIVE CARE GROUP LTD.
Children and Young Peoples Services,Head of Childrens Social Care,Third Party Payments,440046,Other third party payments E440,07/12/2023,4211315-2076,"65,795.64",PROTECTIVE CARE GROUP LTD.
Children and Young Peoples Services,Head of Childrens Social Care,Third Party Payments,440046,Other third party payments E440,07/12/2023,4211315-2076A,650.00,PROTECTIVE CARE GROUP LTD.
Adult and Health Services,Public Health CC0450,Premises,145009,Cleaning and Domestic Supplies,07/12/2023,4211318-INV-6135,"1,344.28",QUALITY CLEANING SERVICES (NORTHERN) LTD.
Adult and Health Services,Public Health CC0450,Premises,145009,Cleaning and Domestic Supplies,07/12/2023,4211318-INV-6736,"1,872.98",QUALITY CLEANING SERVICES (NORTHERN) LTD.
Neighbourhoods and Climate Change,Highways,Third Party Payments,430100,Rendered by Private Contractors,07/12/2023,4211319-15409,"8,925.56",QUANTUM POWER CONNECTIONS LTD.
Neighbourhoods and Climate Change,Highways,Third Party Payments,430100,Rendered by Private Contractors,07/12/2023,4211319-15410,"12,769.36",QUANTUM POWER CONNECTIONS LTD.
Dedicated Schools Grant BG0015,DSG Early Years Block,Transfer Payments,510030,School Children,07/12/2023,4211326-38633,838.18,RAINBOW NURSERY LTD (MIDDLESTONE MOOR).
Children and Young Peoples Services,Head of Education and Skills,Transport,230008,Contract Hire,07/12/2023,4211328-SI-22181,"2,035.84",RAPID MINIBUSES.
Dedicated Schools Grant BG0015,DSG Early Years Block,Transfer Payments,510030,School Children,07/12/2023,4211332-38635,"1,361.68",RIBBON ACADEMY TRUST.
Dedicated Schools Grant BG0015,DSG Early Years Block,Transfer Payments,510030,School Children,07/12/2023,4211333-38636,580.34,RIBBON DAYCARE LTD.
Dedicated Schools Grant BG0015,DSG Early Years Block,Transfer Payments,510030,School Children,07/12/2023,4211352-38643,855.34,SEAHAM KINDERGARTEN LTD.
Dedicated Schools Grant BG0015,DSG Early Years Block,Transfer Payments,510030,School Children,07/12/2023,4211358-38647,968.34,SHIELD ROW ACADEMY.
Dedicated Schools Grant BG0015,DSG Early Years Block,Transfer Payments,510030,School Children,07/12/2023,4211360-38649,912.55,SHOTLEY BRIDGE NURSERY SCHOOL LTD.
Children and Young Peoples Services,Head of Education and Skills,Transport,230008,Contract Hire,07/12/2023,4211362-101123,"1,140.00",SHOTTON PRIVATE HIRE.
Regeneration Economy and Growth,Culture Sport and Tourism,Supplies and Services,384199,Miscellaneous Expenses,07/12/2023,4211363-195507,"2,268.00",SHOWSEC INTERNATIONAL LTD.
Dedicated Schools Grant BG0015,DSG High Needs Block,Supplies and Services,304259,Equipment and Materials,07/12/2023,4211366-212363,693.00,SMIRTHWAITE LTD.
Children and Young Peoples Services,Head of Education and Skills,Third Party Payments,430100,Rendered by Private Contractors,07/12/2023,4211370-2324-AS1,"5,938.28",SPORTSCAPE TRAINING LTD.
Children and Young Peoples Services,Head of Education and Skills,Third Party Payments,430100,Rendered by Private Contractors,07/12/2023,4211370-2324-COM02,"7,293.00",SPORTSCAPE TRAINING LTD.
Children and Young Peoples Services,Head of Education and Skills,Third Party Payments,430100,Rendered by Private Contractors,07/12/2023,4211370-2324-Y2-COM01,"12,870.00",SPORTSCAPE TRAINING LTD.
Dedicated Schools Grant BG0015,DSG Early Years Block,Transfer Payments,510030,School Children,07/12/2023,4211371-38663,799.11,ST OSWALD`S PRE SCHOOL LEARNING CENTRE.
Dedicated Schools Grant BG0015,DSG Early Years Block,Transfer Payments,510030,School Children,07/12/2023,4211375-38592,607.89,STANLEY LEARNING PARTNERSHIP.
Dedicated Schools Grant BG0015,DSG Early Years Block,Transfer Payments,510030,School Children,07/12/2023,4211376-38527,618.48,STANLEY LEARNING PARTNERSHIP.
Dedicated Schools Grant BG0015,DSG Early Years Block,Transfer Payments,510030,School Children,07/12/2023,4211380-38669,"1,000.13",STEPHENSON WAY ACADEMY & NURSERY SCHOOL.
Dedicated Schools Grant BG0015,DSG Early Years Block,Transfer Payments,510030,School Children,07/12/2023,4211384-38672,813.57,SUNSHINE DAY NURSERY LTD.
Dedicated Schools Grant BG0015,DSG Early Years Block,Transfer Payments,510030,School Children,07/12/2023,4211385-38673,"1,771.74",SUNSHINE DAY NURSERY LTD.
Dedicated Schools Grant BG0015,DSG Early Years Block,Transfer Payments,510030,School Children,07/12/2023,4211386-38671,881.94,SUNSHINE DAY NURSERY LTD.
Children and Young Peoples Services,Head of Education and Skills,Transport,230007,Contract Hire,07/12/2023,4211396-INV-0186,"2,090.00",TEESDALE PASSENGER TRANSPORT LTD T/A FIGGY BUS & FIGGY`S TAXIS.
Dedicated Schools Grant BG0015,DSG Early Years Block,Transfer Payments,510030,School Children,07/12/2023,4211403-38644,"1,303.61",THE LAIDLAW SCHOOLS TRUST T/A SEDGEFIELD HARDWICK PRIMARY SCHOOL.
Dedicated Schools Grant BG0015,DSG Early Years Block,Transfer Payments,510030,School Children,07/12/2023,4211404-38680,"1,566.94",THE LAURELS CHILD CARE COMPANY LTD.
Neighbourhoods and Climate Change,Environmental Services,Supplies and Services,304259,Equipment and Materials,07/12/2023,4211409-NSIN00104290,"2,172.00",THOMAS OWEN & SONS (NEWCASTLE) LTD.
Dedicated Schools Grant BG0015,DSG Early Years Block,Transfer Payments,510030,School Children,07/12/2023,4211413-38682,891.96,TILLY MINTS CHERUBS DAY NURSERY LTD.
Dedicated Schools Grant BG0015,DSG Early Years Block,Transfer Payments,510030,School Children,07/12/2023,4211417-38568,821.01,TM NURSERY ENTERPRISES LTD T/A JACK IN THE BOX DAYCARE.
Dedicated Schools Grant BG0015,DSG Early Years Block,Transfer Payments,510030,School Children,07/12/2023,4211419-38526,"1,455.87",TOGETHER LEARNING PARTNERSHIP (CLEVES CROSS PRIMARY SCHOOL).
Dedicated Schools Grant BG0015,DSG Early Years Block,Transfer Payments,510030,School Children,07/12/2023,4211420-38637,"1,615.57",TOGETHER LEARNING PARTNERSHIP (ROSA STREET PRIMARY SCHOOL).
Children and Young Peoples Services,Head of Education and Skills,Supplies and Services,384999,Miscellaneous Expenses,07/12/2023,4211425-RES-12-2023-068,900.00,TRIMDON`S LITTLE TYKES LTD.
Resources BK0010,Legal & Democratic Services,Supplies and Services,338042,Services,07/12/2023,4211426-305588/INVGR684,"1,250.00",TRINITY CHAMBERS.
Resources BK0010,Legal & Democratic Services,Supplies and Services,338042,Services,07/12/2023,4211426-307233/INVACH227,"1,750.00",TRINITY CHAMBERS.
Resources BK0010,Legal & Democratic Services,Supplies and Services,338042,Services,07/12/2023,4211426-308395/INVGR677,"1,030.00",TRINITY CHAMBERS.
Resources BK0010,Legal & Democratic Services,Supplies and Services,338042,Services,07/12/2023,4211426-310851/INVGR679,"1,030.00",TRINITY CHAMBERS.
Dedicated Schools Grant BG0015,DSG Early Years Block,Transfer Payments,510030,School Children,07/12/2023,4211427-38651,752.36,TUDHOE LEARNING TRUST T/A SOUTH HETTON PRIMARY SCHOOL.
Adult and Health Services,Public Health CC0450,Third Party Payments,460803,Contract Payments,07/12/2023,4211428-SL-TPL-00081455,"1,855.00",TURNING POINT (SERVICES) LTD.
Adult and Health Services,Public Health CC0450,Third Party Payments,460803,Contract Payments,07/12/2023,4211428-SL-TPL-00081456,"1,855.00",TURNING POINT (SERVICES) LTD.
Neighbourhoods and Climate Change,Highways,Supplies and Services,304221,Equipment and Materials,07/12/2023,4211431-253794,"1,130.60",TYNEDALE ROADSTONE LTD.
Neighbourhoods and Climate Change,Highways,Supplies and Services,304221,Equipment and Materials,07/12/2023,4211431-253795,"1,499.08",TYNEDALE ROADSTONE LTD.
Neighbourhoods and Climate Change,Highways,Supplies and Services,304221,Equipment and Materials,07/12/2023,4211431-253799,"1,311.39",TYNEDALE ROADSTONE LTD.
Neighbourhoods and Climate Change,Highways,Supplies and Services,304221,Equipment and Materials,07/12/2023,4211431-253800,"1,821.40",TYNEDALE ROADSTONE LTD.
Dedicated Schools Grant BG0015,DSG Early Years Block,Transfer Payments,510030,School Children,07/12/2023,4211434-38539,761.27,UNIVERSITY OF DURHAM DAY NURSERY.
Neighbourhoods and Climate Change,Highways,Supplies and Services,338027,Services,07/12/2023,4211441-DRCINV/00003336,"10,000.00",VOLKERSTEVIN INFRASTRUCTURE LTD.
Neighbourhoods and Climate Change,Highways,Supplies and Services,338027,Services,07/12/2023,4211441-DRCINV/00003347,"112,679.28",VOLKERSTEVIN INFRASTRUCTURE LTD.
Neighbourhoods and Climate Change,Highways,Supplies and Services,338027,Services,07/12/2023,4211441-DRCINV/00003355,"247,135.62",VOLKERSTEVIN INFRASTRUCTURE LTD.
Neighbourhoods and Climate Change,Environmental Services,Supplies and Services,338099,Services,07/12/2023,4211442-101403.,"76,739.00",W CROWDER & SONS LTD.
Dedicated Schools Grant BG0015,DSG Early Years Block,Transfer Payments,510030,School Children,07/12/2023,4211447-38692,858.20,WESTFIELD HOUSE NURSERY.
Children and Young Peoples Services,Head of Education and Skills,Supplies and Services,384199,Miscellaneous Expenses,07/12/2023,4211448-DW3GRANT018-02,670.09,WHEATLEY HILL COMMUNITY ASSOCIATION.
Dedicated Schools Grant BG0015,DSG Early Years Block,Transfer Payments,510030,School Children,07/12/2023,4211452-38694,829.02,WITTON GILBERT PRE SCHOOL.
Neighbourhoods and Climate Change,Environmental Services,Supplies and Services,304221,Equipment and Materials,07/12/2023,4211453-0000054500,"4,250.00",WYBONE LTD.
Children and Young Peoples Services,Head of Childrens Social Care,Third Party Payments,440038,Other third party payments E440,07/12/2023,4211454-SI-59992,800.00,YMCA WEARSIDE LTD.
Children and Young Peoples Services,Head of Childrens Social Care,Third Party Payments,440038,Other third party payments E440,07/12/2023,4211454-SI-60140,800.00,YMCA WEARSIDE LTD.
Children and Young Peoples Services,Head of Childrens Social Care,Third Party Payments,440038,Other third party payments E440,07/12/2023,4211454-SI-60218,800.00,YMCA WEARSIDE LTD.
Children and Young Peoples Services,Head of Childrens Social Care,Third Party Payments,440038,Other third party payments E440,07/12/2023,4211454-SI-60562,800.00,YMCA WEARSIDE LTD.
Children and Young Peoples Services,Head of Childrens Social Care,Third Party Payments,440038,Other third party payments E440,07/12/2023,4211454-SI-60715,800.00,YMCA WEARSIDE LTD.
Dedicated Schools Grant BG0015,DSG Early Years Block,Transfer Payments,510030,School Children,07/12/2023,4211455-38700,"1,058.07",YORK HOUSE NURSERY.
Regeneration Economy and Growth,Culture Sport and Tourism,Supplies and Services,384199,Miscellaneous Expenses,07/12/2023,4210984-31007978,"1,500.00",BLACKPOOL BOROUGH COUNCIL.
Children and Young Peoples Services,Head of Education and Skills,Supplies and Services,338094,Services,07/12/2023,4211049-10555,500.00,DERWENTSIDE ENTERPRISE AGENCY CIC (DEA).
Regeneration Economy and Growth,Business Durham,Premises,108099,Service Repairs and Maintenance,07/12/2023,4211061-DRY11536,"1,794.40",DRYRIGHT LTD.
Neighbourhoods and Climate Change,Partnerships & Community Engagement Div.,Supplies and Services,384086,Miscellaneous Expenses,07/12/2023,4211364-VOUCHER23NB-SPEN024,"1,000.00",SING FOR LIFE CHOIR.
Regeneration Economy and Growth,Culture Sport and Tourism,Supplies and Services,338047,Services,07/12/2023,4211365-INV-0625,"2,500.00",SINGALONGA PRODUCTIONS LTD.
Children and Young Peoples Services,Head of Childrens Social Care,Supplies and Services,384500,Miscellaneous Expenses,07/12/2023,4211408-00338-2023,640.00,THERAPEEZE THERAPY TOOLS TO THRIVE LTD.
Regeneration Economy and Growth,Culture Sport and Tourism,Supplies and Services,384199,Miscellaneous Expenses,08/12/2023,4211732-2425,"4,500.00",REDACTED - PAYMENT TO INDIVIDUAL
Children and Young Peoples Services,Head of Childrens Social Care,Transport,230005,Contract Hire,08/12/2023,4211469-1762,"3,682.10",REDACTED - PAYMENT TO INDIVIDUAL
Children and Young Peoples Services,Head of Childrens Social Care,Transport,230005,Contract Hire,08/12/2023,4211469-1763,648.30,REDACTED - PAYMENT TO INDIVIDUAL
Children and Young Peoples Services,Head of Childrens Social Care,Transport,230005,Contract Hire,08/12/2023,4211469-1764,"2,607.50",REDACTED - PAYMENT TO INDIVIDUAL
Children and Young Peoples Services,Head of Childrens Social Care,Transport,230005,Contract Hire,08/12/2023,4211469-1766,"2,914.20",REDACTED - PAYMENT TO INDIVIDUAL
Children and Young Peoples Services,Head of Childrens Social Care,Transport,230005,Contract Hire,08/12/2023,4211469-1767,"3,231.90",REDACTED - PAYMENT TO INDIVIDUAL
Children and Young Peoples Services,Head of Childrens Social Care,Transport,230005,Contract Hire,08/12/2023,4211469-1770,"1,532.70",REDACTED - PAYMENT TO INDIVIDUAL
Children and Young Peoples Services,Head of Childrens Social Care,Transport,230005,Contract Hire,08/12/2023,4211469-1771,851.30,REDACTED - PAYMENT TO INDIVIDUAL
Children and Young Peoples Services,Head of Childrens Social Care,Transport,230005,Contract Hire,08/12/2023,4211469-1772,875.60,REDACTED - PAYMENT TO INDIVIDUAL
Children and Young Peoples Services,Head of Childrens Social Care,Transport,230005,Contract Hire,08/12/2023,4211469-1775,"2,458.30",REDACTED - PAYMENT TO INDIVIDUAL
Children and Young Peoples Services,Head of Childrens Social Care,Transport,230005,Contract Hire,08/12/2023,4211469-1776,537.30,REDACTED - PAYMENT TO INDIVIDUAL
Children and Young Peoples Services,Head of Childrens Social Care,Transport,230005,Contract Hire,08/12/2023,4211469-1777,723.50,REDACTED - PAYMENT TO INDIVIDUAL
Children and Young Peoples Services,Head of Childrens Social Care,Transport,230005,Contract Hire,08/12/2023,4211469-1779,853.90,REDACTED - PAYMENT TO INDIVIDUAL
Regeneration Economy and Growth,Planning & Housing,Supplies and Services,364501,Grants to Voluntary Organisations,08/12/2023,4211518-26JANESTREET,"1,030.16",REDACTED - PAYMENT TO INDIVIDUAL
Regeneration Economy and Growth,Planning & Housing,Cap Exp on Grants & Other Financial Assistance (REFCUS),918501,Exp assets not owned by authority,08/12/2023,4211675-RES-12-2023-118,"8,148.00",REDACTED - PAYMENT TO INDIVIDUAL
Regeneration Economy and Growth,Culture Sport and Tourism,Premises,106082,Centrally Controlled Rep and Maint,08/12/2023,4211459-0000014520,"1,100.00",ACCORDIAL LTD.
Chief Executives Office,Communications Management,Supplies and Services,312010,Newspapers books and periodicals E312,08/12/2023,4211460-00076245,"20,454.29",ACORN WEB OFFSET LTD.
Resources BK0010,Legal & Democratic Services,Supplies and Services,332029,Printing Stationery and Gen Off Exps,08/12/2023,4211463-PSI0239399,763.20,ADARE SEC LTD.
Neighbourhoods and Climate Change,Environmental Services,Premises,106082,Centrally Controlled Rep and Maint,08/12/2023,4211464-53215353,"15,886.91",ADT FIRE & SECURITY PLC.
Regeneration Economy and Growth,Planning & Housing,Cap Exp on Grants & Other Financial Assistance (REFCUS),918501,Exp assets not owned by authority,08/12/2023,4211468-RES-12-2023-117,"1,650.15",ANGEL PROPERTY SOLUTIONS (NE) LTD.
Adult and Health Services,Commissioning inc Supporting People,Third Party Payments,479111,Purchase of Care,08/12/2023,4211471-1880,"2,015.50",APM CLEANING & REPAIR LTD.
Neighbourhoods and Climate Change,Highways,Supplies and Services,304358,Equipment and Materials,08/12/2023,4211473-0000039365,"2,925.00",AQUAJET DRAIN CLEANING LTD.
Regeneration Economy and Growth,Corporate Property and Land,Premises,108099,Service Repairs and Maintenance,08/12/2023,4211482-251136,"1,553.00",BELLWOOD REWINDS LTD.
Regeneration Economy and Growth,Corporate Property and Land,Premises,108099,Service Repairs and Maintenance,08/12/2023,4211482-251137,616.70,BELLWOOD REWINDS LTD.
Resources BK0010,Legal & Democratic Services,Supplies and Services,338057,Services,08/12/2023,4211487-2522,845.00,BIOFORTUNA LTD.
Adult and Health Services,Commissioning inc Supporting People,Third Party Payments,440999,Other third party payments E440,08/12/2023,4211489-GBC112023,"36,000.00",BONDCARE WILLINGTON LTD.
Regeneration Economy and Growth,Culture Sport and Tourism,Premises,145023,Cleaning and Domestic Supplies,08/12/2023,4211492-22SI2295340,"1,914.00",BRENNTAG UK LTD.
Regeneration Economy and Growth,Business Durham,Premises,120009,Energy Costs,08/12/2023,4211493-811279442,"1,015.47",BRITISH GAS BUSINESS.
Children and Young Peoples Services,Head of Education and Skills,Supplies and Services,384199,Miscellaneous Expenses,08/12/2023,4211496-RES-12-2023-093,821.40,BUSY BEES (DURHAM) LTD.
Adult and Health Services,Head of Adults,Supplies and Services,338364,Services,08/12/2023,4211498-93188,"1,367.47",CARE ABILITY HEALTHCARE LTD.
Adult and Health Services,Head of Adults,Supplies and Services,338364,Services,08/12/2023,4211498-93195,626.35,CARE ABILITY HEALTHCARE LTD.
Adult and Health Services,Head of Adults,Supplies and Services,338364,Services,08/12/2023,4211498-93196,"1,284.42",CARE ABILITY HEALTHCARE LTD.
Adult and Health Services,Head of Adults,Supplies and Services,338364,Services,08/12/2023,4211498-93197,875.45,CARE ABILITY HEALTHCARE LTD.
Adult and Health Services,Head of Adults,Supplies and Services,338364,Services,08/12/2023,4211498-93198,778.88,CARE ABILITY HEALTHCARE LTD.
Adult and Health Services,Head of Adults,Supplies and Services,338364,Services,08/12/2023,4211498-93243,"1,925.52",CARE ABILITY HEALTHCARE LTD.
Adult and Health Services,Head of Adults,Supplies and Services,338364,Services,08/12/2023,4211498-93287,"1,302.49",CARE ABILITY HEALTHCARE LTD.
Adult and Health Services,Head of Adults,Supplies and Services,338364,Services,08/12/2023,4211498-93288,"1,170.00",CARE ABILITY HEALTHCARE LTD.
Adult and Health Services,Head of Adults,Supplies and Services,338364,Services,08/12/2023,4211498-93289,"1,474.10",CARE ABILITY HEALTHCARE LTD.
Adult and Health Services,Head of Adults,Supplies and Services,338364,Services,08/12/2023,4211498-93290,"1,170.44",CARE ABILITY HEALTHCARE LTD.
Adult and Health Services,Commissioning inc Supporting People,Third Party Payments,479101,Purchase of Care,08/12/2023,4211499-INV052248,"6,750.00",CAREHOME SELECTION LTD (CHS HEALTHCARE).
Regeneration Economy and Growth,Corporate Property and Land,Premises,108099,Service Repairs and Maintenance,08/12/2023,4211501-12084,671.20,CATHEDRAL LOCK & SAFE SERVICES LTD.
Regeneration Economy and Growth,Culture Sport and Tourism,Premises,106082,Centrally Controlled Rep and Maint,08/12/2023,4211503-23503353,972.32,CENTRICA BUSINESS SOLUTIONS UK LTD.*
Adult and Health Services,Public Health CC0450,Third Party Payments,460803,Contract Payments,08/12/2023,4211512-3910022700,"384,362.00",COUNTY DURHAM & DARLINGTON NHS FOUNDATION TRUST (CDDFT).
Adult and Health Services,Public Health CC0450,Third Party Payments,460803,Contract Payments,08/12/2023,4211512-3910022701,"180,916.00",COUNTY DURHAM & DARLINGTON NHS FOUNDATION TRUST (CDDFT).
Adult and Health Services,Public Health CC0450,Third Party Payments,460803,Contract Payments,08/12/2023,4211512-3910022702,"30,830.00",COUNTY DURHAM & DARLINGTON NHS FOUNDATION TRUST (CDDFT).
Adult and Health Services,Public Health CC0450,Third Party Payments,460803,Contract Payments,08/12/2023,4211512-3910022704,"11,549.00",COUNTY DURHAM & DARLINGTON NHS FOUNDATION TRUST (CDDFT).
Adult and Health Services,Public Health CC0450,Third Party Payments,460803,Contract Payments,08/12/2023,4211512-3910022705,"33,789.00",COUNTY DURHAM & DARLINGTON NHS FOUNDATION TRUST (CDDFT).
Children and Young Peoples Services,Head of Childrens Social Care,Transport,230005,Contract Hire,08/12/2023,4211515-116892,529.76,CROFT BUSINESS SERVICES LTD T/A CROFT TRAVEL.
Resources BK0010,Digital Services,Vehicles Equipment Furniture and Fittings,912701,Computer equipment,08/12/2023,4211522-7402963725,"4,774.75",DELL COMPUTER CORPORATION LTD.
Resources BK0010,Legal & Democratic Services,Supplies and Services,338042,Services,08/12/2023,4211523-363049/INVSRG307,787.50,DERE STREET BARRISTERS.
Resources BK0010,Legal & Democratic Services,Supplies and Services,338042,Services,08/12/2023,4211523-379098/INVRR212,875.00,DERE STREET BARRISTERS.
Resources BK0010,Legal & Democratic Services,Supplies and Services,338042,Services,08/12/2023,4211523-380662/INVRR213,"1,650.00",DERE STREET BARRISTERS.
Resources BK0010,Legal & Democratic Services,Supplies and Services,338042,Services,08/12/2023,4211523-386235/INVCF493,775.00,DERE STREET BARRISTERS.
Resources BK0010,Legal & Democratic Services,Supplies and Services,338042,Services,08/12/2023,4211523-388821/INVEMC636,"1,225.00",DERE STREET BARRISTERS.
Resources BK0010,Legal & Democratic Services,Supplies and Services,338042,Services,08/12/2023,4211523-389064/INVSEB1X342,875.00,DERE STREET BARRISTERS.
Resources BK0010,Legal & Democratic Services,Supplies and Services,338042,Services,08/12/2023,4211523-389132/INVJS91,"3,350.00",DERE STREET BARRISTERS.
Resources BK0010,Legal & Democratic Services,Supplies and Services,338042,Services,08/12/2023,4211523-389132/INVSEB1X343,875.00,DERE STREET BARRISTERS.
Resources BK0010,Legal & Democratic Services,Supplies and Services,338042,Services,08/12/2023,4211523-389346/INVCF496,"3,350.00",DERE STREET BARRISTERS.
Resources BK0010,Legal & Democratic Services,Supplies and Services,338042,Services,08/12/2023,4211523-389888/INVRR215,875.00,DERE STREET BARRISTERS.
Resources BK0010,Legal & Democratic Services,Supplies and Services,338042,Services,08/12/2023,4211523-390580/INVRR217,775.00,DERE STREET BARRISTERS.
Resources BK0010,Legal & Democratic Services,Supplies and Services,338042,Services,08/12/2023,4211523-390662/INVRR218,775.00,DERE STREET BARRISTERS.
Regeneration Economy and Growth,Corporate Property and Land,Supplies and Services,304221,Equipment and Materials,08/12/2023,4211535-059-328328,"1,308.40",EDMUNDSON ELECTRICAL LTD.
Regeneration Economy and Growth,Corporate Property and Land,Premises,108099,Service Repairs and Maintenance,08/12/2023,4211540-104098,782.00,EIAT UK LTD (ELECTRICAL INSTALLATION & APPLIANCE TESTING UK).
Regeneration Economy and Growth,Corporate Property and Land,Premises,108099,Service Repairs and Maintenance,08/12/2023,4211540-104116,739.50,EIAT UK LTD (ELECTRICAL INSTALLATION & APPLIANCE TESTING UK).
Regeneration Economy and Growth,Culture Sport and Tourism,Construction work A908,908105,Construction work,08/12/2023,4211542-2660,"126,935.83",ELMWOOD PROJECTS LTD.
Resources BK0010,Digital Services,Supplies and Services,304245,Equipment and Materials,08/12/2023,4211546-765036,"3,370.00",ENCORE ENVELOPES LTD.
Neighbourhoods and Climate Change,Highways,Third Party Payments,430100,Rendered by Private Contractors,08/12/2023,4211549-149031,"11,052.00",FABRIKAT (NOTTINGHAM) LTD.
Neighbourhoods and Climate Change,Highways,Third Party Payments,430100,Rendered by Private Contractors,08/12/2023,4211549-149195,850.00,FABRIKAT (NOTTINGHAM) LTD.
Children and Young Peoples Services,Head of Childrens Social Care,Supplies and Services,338044,Services,08/12/2023,4211550-NE23C50348,893.53,FAMILY PSYCHOLOGY UK LTD.
Neighbourhoods and Climate Change,Environmental Services,Third Party Payments,430120,Rendered by Private Contractors,08/12/2023,4211551-CTIN06738757,"11,084.76",FINNING (UK) LTD.
Neighbourhoods and Climate Change,Environmental Services,Third Party Payments,430120,Rendered by Private Contractors,08/12/2023,4211551-CTIN06738778,"9,510.27",FINNING (UK) LTD.
Neighbourhoods and Climate Change,Environmental Services,Third Party Payments,430120,Rendered by Private Contractors,08/12/2023,4211551-CTIN06738839,"3,374.56",FINNING (UK) LTD.
Regeneration Economy and Growth,Culture Sport and Tourism,Premises,106082,Centrally Controlled Rep and Maint,08/12/2023,4211557-503254,500.00,FT LEISURE LTD.
Regeneration Economy and Growth,Culture Sport and Tourism,Premises,106082,Centrally Controlled Rep and Maint,08/12/2023,4211557-503258,500.00,FT LEISURE LTD.
Regeneration Economy and Growth,Culture Sport and Tourism,Premises,106082,Centrally Controlled Rep and Maint,08/12/2023,4211557-503259,500.00,FT LEISURE LTD.
Regeneration Economy and Growth,Culture Sport and Tourism,Premises,106082,Centrally Controlled Rep and Maint,08/12/2023,4211557-503260,500.00,FT LEISURE LTD.
Regeneration Economy and Growth,Culture Sport and Tourism,Premises,106082,Centrally Controlled Rep and Maint,08/12/2023,4211557-503285,"5,136.74",FT LEISURE LTD.
Neighbourhoods and Climate Change,Highways,Stock A926,926900,Stock in hand-Inventory system,08/12/2023,4211560-SI874697,"1,297.20",GLASDON UK LTD.
Regeneration Economy and Growth,Culture Sport and Tourism,Supplies and Services,304259,Equipment and Materials,08/12/2023,4211563-06/247983,"1,299.36",GREENHAM TRADING LTD.
Neighbourhoods and Climate Change,Highways,Supplies and Services,304358,Equipment and Materials,08/12/2023,4211570-69624,"1,090.00",HF COLTON PLANT HIRE LTD.*
Neighbourhoods and Climate Change,Highways,Supplies and Services,304358,Equipment and Materials,08/12/2023,4211570-69827,735.00,HF COLTON PLANT HIRE LTD.*
Regeneration Economy and Growth,Culture Sport and Tourism,Supplies and Services,384700,Miscellaneous Expenses,08/12/2023,4211571-4551,"9,374.00",HIGHLIGHTS PRODUCTIONS LTD.
Children and Young Peoples Services,Head of Early Help Inclusion & Vulnerable Children.,Premises,106082,Centrally Controlled Rep and Maint,08/12/2023,4211572-7081060967,927.06,HONEYWELL NOVAR SYSTEMS LTD.
Regeneration Economy and Growth,Corporate Property and Land,Supplies and Services,304221,Equipment and Materials,08/12/2023,4211575-A38/0175184,"2,428.36",HOWDENS JOINERY LTD.
Regeneration Economy and Growth,Corporate Property and Land,Supplies and Services,304221,Equipment and Materials,08/12/2023,4211575-A38/0175185,"2,141.98",HOWDENS JOINERY LTD.
Neighbourhoods and Climate Change,Highways,Third Party Payments,430100,Rendered by Private Contractors,08/12/2023,4211577-INS2751,650.00,INSPECTORATE LTD T/A ROCH NDT SERVICES.
Children and Young Peoples Services,Head of Education and Skills,Supplies and Services,375001,Private Finance Initiative,08/12/2023,4211578-ISD0426,"717,993.93",INSPIREDSPACES DURHAM (PROJECTCO1) LTD.
Neighbourhoods and Climate Change,Highways,Supplies and Services,304358,Equipment and Materials,08/12/2023,4211594-4777,943.50,KEVIN SNOWDON GROUNDWORKS LTD.
Neighbourhoods and Climate Change,Highways,Supplies and Services,304358,Equipment and Materials,08/12/2023,4211594-4778,943.50,KEVIN SNOWDON GROUNDWORKS LTD.
Neighbourhoods and Climate Change,Highways,Supplies and Services,304358,Equipment and Materials,08/12/2023,4211594-4781,"1,149.75",KEVIN SNOWDON GROUNDWORKS LTD.
Neighbourhoods and Climate Change,Highways,Supplies and Services,304358,Equipment and Materials,08/12/2023,4211594-4782,943.50,KEVIN SNOWDON GROUNDWORKS LTD.
Neighbourhoods and Climate Change,Highways,Supplies and Services,304358,Equipment and Materials,08/12/2023,4211594-4783,790.00,KEVIN SNOWDON GROUNDWORKS LTD.
Neighbourhoods and Climate Change,Highways,Supplies and Services,304358,Equipment and Materials,08/12/2023,4211594-4784,"1,185.00",KEVIN SNOWDON GROUNDWORKS LTD.
Neighbourhoods and Climate Change,Highways,Supplies and Services,304358,Equipment and Materials,08/12/2023,4211594-4786,675.00,KEVIN SNOWDON GROUNDWORKS LTD.
Neighbourhoods and Climate Change,Highways,Supplies and Services,304358,Equipment and Materials,08/12/2023,4211594-4787,892.50,KEVIN SNOWDON GROUNDWORKS LTD.
Adult and Health Services,Public Health CC0450,Third Party Payments,460803,Contract Payments,08/12/2023,4211597-22/2023,"1,575.00",LEAD CONSULTANCY LTD.
Neighbourhoods and Climate Change,Environmental Services,Supplies and Services,342053,Computers and Communications,08/12/2023,4211598-0000000381,"3,325.00",LEARNING NEXUS LTD.
Neighbourhoods and Climate Change,Highways,Third Party Payments,430100,Rendered by Private Contractors,08/12/2023,4211602-471430,"1,352.00",LIGHTING & ILLUMINATION TECHNOLOGY EXPERIENCE LTD (LITE).
Neighbourhoods and Climate Change,Highways,Supplies and Services,304221,Equipment and Materials,08/12/2023,4211602-471433,"3,025.00",LIGHTING & ILLUMINATION TECHNOLOGY EXPERIENCE LTD (LITE).
Chief Executives Office,Communications Management,Supplies and Services,384199,Miscellaneous Expenses,08/12/2023,4211608-64012487,"2,529.55",LOCAL GOVERNMENT ASSOCIATION.
Children and Young Peoples Services,Head of Childrens Social Care,Transport,230005,Contract Hire,08/12/2023,4211609-5539,500.00,LOCAL TRANSPORT LTD.
Children and Young Peoples Services,Head of Childrens Social Care,Transport,230005,Contract Hire,08/12/2023,4211609-5541,"1,406.00",LOCAL TRANSPORT LTD.
Children and Young Peoples Services,Head of Childrens Social Care,Transport,230005,Contract Hire,08/12/2023,4211609-5556,540.00,LOCAL TRANSPORT LTD.
Regeneration Economy and Growth,Culture Sport and Tourism,Supplies and Services,332047,Printing Stationery and Gen Off Exps,08/12/2023,4211613-6901776259,653.37,LYRECO UK LTD.
Resources BK0010,Digital Services,Supplies and Services,344111,Telephones,08/12/2023,4211615-263405,"5,379.43",MAINTEL EUROPE LTD.
Resources BK0010,Digital Services,Supplies and Services,344111,Telephones,08/12/2023,4211615-263407,"7,441.27",MAINTEL EUROPE LTD.
Resources BK0010,Digital Services,Supplies and Services,344111,Telephones,08/12/2023,4211615-263408,"3,519.63",MAINTEL EUROPE LTD.
Regeneration Economy and Growth,Transport and Contracted Services,Construction work A908,908105,Construction work,08/12/2023,4211620-100567656,"16,641.00",MOTT MACDONALD LTD.
Children and Young Peoples Services,Head of Education and Skills,Supplies and Services,384906,Miscellaneous Expenses,08/12/2023,4211645-RES-12-2023-086,"38,625.00",NEW COLLEGE DURHAM ACADEMIES TRUST.
Children and Young Peoples Services,Head of Education and Skills,Supplies and Services,384906,Miscellaneous Expenses,08/12/2023,4211646-RES-12-2023-087,"36,525.00",NEW COLLEGE DURHAM ACADEMIES TRUST.
Regeneration Economy and Growth,Business Durham,Supplies and Services,336005,Advertising E336,08/12/2023,4211647-NMPR15112314,"4,850.00",NEWSMAKER PR & VIDEO PRODUCTION LTD.
Children and Young Peoples Services,Head of Education and Skills,Third Party Payments,430100,Rendered by Private Contractors,08/12/2023,4211650-4934,"4,504.50",NORTH EAST DANCE CIC.
Resources BK0010,HR & Employee Services,Supplies and Services,338064,Services,08/12/2023,4211651-33117,"16,936.00",NORTH EAST REGIONAL EMPLOYERS ORGANISATION (NEREO).
Regeneration Economy and Growth,Transport and Contracted Services,Supplies and Services,304999,Equipment and Materials,08/12/2023,4211652-23257,"1,160.00",NORTH EAST TRAFFIC DATA COLLECTION LTD (NETDC).
Neighbourhoods and Climate Change,Highways,Construction work A908,908201,Capital - Public Utilities - Electricity Services,08/12/2023,4211653-RES-12-2023-110,"87,198.16",NORTHERN POWERGRID (NORTHEAST) LTD.
Neighbourhoods and Climate Change,Highways,Stock A926,926900,Stock in hand-Inventory system,08/12/2023,4211659-XL310322,"6,500.00",PARK ELECTRICAL DISTRIBUTORS LTD.
Neighbourhoods and Climate Change,Highways,Stock A926,926900,Stock in hand-Inventory system,08/12/2023,4211659-XL310323,"1,100.00",PARK ELECTRICAL DISTRIBUTORS LTD.
Children and Young Peoples Services,Head of Education and Skills,Transport,235073,Public Transport,08/12/2023,4211665-INV0001,"1,144.00",PETER`S TAXIS.
Neighbourhoods and Climate Change,Environmental Services,Supplies and Services,304999,Equipment and Materials,08/12/2023,4211667-TEE23401,539.16,PIRTEK CLEVELAND.
Children and Young Peoples Services,Head of Childrens Social Care,Transport,230005,Contract Hire,08/12/2023,4211673-SI-3050,540.00,PTL TAXIS LTD.
Children and Young Peoples Services,Head of Childrens Social Care,Transport,230005,Contract Hire,08/12/2023,4211673-SI-3051,540.00,PTL TAXIS LTD.
Children and Young Peoples Services,Head of Childrens Social Care,Transport,230005,Contract Hire,08/12/2023,4211673-SI-3052,540.00,PTL TAXIS LTD.
Children and Young Peoples Services,Head of Childrens Social Care,Transport,230005,Contract Hire,08/12/2023,4211673-SI-3161,"1,132.00",PTL TAXIS LTD.
Children and Young Peoples Services,Head of Childrens Social Care,Transport,230005,Contract Hire,08/12/2023,4211673-SI-3162,630.00,PTL TAXIS LTD.
Children and Young Peoples Services,Head of Childrens Social Care,Transport,230005,Contract Hire,08/12/2023,4211673-SI-3165,859.50,PTL TAXIS LTD.
Children and Young Peoples Services,Head of Childrens Social Care,Transport,230005,Contract Hire,08/12/2023,4211673-SI-3167,540.00,PTL TAXIS LTD.
Children and Young Peoples Services,Head of Childrens Social Care,Transport,230005,Contract Hire,08/12/2023,4211673-SI-3174,"1,239.50",PTL TAXIS LTD.
Children and Young Peoples Services,Head of Childrens Social Care,Transport,230005,Contract Hire,08/12/2023,4211673-SI-3175,630.00,PTL TAXIS LTD.
Children and Young Peoples Services,Head of Childrens Social Care,Transport,230005,Contract Hire,08/12/2023,4211673-SI-3177,765.00,PTL TAXIS LTD.
Children and Young Peoples Services,Head of Childrens Social Care,Transport,230005,Contract Hire,08/12/2023,4211673-SI-3179,540.00,PTL TAXIS LTD.
Children and Young Peoples Services,Head of Childrens Social Care,Transport,230005,Contract Hire,08/12/2023,4211673-SI-3186,"1,449.50",PTL TAXIS LTD.
Children and Young Peoples Services,Head of Childrens Social Care,Transport,230005,Contract Hire,08/12/2023,4211673-SI-3187,630.00,PTL TAXIS LTD.
Children and Young Peoples Services,Head of Childrens Social Care,Transport,230005,Contract Hire,08/12/2023,4211673-SI-3189,765.00,PTL TAXIS LTD.
Children and Young Peoples Services,Head of Childrens Social Care,Transport,230005,Contract Hire,08/12/2023,4211673-SI-3192,540.00,PTL TAXIS LTD.
Children and Young Peoples Services,Head of Childrens Social Care,Transport,230005,Contract Hire,08/12/2023,4211673-SI-3202,"1,449.50",PTL TAXIS LTD.
Children and Young Peoples Services,Head of Childrens Social Care,Transport,230005,Contract Hire,08/12/2023,4211673-SI-3203,630.00,PTL TAXIS LTD.
Children and Young Peoples Services,Head of Childrens Social Care,Transport,230005,Contract Hire,08/12/2023,4211673-SI-3205,765.00,PTL TAXIS LTD.
Children and Young Peoples Services,Head of Childrens Social Care,Transport,230005,Contract Hire,08/12/2023,4211673-SI-3209,540.00,PTL TAXIS LTD.
Regeneration Economy and Growth,Corporate Property and Land,Premises,106080,Centrally Controlled Rep and Maint,08/12/2023,4211679-2023-441,"1,609.20",REVINSON FIRE LTD.
Regeneration Economy and Growth,Business Durham,Premises,106080,Centrally Controlled Rep and Maint,08/12/2023,4211679-2023-442,"1,609.20",REVINSON FIRE LTD.
Regeneration Economy and Growth,Corporate Property and Land,Premises,106080,Centrally Controlled Rep and Maint,08/12/2023,4211679-2023-446,"3,068.40",REVINSON FIRE LTD.
Neighbourhoods and Climate Change,Environmental Services,Transport,230720,Contract Hire,08/12/2023,4211680-4947,782.35,RICHARD C BIRCHER (HOLDINGS) LTD.
Children and Young Peoples Services,Head of Education and Skills,Supplies and Services,384906,Miscellaneous Expenses,08/12/2023,4211697-RES-12-2023-085,"18,000.00",SEDGEFIELD COMMUNITY COLLEGE.
Adult and Health Services,Commissioning inc Supporting People,Third Party Payments,470103,Purchase of Care,08/12/2023,4211699-GRW276085,661.14,SHAFTESBURY CARE GROUP LTD.
Regeneration Economy and Growth,Culture Sport and Tourism,Supplies and Services,384199,Miscellaneous Expenses,08/12/2023,4211707-S1009074,"4,881.82",SPEKTRIX LTD.
Children and Young Peoples Services,Head of Childrens Social Care,Transport,230005,Contract Hire,08/12/2023,4211715-NOV134/STL23,558.00,STL CABS LTD.
Regeneration Economy and Growth,Culture Sport and Tourism,Supplies and Services,338047,Services,08/12/2023,4211716-1629,"8,897.38",STRICTLY THEATRE COMPANY LTD.
Neighbourhoods and Climate Change,Highways,Supplies and Services,336005,Advertising E336,08/12/2023,4211724-19040,829.40,TEESDALE MERCURY LTD.
Resources BK0010,Legal & Democratic Services,Supplies and Services,338042,Services,08/12/2023,4211738-305732/INVRSH175,720.00,TRINITY CHAMBERS.
Resources BK0010,Legal & Democratic Services,Supplies and Services,338042,Services,08/12/2023,4211738-307403/INVHPR218,"1,920.00",TRINITY CHAMBERS.
Resources BK0010,Legal & Democratic Services,Supplies and Services,338042,Services,08/12/2023,4211738-307995-15/11/23,"2,145.00",TRINITY CHAMBERS.
Resources BK0010,Legal & Democratic Services,Supplies and Services,338042,Services,08/12/2023,4211738-308060/INVKIH140,"1,030.00",TRINITY CHAMBERS.
Resources BK0010,Legal & Democratic Services,Supplies and Services,338042,Services,08/12/2023,4211738-308353/INVGM560,"1,000.00",TRINITY CHAMBERS.
Resources BK0010,Legal & Democratic Services,Supplies and Services,338042,Services,08/12/2023,4211738-309873/INVRSH176,720.00,TRINITY CHAMBERS.
Resources BK0010,Legal & Democratic Services,Supplies and Services,338042,Services,08/12/2023,4211738-311055/INVRSH177,785.00,TRINITY CHAMBERS.
Neighbourhoods and Climate Change,Environmental Services,Supplies and Services,304221,Equipment and Materials,08/12/2023,4211739-IN0285214,860.23,TUDOR (UK) LTD T/A TUDOR ENVIRONMENTAL.
Regeneration Economy and Growth,Corporate Property and Land,Premises,108099,Service Repairs and Maintenance,08/12/2023,4211740-DLB29976,579.62,TYCO FIRE & INTEGRATED SOLUTIONS (UK) LTD.
Neighbourhoods and Climate Change,Environmental Services,Premises,106080,Centrally Controlled Rep and Maint,08/12/2023,4211740-DLB29978,"1,385.68",TYCO FIRE & INTEGRATED SOLUTIONS (UK) LTD.
Neighbourhoods and Climate Change,Highways,Supplies and Services,304221,Equipment and Materials,08/12/2023,4211741-253796,"1,209.65",TYNEDALE ROADSTONE LTD.
Neighbourhoods and Climate Change,Highways,Supplies and Services,304221,Equipment and Materials,08/12/2023,4211741-253797,"1,211.20",TYNEDALE ROADSTONE LTD.
Neighbourhoods and Climate Change,Highways,Supplies and Services,304221,Equipment and Materials,08/12/2023,4211741-253798,"1,005.06",TYNEDALE ROADSTONE LTD.
Neighbourhoods and Climate Change,Highways,Supplies and Services,304221,Equipment and Materials,08/12/2023,4211741-253802,"1,584.24",TYNEDALE ROADSTONE LTD.
Regeneration Economy and Growth,Corporate Property and Land,Supplies and Services,304221,Equipment and Materials,08/12/2023,4211742-04040349,574.59,UK ELECTRIC LTD.*
Neighbourhoods and Climate Change,Environmental Services,Supplies and Services,342215,Computers and Communications,08/12/2023,4211743-57091,"4,086.21",UK TELEMATICS LTD.
Neighbourhoods and Climate Change,Highways,Supplies and Services,304221,Equipment and Materials,08/12/2023,4211745-INV072511,"23,170.32",URBIS SCHREDER LTD.
Resources BK0010,Legal & Democratic Services,Supplies and Services,338099,Services,08/12/2023,4211751-SLIVRL0127297,"1,170.00",VIVID RESOURCING.
Neighbourhoods and Climate Change,Highways,Supplies and Services,304358,Equipment and Materials,08/12/2023,4211754-52648,"3,506.00",W MARLEY AGRICULTURAL CONTRACTORS LTD.
Resources BK0010,Legal & Democratic Services,Supplies and Services,338043,Services,08/12/2023,4211755-920777,"1,452.50",WARD HADAWAY SOLICITORS.
Children and Young Peoples Services,Head of Education and Skills,Transport,230005,Contract Hire,08/12/2023,4211757-19488,"1,140.00",WEARDALE MOTOR SERVICES LTD.
Regeneration Economy and Growth,Corporate Property and Land,Third Party Payments,430100,Rendered by Private Contractors,08/12/2023,4211759-60207,"4,044.35",WILLOWCRETE MANUFACTURING COMPANY LTD (MFG).
Regeneration Economy and Growth,Corporate Property and Land,Supplies and Services,384199,Miscellaneous Expenses,08/12/2023,4211761-64659095,"4,302.00",WSP UK LTD.
Regeneration Economy and Growth,Culture Sport and Tourism,Supplies and Services,304259,Equipment and Materials,08/12/2023,4211762-SI-2916650,"1,294.99",YORKSHIRE PURCHASING ORGANISATION.
Neighbourhoods and Climate Change,Environmental Services,Transport,215023,Running Costs of Vehicles,08/12/2023,4211763-1062444,510.00,YOUR NRG LTD.
Regeneration Economy and Growth,Culture Sport and Tourism,Supplies and Services,338047,Services,08/12/2023,4211686-098,"7,000.00",RML (RHODES MEDIA LIVE LTD).
Adult and Health Services,Commissioning inc Supporting People,Third Party Payments,479102,Purchase of Care,08/12/2023,4211717-DCC014.,"10,355.64",SUNDERLAND & NORTH DURHAM ROYAL SOCIETY FOR THE BLIND.
Regeneration Economy and Growth,Culture Sport and Tourism,Supplies and Services,384199,Miscellaneous Expenses,08/12/2023,4211730-TC-210,532.00,THEATRE CREATIVE PRODUCTIONS.
Regeneration Economy and Growth,Culture Sport and Tourism,Supplies and Services,384700,Miscellaneous Expenses,08/12/2023,4211756-NEI-EXP-12-2023-002,620.00,WEAR VALLEY AMATEUR SWIMMING CLUB (ASC).
Regeneration Economy and Growth,Culture Sport and Tourism,Supplies and Services,384302,Miscellaneous Expenses,11/12/2023,4212077-ACRERIGG-NOV23,"1,500.00",REDACTED - PAYMENT TO INDIVIDUAL
Neighbourhoods and Climate Change,Environmental Services,Supplies and Services,338066,Services,11/12/2023,4212087-4100859268,500.00,REDACTED - PAYMENT TO INDIVIDUAL
Dedicated Schools Grant BG0015,DSG Early Years Block,Transfer Payments,510030,School Children,11/12/2023,4212119-39047,"2,252.25",REDACTED - PAYMENT TO INDIVIDUAL
Dedicated Schools Grant BG0015,DSG Early Years Block,Transfer Payments,510030,School Children,11/12/2023,4212188-39001,569.25,REDACTED - PAYMENT TO INDIVIDUAL
Children and Young Peoples Services,Head of Early Help Inclusion & Vulnerable Children.,Supplies and Services,338027,Services,11/12/2023,4212290-00075,870.00,REDACTED - PAYMENT TO INDIVIDUAL
Neighbourhoods and Climate Change,Environmental Services,Supplies and Services,338066,Services,11/12/2023,4212365-085,699.90,REDACTED - PAYMENT TO INDIVIDUAL
Regeneration Economy and Growth,Culture Sport and Tourism,Supplies and Services,384302,Miscellaneous Expenses,11/12/2023,4212369-DCCCIS-01,800.00,REDACTED - PAYMENT TO INDIVIDUAL
Regeneration Economy and Growth,Culture Sport and Tourism,Supplies and Services,384302,Miscellaneous Expenses,11/12/2023,4211986-4100865945,"1,300.00",REDACTED - PAYMENT TO INDIVIDUAL
Dedicated Schools Grant BG0015,DSG Early Years Block,Transfer Payments,510030,School Children,11/12/2023,4212046-39024,517.90,REDACTED - PAYMENT TO INDIVIDUAL
Dedicated Schools Grant BG0015,DSG Early Years Block,Transfer Payments,510030,School Children,11/12/2023,4211772-38987,563.07,REDACTED - PAYMENT TO INDIVIDUAL
Children and Young Peoples Services,Head of Education and Skills,Transport,230006,Contract Hire,11/12/2023,4211794-90,"3,115.50",REDACTED - PAYMENT TO INDIVIDUAL
Children and Young Peoples Services,Head of Education and Skills,Transport,230008,Contract Hire,11/12/2023,4211794-91,"3,220.50",REDACTED - PAYMENT TO INDIVIDUAL
Children and Young Peoples Services,Head of Education and Skills,Transport,230008,Contract Hire,11/12/2023,4211797-E105NOVEMBER,"3,021.00",REDACTED - PAYMENT TO INDIVIDUAL
Children and Young Peoples Services,Head of Education and Skills,Transport,230008,Contract Hire,11/12/2023,4211797-W092NOVEMBER,"3,344.00",REDACTED - PAYMENT TO INDIVIDUAL
Children and Young Peoples Services,Head of Education and Skills,Transport,230009,Contract Hire,11/12/2023,4211798-12/NOV23,"1,733.65",REDACTED - PAYMENT TO INDIVIDUAL
Adult and Health Services,Head of Adults,Transport,230005,Contract Hire,11/12/2023,4211798-2/NOV23,850.00,REDACTED - PAYMENT TO INDIVIDUAL
Children and Young Peoples Services,Head of Education and Skills,Transport,230008,Contract Hire,11/12/2023,4211799-0156,"1,724.82",REDACTED - PAYMENT TO INDIVIDUAL
Regeneration Economy and Growth,Culture Sport and Tourism,Supplies and Services,304259,Equipment and Materials,11/12/2023,4211800-3080142652,620.93,REDACTED - PAYMENT TO INDIVIDUAL
Dedicated Schools Grant BG0015,DSG Early Years Block,Transfer Payments,510030,School Children,11/12/2023,4211801-38898,"1,744.88",REDACTED - PAYMENT TO INDIVIDUAL
Dedicated Schools Grant BG0015,DSG Early Years Block,Transfer Payments,510030,School Children,11/12/2023,4211802-38990,"2,277.00",REDACTED - PAYMENT TO INDIVIDUAL
Dedicated Schools Grant BG0015,DSG Early Years Block,Transfer Payments,510032,School Children,11/12/2023,4211803-38783,"1,323.51",REDACTED - PAYMENT TO INDIVIDUAL
Dedicated Schools Grant BG0015,DSG Early Years Block,Transfer Payments,510030,School Children,11/12/2023,4211805-38991,"1,423.13",REDACTED - PAYMENT TO INDIVIDUAL
Dedicated Schools Grant BG0015,DSG Early Years Block,Transfer Payments,510032,School Children,11/12/2023,4211808-38784,"1,764.68",REDACTED - PAYMENT TO INDIVIDUAL
Dedicated Schools Grant BG0015,DSG Early Years Block,Transfer Payments,510030,School Children,11/12/2023,4211888-39007,872.44,REDACTED - PAYMENT TO INDIVIDUAL
Adult and Health Services,Head of Adults,Transport,230005,Contract Hire,11/12/2023,4211889-EAS199/NOV23,"1,199.00",REDACTED - PAYMENT TO INDIVIDUAL
Children and Young Peoples Services,Head of Education and Skills,Transport,230034,Contract Hire,11/12/2023,4211891-5289/25,"3,265.87",REDACTED - PAYMENT TO INDIVIDUAL
Adult and Health Services,Head of Adults,Transport,230005,Contract Hire,11/12/2023,4211891-EAS197/15,660.00,REDACTED - PAYMENT TO INDIVIDUAL
Children and Young Peoples Services,Head of Education and Skills,Transport,230006,Contract Hire,11/12/2023,4211891-F326/3,"1,196.00",REDACTED - PAYMENT TO INDIVIDUAL
Regeneration Economy and Growth,Culture Sport and Tourism,Supplies and Services,338047,Services,11/12/2023,4211892-DCC-5,"4,475.00",REDACTED - PAYMENT TO INDIVIDUAL
Dedicated Schools Grant BG0015,DSG Early Years Block,Transfer Payments,510030,School Children,11/12/2023,4211897-39008,"1,939.78",REDACTED - PAYMENT TO INDIVIDUAL
Dedicated Schools Grant BG0015,DSG Early Years Block,Transfer Payments,510030,School Children,11/12/2023,4211898-38910,587.81,REDACTED - PAYMENT TO INDIVIDUAL
Dedicated Schools Grant BG0015,DSG Early Years Block,Transfer Payments,510030,School Children,11/12/2023,4211899-38911,"5,692.50",REDACTED - PAYMENT TO INDIVIDUAL
Children and Young Peoples Services,Head of Education and Skills,Transport,230008,Contract Hire,11/12/2023,4211935-C6,"2,442.00",REDACTED - PAYMENT TO INDIVIDUAL
Children and Young Peoples Services,Head of Education and Skills,Transport,230008,Contract Hire,11/12/2023,4211935-S037-1123,"2,812.14",REDACTED - PAYMENT TO INDIVIDUAL
Children and Young Peoples Services,Head of Education and Skills,Transport,230008,Contract Hire,11/12/2023,4211936-3-23,"2,376.00",REDACTED - PAYMENT TO INDIVIDUAL
Children and Young Peoples Services,Head of Education and Skills,Transport,230008,Contract Hire,11/12/2023,4211938-0105,"3,338.49",REDACTED - PAYMENT TO INDIVIDUAL
Children and Young Peoples Services,Head of Education and Skills,Transport,230034,Contract Hire,11/12/2023,4211946-DTS2000/11/23,"2,387.82",REDACTED - PAYMENT TO INDIVIDUAL
Children and Young Peoples Services,Head of Education and Skills,Transport,230009,Contract Hire,11/12/2023,4211946-DTS6005/11/23,"2,210.58",REDACTED - PAYMENT TO INDIVIDUAL
Dedicated Schools Grant BG0015,DSG Early Years Block,Transfer Payments,510030,School Children,11/12/2023,4211954-39016,581.63,REDACTED - PAYMENT TO INDIVIDUAL
Dedicated Schools Grant BG0015,DSG Early Years Block,Transfer Payments,510030,School Children,11/12/2023,4212015-39022,"1,188.00",REDACTED - PAYMENT TO INDIVIDUAL
Children and Young Peoples Services,Head of Education and Skills,Transport,230006,Contract Hire,11/12/2023,4212025-202310,"2,454.44",REDACTED - PAYMENT TO INDIVIDUAL
Dedicated Schools Grant BG0015,DSG Early Years Block,Transfer Payments,510030,School Children,11/12/2023,4212032-39052,"3,526.88",REDACTED - PAYMENT TO INDIVIDUAL
Children and Young Peoples Services,Head of Education and Skills,Transport,230007,Contract Hire,11/12/2023,4212037-14-23,"1,269.96",REDACTED - PAYMENT TO INDIVIDUAL
Dedicated Schools Grant BG0015,DSG Early Years Block,Transfer Payments,510030,School Children,11/12/2023,4212040-39023,"2,035.69",REDACTED - PAYMENT TO INDIVIDUAL
Dedicated Schools Grant BG0015,DSG Early Years Block,Transfer Payments,510032,School Children,11/12/2023,4212045-38806,882.34,REDACTED - PAYMENT TO INDIVIDUAL
Dedicated Schools Grant BG0015,DSG Early Years Block,Transfer Payments,510030,School Children,11/12/2023,4212047-39025,"1,500.47",REDACTED - PAYMENT TO INDIVIDUAL
Adult and Health Services,Head of Adults,Transport,230005,Contract Hire,11/12/2023,4212058-30NOV2023,"1,039.76",REDACTED - PAYMENT TO INDIVIDUAL
Children and Young Peoples Services,Head of Education and Skills,Transport,230006,Contract Hire,11/12/2023,4212058-30NOV23/F896,"2,215.98",REDACTED - PAYMENT TO INDIVIDUAL
Children and Young Peoples Services,Head of Education and Skills,Transport,230007,Contract Hire,11/12/2023,4212058-4409/NOV23,"1,355.58",REDACTED - PAYMENT TO INDIVIDUAL
Dedicated Schools Grant BG0015,DSG Early Years Block,Transfer Payments,510030,School Children,11/12/2023,4212068-39030,909.57,REDACTED - PAYMENT TO INDIVIDUAL
Children and Young Peoples Services,Head of Education and Skills,Transport,230006,Contract Hire,11/12/2023,4212070-PA03,"2,750.00",REDACTED - PAYMENT TO INDIVIDUAL
Dedicated Schools Grant BG0015,DSG Early Years Block,Transfer Payments,510030,School Children,11/12/2023,4212073-39034,"1,163.25",REDACTED - PAYMENT TO INDIVIDUAL
Dedicated Schools Grant BG0015,DSG Early Years Block,Transfer Payments,510030,School Children,11/12/2023,4212080-39035,612.57,REDACTED - PAYMENT TO INDIVIDUAL
Dedicated Schools Grant BG0015,DSG Early Years Block,Transfer Payments,510032,School Children,11/12/2023,4212083-38797,"1,323.51",REDACTED - PAYMENT TO INDIVIDUAL
Dedicated Schools Grant BG0015,DSG Early Years Block,Transfer Payments,510030,School Children,11/12/2023,4212083-39013,"13,519.69",REDACTED - PAYMENT TO INDIVIDUAL
Dedicated Schools Grant BG0015,DSG Early Years Block,Transfer Payments,510032,School Children,11/12/2023,4212084-38811,882.34,REDACTED - PAYMENT TO INDIVIDUAL
Adult and Health Services,Head of Adults,Transport,230005,Contract Hire,11/12/2023,4212088-01112023,"1,839.18",REDACTED - PAYMENT TO INDIVIDUAL
Dedicated Schools Grant BG0015,DSG Early Years Block,Transfer Payments,510032,School Children,11/12/2023,4212095-38813,882.34,REDACTED - PAYMENT TO INDIVIDUAL
Dedicated Schools Grant BG0015,DSG Early Years Block,Transfer Payments,510030,School Children,11/12/2023,4212095-39037,"1,949.07",REDACTED - PAYMENT TO INDIVIDUAL
Dedicated Schools Grant BG0015,DSG Early Years Block,Transfer Payments,510032,School Children,11/12/2023,4212096-38814,882.34,REDACTED - PAYMENT TO INDIVIDUAL
Dedicated Schools Grant BG0015,DSG Early Years Block,Transfer Payments,510032,School Children,11/12/2023,4212099-38750,882.34,REDACTED - PAYMENT TO INDIVIDUAL
Dedicated Schools Grant BG0015,DSG Early Years Block,Transfer Payments,510030,School Children,11/12/2023,4212099-38928,"1,138.50",REDACTED - PAYMENT TO INDIVIDUAL
Dedicated Schools Grant BG0015,DSG Early Years Block,Transfer Payments,510030,School Children,11/12/2023,4212102-39041,"1,793.35",REDACTED - PAYMENT TO INDIVIDUAL
Children and Young Peoples Services,Head of Education and Skills,Transport,230034,Contract Hire,11/12/2023,4212103-4522,"1,927.38",REDACTED - PAYMENT TO INDIVIDUAL
Children and Young Peoples Services,Head of Education and Skills,Transport,230008,Contract Hire,11/12/2023,4212103-HX002,"2,641.00",REDACTED - PAYMENT TO INDIVIDUAL
Children and Young Peoples Services,Head of Education and Skills,Transport,230007,Contract Hire,11/12/2023,4212103-LP003,"1,862.00",REDACTED - PAYMENT TO INDIVIDUAL
Children and Young Peoples Services,Head of Education and Skills,Transport,230008,Contract Hire,11/12/2023,4212103-SC002,"3,401.00",REDACTED - PAYMENT TO INDIVIDUAL
Children and Young Peoples Services,Head of Education and Skills,Transport,230007,Contract Hire,11/12/2023,4212104-011123,"1,284.78",REDACTED - PAYMENT TO INDIVIDUAL
Children and Young Peoples Services,Head of Education and Skills,Transport,230006,Contract Hire,11/12/2023,4212104-021123,"1,306.36",REDACTED - PAYMENT TO INDIVIDUAL
Dedicated Schools Grant BG0015,DSG Early Years Block,Transfer Payments,510032,School Children,11/12/2023,4212106-38752,"4,411.69",REDACTED - PAYMENT TO INDIVIDUAL
Dedicated Schools Grant BG0015,DSG Early Years Block,Transfer Payments,510030,School Children,11/12/2023,4212106-38930,"40,402.31",REDACTED - PAYMENT TO INDIVIDUAL
Dedicated Schools Grant BG0015,DSG Early Years Block,Transfer Payments,510032,School Children,11/12/2023,4212112-38754,882.34,REDACTED - PAYMENT TO INDIVIDUAL
Dedicated Schools Grant BG0015,DSG Early Years Block,Transfer Payments,510030,School Children,11/12/2023,4212112-38932,"2,326.50",REDACTED - PAYMENT TO INDIVIDUAL
Dedicated Schools Grant BG0015,DSG Early Years Block,Transfer Payments,510030,School Children,11/12/2023,4212113-39051,569.25,REDACTED - PAYMENT TO INDIVIDUAL
Children and Young Peoples Services,Head of Education and Skills,Transport,230008,Contract Hire,11/12/2023,4212114-004-23,"1,390.40",REDACTED - PAYMENT TO INDIVIDUAL
Dedicated Schools Grant BG0015,DSG Early Years Block,Transfer Payments,510030,School Children,11/12/2023,4212121-38933,"2,252.25",REDACTED - PAYMENT TO INDIVIDUAL
Dedicated Schools Grant BG0015,DSG Early Years Block,Transfer Payments,510030,School Children,11/12/2023,4212133-38934,563.06,REDACTED - PAYMENT TO INDIVIDUAL
Dedicated Schools Grant BG0015,DSG Early Years Block,Transfer Payments,510030,School Children,11/12/2023,4212139-39054,"3,164.91",REDACTED - PAYMENT TO INDIVIDUAL
Dedicated Schools Grant BG0015,DSG Early Years Block,Transfer Payments,510032,School Children,11/12/2023,4212141-38757,882.34,REDACTED - PAYMENT TO INDIVIDUAL
Dedicated Schools Grant BG0015,DSG Early Years Block,Transfer Payments,510030,School Children,11/12/2023,4212141-38937,969.38,REDACTED - PAYMENT TO INDIVIDUAL
Children and Young Peoples Services,Head of Education and Skills,Transport,230006,Contract Hire,11/12/2023,4212146-24-23,"2,201.04",REDACTED - PAYMENT TO INDIVIDUAL
Dedicated Schools Grant BG0015,DSG Early Years Block,Transfer Payments,510030,School Children,11/12/2023,4212147-39055,575.44,REDACTED - PAYMENT TO INDIVIDUAL
Children and Young Peoples Services,Head of Education and Skills,Transport,230034,Contract Hire,11/12/2023,4212150-301123,"2,850.00",REDACTED - PAYMENT TO INDIVIDUAL
Children and Young Peoples Services,Head of Education and Skills,Transport,230008,Contract Hire,11/12/2023,4212151-03-23,"2,674.25",REDACTED - PAYMENT TO INDIVIDUAL
Children and Young Peoples Services,Head of Education and Skills,Transport,230008,Contract Hire,11/12/2023,4212153-0148,"2,660.00",REDACTED - PAYMENT TO INDIVIDUAL
Children and Young Peoples Services,Head of Education and Skills,Transport,230008,Contract Hire,11/12/2023,4212153-0149,"2,970.27",REDACTED - PAYMENT TO INDIVIDUAL
Dedicated Schools Grant BG0015,DSG Early Years Block,Transfer Payments,510030,School Children,11/12/2023,4212155-38939,"3,452.63",REDACTED - PAYMENT TO INDIVIDUAL
Dedicated Schools Grant BG0015,DSG Early Years Block,Transfer Payments,510030,School Children,11/12/2023,4212159-39056,563.07,REDACTED - PAYMENT TO INDIVIDUAL
Children and Young Peoples Services,Head of Education and Skills,Transport,230010,Contract Hire,11/12/2023,4212162-INV295,"5,489.06",REDACTED - PAYMENT TO INDIVIDUAL
Children and Young Peoples Services,Head of Education and Skills,Transport,230035,Contract Hire,11/12/2023,4212162-INV296,"2,394.00",REDACTED - PAYMENT TO INDIVIDUAL
Dedicated Schools Grant BG0015,DSG Early Years Block,Transfer Payments,510030,School Children,11/12/2023,4212168-39005,"2,539.77",REDACTED - PAYMENT TO INDIVIDUAL
Adult and Health Services,Head of Adults,Transport,230005,Contract Hire,11/12/2023,4212170-KDC-020112023,"4,200.00",REDACTED - PAYMENT TO INDIVIDUAL
Children and Young Peoples Services,Head of Education and Skills,Transport,230009,Contract Hire,11/12/2023,4212172-FRAM1/11-23,"1,494.36",REDACTED - PAYMENT TO INDIVIDUAL
Children and Young Peoples Services,Head of Education and Skills,Transport,230006,Contract Hire,11/12/2023,4212172-OAK1-11/23,"2,637.20",REDACTED - PAYMENT TO INDIVIDUAL
Children and Young Peoples Services,Head of Education and Skills,Transport,230008,Contract Hire,11/12/2023,4212172-THPK1/11/23,"2,982.05",REDACTED - PAYMENT TO INDIVIDUAL
Children and Young Peoples Services,Head of Education and Skills,Transport,230008,Contract Hire,11/12/2023,4212174-W014-112023,"3,366.80",REDACTED - PAYMENT TO INDIVIDUAL
Children and Young Peoples Services,Head of Education and Skills,Transport,230007,Contract Hire,11/12/2023,4212175-STLEAONARDS/NOV302023,"1,197.00",REDACTED - PAYMENT TO INDIVIDUAL
Children and Young Peoples Services,Head of Education and Skills,Transport,230008,Contract Hire,11/12/2023,4212176-36-W083,"3,800.00",REDACTED - PAYMENT TO INDIVIDUAL
Children and Young Peoples Services,Head of Education and Skills,Transport,230008,Contract Hire,11/12/2023,4212177-A022-NOV23,"3,916.00",REDACTED - PAYMENT TO INDIVIDUAL
Children and Young Peoples Services,Head of Education and Skills,Transport,230008,Contract Hire,11/12/2023,4212177-A072-NOV23,"3,222.00",REDACTED - PAYMENT TO INDIVIDUAL
Children and Young Peoples Services,Head of Education and Skills,Transport,230008,Contract Hire,11/12/2023,4212177-E080-NOV23,"3,393.97",REDACTED - PAYMENT TO INDIVIDUAL
Children and Young Peoples Services,Head of Education and Skills,Transport,230006,Contract Hire,11/12/2023,4212178-F803P3,971.20,REDACTED - PAYMENT TO INDIVIDUAL
Neighbourhoods and Climate Change,Environmental Services,Supplies and Services,384199,Miscellaneous Expenses,11/12/2023,4212179-BINCHESTERJUL/AUG23,"1,300.00",REDACTED - PAYMENT TO INDIVIDUAL
Children and Young Peoples Services,Head of Education and Skills,Transport,230010,Contract Hire,11/12/2023,4212180-BO41NOV,"3,888.76",REDACTED - PAYMENT TO INDIVIDUAL
Children and Young Peoples Services,Head of Education and Skills,Transport,230034,Contract Hire,11/12/2023,4212181-1003NOV23,"1,891.52",REDACTED - PAYMENT TO INDIVIDUAL
Children and Young Peoples Services,Head of Education and Skills,Transport,230034,Contract Hire,11/12/2023,4212181-4512/NOV23,"2,261.00",REDACTED - PAYMENT TO INDIVIDUAL
Children and Young Peoples Services,Head of Education and Skills,Transport,230007,Contract Hire,11/12/2023,4212181-7380/NOV23,"2,420.22",REDACTED - PAYMENT TO INDIVIDUAL
Children and Young Peoples Services,Head of Education and Skills,Transport,230010,Contract Hire,11/12/2023,4212181-BL004,"2,902.25",REDACTED - PAYMENT TO INDIVIDUAL
Children and Young Peoples Services,Head of Education and Skills,Transport,230006,Contract Hire,11/12/2023,4212181-F343/NOV23,"2,502.00",REDACTED - PAYMENT TO INDIVIDUAL
Children and Young Peoples Services,Head of Education and Skills,Transport,230008,Contract Hire,11/12/2023,4212182-562,"3,040.00",REDACTED - PAYMENT TO INDIVIDUAL
Children and Young Peoples Services,Head of Education and Skills,Transport,230008,Contract Hire,11/12/2023,4212182-563,"2,700.00",REDACTED - PAYMENT TO INDIVIDUAL
Children and Young Peoples Services,Head of Education and Skills,Transport,230008,Contract Hire,11/12/2023,4212182-564,"1,980.00",REDACTED - PAYMENT TO INDIVIDUAL
Children and Young Peoples Services,Head of Education and Skills,Transport,230008,Contract Hire,11/12/2023,4212182-565,"2,717.91",REDACTED - PAYMENT TO INDIVIDUAL
Children and Young Peoples Services,Head of Education and Skills,Transport,230008,Contract Hire,11/12/2023,4212182-566,"2,416.50",REDACTED - PAYMENT TO INDIVIDUAL
Children and Young Peoples Services,Head of Education and Skills,Transport,230008,Contract Hire,11/12/2023,4212182-567,"2,375.00",REDACTED - PAYMENT TO INDIVIDUAL
Children and Young Peoples Services,Head of Education and Skills,Transport,230006,Contract Hire,11/12/2023,4212182-568,"4,750.00",REDACTED - PAYMENT TO INDIVIDUAL
Children and Young Peoples Services,Head of Education and Skills,Transport,230008,Contract Hire,11/12/2023,4212182-569,"2,664.00",REDACTED - PAYMENT TO INDIVIDUAL
Children and Young Peoples Services,Head of Education and Skills,Transport,230008,Contract Hire,11/12/2023,4212182-570,"2,255.85",REDACTED - PAYMENT TO INDIVIDUAL
Children and Young Peoples Services,Head of Education and Skills,Transport,230006,Contract Hire,11/12/2023,4212183-PYNOV0123,"4,272.69",REDACTED - PAYMENT TO INDIVIDUAL
Children and Young Peoples Services,Head of Education and Skills,Transport,230034,Contract Hire,11/12/2023,4212183-PYNOV0223,"1,440.00",REDACTED - PAYMENT TO INDIVIDUAL
Children and Young Peoples Services,Head of Education and Skills,Transport,230034,Contract Hire,11/12/2023,4212184-4501NOV23,"3,418.86",REDACTED - PAYMENT TO INDIVIDUAL
Children and Young Peoples Services,Head of Education and Skills,Transport,230006,Contract Hire,11/12/2023,4212184-F341NOV23,"1,850.00",REDACTED - PAYMENT TO INDIVIDUAL
Regeneration Economy and Growth,Corporate Property and Land,Third Party Payments,430100,Rendered by Private Contractors,11/12/2023,4212186-DCC310,"1,600.00",REDACTED - PAYMENT TO INDIVIDUAL
Regeneration Economy and Growth,Corporate Property and Land,Third Party Payments,430100,Rendered by Private Contractors,11/12/2023,4212186-DCC311,"1,600.00",REDACTED - PAYMENT TO INDIVIDUAL
Regeneration Economy and Growth,Corporate Property and Land,Third Party Payments,430100,Rendered by Private Contractors,11/12/2023,4212186-DDC312,"1,600.00",REDACTED - PAYMENT TO INDIVIDUAL
Dedicated Schools Grant BG0015,DSG Early Years Block,Transfer Payments,510030,School Children,11/12/2023,4212187-38998,594.00,REDACTED - PAYMENT TO INDIVIDUAL
Dedicated Schools Grant BG0015,DSG Early Years Block,Transfer Payments,510030,School Children,11/12/2023,4212189-39014,569.25,REDACTED - PAYMENT TO INDIVIDUAL
Dedicated Schools Grant BG0015,DSG Early Years Block,Transfer Payments,510030,School Children,11/12/2023,4212191-39026,612.57,REDACTED - PAYMENT TO INDIVIDUAL
Dedicated Schools Grant BG0015,DSG Early Years Block,Transfer Payments,510030,School Children,11/12/2023,4212192-39036,575.44,REDACTED - PAYMENT TO INDIVIDUAL
Dedicated Schools Grant BG0015,DSG Early Years Block,Transfer Payments,510030,School Children,11/12/2023,4212195-38954,550.69,REDACTED - PAYMENT TO INDIVIDUAL
Dedicated Schools Grant BG0015,DSG Early Years Block,Transfer Payments,510032,School Children,11/12/2023,4212199-38829,"2,205.85",REDACTED - PAYMENT TO INDIVIDUAL
Dedicated Schools Grant BG0015,DSG Early Years Block,Transfer Payments,510030,School Children,11/12/2023,4212199-39060,"4,653.00",REDACTED - PAYMENT TO INDIVIDUAL
Children and Young Peoples Services,Head of Education and Skills,Transport,230007,Contract Hire,11/12/2023,4212249-5122,"3,347.04",REDACTED - PAYMENT TO INDIVIDUAL
Children and Young Peoples Services,Head of Education and Skills,Transport,230009,Contract Hire,11/12/2023,4212250-7009/NOV23,"1,805.00",REDACTED - PAYMENT TO INDIVIDUAL
Children and Young Peoples Services,Head of Education and Skills,Transport,230008,Contract Hire,11/12/2023,4212250-M014/NOV23,"3,019.29",REDACTED - PAYMENT TO INDIVIDUAL
Children and Young Peoples Services,Head of Education and Skills,Transport,230008,Contract Hire,11/12/2023,4212250-M027/NOV23,"4,068.28",REDACTED - PAYMENT TO INDIVIDUAL
Children and Young Peoples Services,Head of Education and Skills,Transport,230008,Contract Hire,11/12/2023,4212250-N041/NOV23,"2,664.00",REDACTED - PAYMENT TO INDIVIDUAL
Children and Young Peoples Services,Head of Education and Skills,Transport,230008,Contract Hire,11/12/2023,4212250-NO20/NOV23,"5,415.00",REDACTED - PAYMENT TO INDIVIDUAL
Children and Young Peoples Services,Head of Education and Skills,Transport,230007,Contract Hire,11/12/2023,4212255-PETERNAYLOR/1154/NOV23,"1,130.50",REDACTED - PAYMENT TO INDIVIDUAL
Children and Young Peoples Services,Head of Education and Skills,Transport,230010,Contract Hire,11/12/2023,4212255-PETERNAYLOR/BO55/NOV/23,"3,993.99",REDACTED - PAYMENT TO INDIVIDUAL
Children and Young Peoples Services,Head of Education and Skills,Transport,230007,Contract Hire,11/12/2023,4212255-PETERNAYLOR/I002/NOV/23,"1,216.00",REDACTED - PAYMENT TO INDIVIDUAL
Children and Young Peoples Services,Head of Education and Skills,Transport,230008,Contract Hire,11/12/2023,4212255-PETERNAYLOR/N032/NOV/2023,"1,935.00",REDACTED - PAYMENT TO INDIVIDUAL
Dedicated Schools Grant BG0015,DSG Early Years Block,Transfer Payments,510032,School Children,11/12/2023,4212282-38833,882.34,REDACTED - PAYMENT TO INDIVIDUAL
Dedicated Schools Grant BG0015,DSG Early Years Block,Transfer Payments,510030,School Children,11/12/2023,4212282-39067,"2,673.00",REDACTED - PAYMENT TO INDIVIDUAL
Children and Young Peoples Services,Head of Education and Skills,Transport,230008,Contract Hire,11/12/2023,4212289-110,"2,511.00",REDACTED - PAYMENT TO INDIVIDUAL
Children and Young Peoples Services,Head of Education and Skills,Transport,230006,Contract Hire,11/12/2023,4212289-111,"1,908.00",REDACTED - PAYMENT TO INDIVIDUAL
Children and Young Peoples Services,Head of Education and Skills,Transport,230035,Contract Hire,11/12/2023,4212289-112,"2,465.63",REDACTED - PAYMENT TO INDIVIDUAL
Children and Young Peoples Services,Head of Education and Skills,Transport,230004,Contract Hire,11/12/2023,4212289-113,"1,908.00",REDACTED - PAYMENT TO INDIVIDUAL
Dedicated Schools Grant BG0015,DSG Early Years Block,Transfer Payments,510030,School Children,11/12/2023,4212311-39071,"2,252.25",REDACTED - PAYMENT TO INDIVIDUAL
Dedicated Schools Grant BG0015,DSG Early Years Block,Transfer Payments,510032,School Children,11/12/2023,4212313-38837,882.34,REDACTED - PAYMENT TO INDIVIDUAL
Children and Young Peoples Services,Head of Education and Skills,Transport,230006,Contract Hire,11/12/2023,4212323-NOVEMBER000003,"2,219.10",REDACTED - PAYMENT TO INDIVIDUAL
Dedicated Schools Grant BG0015,DSG Early Years Block,Transfer Payments,510032,School Children,11/12/2023,4212324-38768,"2,647.01",REDACTED - PAYMENT TO INDIVIDUAL
Dedicated Schools Grant BG0015,DSG Early Years Block,Transfer Payments,510030,School Children,11/12/2023,4212324-38957,"2,970.00",REDACTED - PAYMENT TO INDIVIDUAL
Children and Young Peoples Services,Head of Education and Skills,Transport,230006,Contract Hire,11/12/2023,4212338-000035/NOV23,"2,052.00",REDACTED - PAYMENT TO INDIVIDUAL
Dedicated Schools Grant BG0015,DSG Early Years Block,Transfer Payments,510030,School Children,11/12/2023,4212345-38959,581.63,REDACTED - PAYMENT TO INDIVIDUAL
Children and Young Peoples Services,Head of Education and Skills,Transport,230007,Contract Hire,11/12/2023,4212363-5290/NOV23,"1,422.15",REDACTED - PAYMENT TO INDIVIDUAL
Children and Young Peoples Services,Head of Education and Skills,Transport,230008,Contract Hire,11/12/2023,4212366-01760,"2,280.00",REDACTED - PAYMENT TO INDIVIDUAL
Dedicated Schools Grant BG0015,DSG Early Years Block,Transfer Payments,510030,School Children,11/12/2023,4212380-38973,581.63,REDACTED - PAYMENT TO INDIVIDUAL
Children and Young Peoples Services,Head of Education and Skills,Transport,230006,Contract Hire,11/12/2023,4212407-NOV23/F106,"2,477.23",REDACTED - PAYMENT TO INDIVIDUAL
Adult and Health Services,Head of Adults,Transport,230005,Contract Hire,11/12/2023,4212407-NOV23DATEISSUED-30/11/2023,"1,175.34",REDACTED - PAYMENT TO INDIVIDUAL
Dedicated Schools Grant BG0015,DSG High Needs Block,Transport,230011,Contract Hire,11/12/2023,4212414-NOV9003,"1,511.73",REDACTED - PAYMENT TO INDIVIDUAL
Dedicated Schools Grant BG0015,DSG Early Years Block,Transfer Payments,510030,School Children,11/12/2023,4212420-39091,872.44,REDACTED - PAYMENT TO INDIVIDUAL
Dedicated Schools Grant BG0015,DSG Early Years Block,Transfer Payments,510032,School Children,11/12/2023,4212439-38776,"1,764.68",REDACTED - PAYMENT TO INDIVIDUAL
Dedicated Schools Grant BG0015,DSG Early Years Block,Transfer Payments,510030,School Children,11/12/2023,4212439-38979,"1,163.25",REDACTED - PAYMENT TO INDIVIDUAL
Children and Young Peoples Services,Head of Education and Skills,Transport,230007,Contract Hire,11/12/2023,4211764-112301,"2,380.00",24/7 TAXI SERVICES (PETERLEE) LTD.
Children and Young Peoples Services,Head of Education and Skills,Transport,230034,Contract Hire,11/12/2023,4211764-112302,"3,133.80",24/7 TAXI SERVICES (PETERLEE) LTD.
Children and Young Peoples Services,Head of Education and Skills,Transport,230034,Contract Hire,11/12/2023,4211764-112303,"1,904.00",24/7 TAXI SERVICES (PETERLEE) LTD.
Children and Young Peoples Services,Head of Education and Skills,Transport,230034,Contract Hire,11/12/2023,4211764-112305,"2,850.00",24/7 TAXI SERVICES (PETERLEE) LTD.
Children and Young Peoples Services,Head of Education and Skills,Transport,230007,Contract Hire,11/12/2023,4211764-112307,"2,495.94",24/7 TAXI SERVICES (PETERLEE) LTD.
Children and Young Peoples Services,Head of Education and Skills,Transport,230008,Contract Hire,11/12/2023,4211764-112308,"2,681.47",24/7 TAXI SERVICES (PETERLEE) LTD.
Children and Young Peoples Services,Head of Education and Skills,Transport,230010,Contract Hire,11/12/2023,4211764-112310,"5,152.56",24/7 TAXI SERVICES (PETERLEE) LTD.
Adult and Health Services,Head of Adults,Transport,230005,Contract Hire,11/12/2023,4211764-112311,"1,881.00",24/7 TAXI SERVICES (PETERLEE) LTD.
Children and Young Peoples Services,Head of Education and Skills,Transport,230034,Contract Hire,11/12/2023,4211764-112313,"3,021.00",24/7 TAXI SERVICES (PETERLEE) LTD.
Children and Young Peoples Services,Head of Education and Skills,Transport,230008,Contract Hire,11/12/2023,4211764-112314,"2,579.60",24/7 TAXI SERVICES (PETERLEE) LTD.
Children and Young Peoples Services,Head of Education and Skills,Transport,230008,Contract Hire,11/12/2023,4211764-112315,"5,198.85",24/7 TAXI SERVICES (PETERLEE) LTD.
Children and Young Peoples Services,Head of Education and Skills,Transport,230008,Contract Hire,11/12/2023,4211764-112316,"3,673.46",24/7 TAXI SERVICES (PETERLEE) LTD.
Children and Young Peoples Services,Head of Education and Skills,Transport,230008,Contract Hire,11/12/2023,4211764-112317,"4,065.62",24/7 TAXI SERVICES (PETERLEE) LTD.
Children and Young Peoples Services,Head of Education and Skills,Transport,230008,Contract Hire,11/12/2023,4211764-112319,"3,563.45",24/7 TAXI SERVICES (PETERLEE) LTD.
Children and Young Peoples Services,Head of Education and Skills,Transport,230006,Contract Hire,11/12/2023,4211764-112320,"1,485.70",24/7 TAXI SERVICES (PETERLEE) LTD.
Children and Young Peoples Services,Head of Education and Skills,Transport,230006,Contract Hire,11/12/2023,4211764-112323,"2,499.36",24/7 TAXI SERVICES (PETERLEE) LTD.
Children and Young Peoples Services,Head of Education and Skills,Transport,230008,Contract Hire,11/12/2023,4211764-112324,"4,541.00",24/7 TAXI SERVICES (PETERLEE) LTD.
Children and Young Peoples Services,Head of Education and Skills,Transport,230007,Contract Hire,11/12/2023,4211764-112326,"5,494.80",24/7 TAXI SERVICES (PETERLEE) LTD.
Regeneration Economy and Growth,Business Durham,Supplies and Services,336005,Advertising E336,11/12/2023,4211765-1123539,"4,650.00",3 POINT MEDIA.
Children and Young Peoples Services,Head of Education and Skills,Transport,230008,Contract Hire,11/12/2023,4211766-NOVEMBER01/2023,"4,750.00",A & P TAXIS.
Children and Young Peoples Services,Head of Education and Skills,Transport,230006,Contract Hire,11/12/2023,4211766-NOVEMBER02/2023,"1,440.00",A & P TAXIS.
Children and Young Peoples Services,Head of Education and Skills,Transport,230035,Contract Hire,11/12/2023,4211766-NOVEMBER03/2023,"1,786.76",A & P TAXIS.
Children and Young Peoples Services,Head of Education and Skills,Transport,230007,Contract Hire,11/12/2023,4211766-NOVEMBER04/2023,"1,900.00",A & P TAXIS.
Children and Young Peoples Services,Head of Education and Skills,Transport,230007,Contract Hire,11/12/2023,4211770-2073-1123,"2,294.28",AABAT TAXIS.
Children and Young Peoples Services,Head of Education and Skills,Transport,230007,Contract Hire,11/12/2023,4211770-4521-1123,"1,689.10",AABAT TAXIS.
Children and Young Peoples Services,Head of Education and Skills,Transport,230009,Contract Hire,11/12/2023,4211770-7394-1123,"3,452.90",AABAT TAXIS.
Adult and Health Services,Head of Adults,Transport,230005,Contract Hire,11/12/2023,4211770-DW105-1123,"2,792.02",AABAT TAXIS.
Children and Young Peoples Services,Head of Education and Skills,Transport,230006,Contract Hire,11/12/2023,4211770-F777-1123,"1,785.00",AABAT TAXIS.
Children and Young Peoples Services,Head of Education and Skills,Transport,230034,Contract Hire,11/12/2023,4211770-S038-1123,"2,616.72",AABAT TAXIS.
Adult and Health Services,Head of Adults,Transport,230005,Contract Hire,11/12/2023,4211770-SED113,"2,470.00",AABAT TAXIS.
Children and Young Peoples Services,Head of Education and Skills,Transport,230008,Contract Hire,11/12/2023,4211770-W073-1123,"3,021.00",AABAT TAXIS.
Children and Young Peoples Services,Head of Education and Skills,Transport,230008,Contract Hire,11/12/2023,4211770-W089-1123,"3,384.00",AABAT TAXIS.
Children and Young Peoples Services,Head of Education and Skills,Transport,230008,Contract Hire,11/12/2023,4211770-W178,"3,094.00",AABAT TAXIS.
Neighbourhoods and Climate Change,Environmental Services,Transport,230005,Contract Hire,11/12/2023,4211775-I2337720,"1,285.80",ACL HIRE LTD.
Regeneration Economy and Growth,Corporate Property and Land,Third Party Payments,430100,Rendered by Private Contractors,11/12/2023,4211776-53817227,"3,521.12",ADT FIRE & SECURITY PLC.
Dedicated Schools Grant BG0015,DSG Early Years Block,Transfer Payments,510030,School Children,11/12/2023,4211777-38982,"3,526.88",ADVANCE LEARNING PARTNERSHIP.
Dedicated Schools Grant BG0015,DSG High Needs Block,Transfer Payments,510025,School Children,11/12/2023,4211778-NOV2023TOPUP/51,650.00,ADVANCE LEARNING PARTNERSHIP.
Dedicated Schools Grant BG0015,DSG Early Years Block,Transfer Payments,510032,School Children,11/12/2023,4211779-38760,"7,058.70",ADVANCE LEARNING PARTNERSHIP.
Dedicated Schools Grant BG0015,DSG Early Years Block,Transfer Payments,510030,School Children,11/12/2023,4211779-38942,"11,403.56",ADVANCE LEARNING PARTNERSHIP.
Children and Young Peoples Services,Head of Education and Skills,Transfer Payments,510026,School Children,11/12/2023,4211779-NOV2023TOPUP-2,605.00,ADVANCE LEARNING PARTNERSHIP.
Dedicated Schools Grant BG0015,DSG Early Years Block,Transfer Payments,510032,School Children,11/12/2023,4211780-38761,"4,411.69",ADVANCE LEARNING PARTNERSHIP.
Dedicated Schools Grant BG0015,DSG Early Years Block,Transfer Payments,510030,School Children,11/12/2023,4211780-38943,"11,168.44",ADVANCE LEARNING PARTNERSHIP.
Dedicated Schools Grant BG0015,DSG High Needs Block,Transfer Payments,510025,School Children,11/12/2023,4211781-NOV2023TOPUP-1,650.00,ADVANCE LEARNING PARTNERSHIP.
Dedicated Schools Grant BG0015,DSG Early Years Block,Transfer Payments,510030,School Children,11/12/2023,4211782-39059,"5,401.69",ADVANCE LEARNING PARTNERSHIP.
Dedicated Schools Grant BG0015,DSG Early Years Block,Transfer Payments,510032,School Children,11/12/2023,4211784-38781,882.34,ADVENTURE VALLEY DAY NURSERY LTD.
Dedicated Schools Grant BG0015,DSG Early Years Block,Transfer Payments,510030,School Children,11/12/2023,4211784-38988,"20,066.07",ADVENTURE VALLEY DAY NURSERY LTD.
Children and Young Peoples Services,Head of Education and Skills,Transfer Payments,510027,School Children,11/12/2023,4211784-NOV2023TOPUP-2,"1,478.00",ADVENTURE VALLEY DAY NURSERY LTD.
Neighbourhoods and Climate Change,Highways,Fees,901003,Capital - Contract Supervision,11/12/2023,4211786-28543704,"6,170.40",AECOM LTD.
Children and Young Peoples Services,Head of Education and Skills,Transport,230008,Contract Hire,11/12/2023,4211788-025NOVEMBER2023,"2,229.08",AIRPORT TRANSFER DURHAM.
Regeneration Economy and Growth,Corporate Property and Land,Third Party Payments,430100,Rendered by Private Contractors,11/12/2023,4211810-INV-0282,"3,826.00",APEX ROOFING SPECIALISTS LTD.
Regeneration Economy and Growth,Corporate Property and Land,Third Party Payments,430100,Rendered by Private Contractors,11/12/2023,4211812-3394277471,600.00,ARJO UK LTD.
Regeneration Economy and Growth,Corporate Property and Land,Third Party Payments,430100,Rendered by Private Contractors,11/12/2023,4211812-3394319191,"5,850.00",ARJO UK LTD.
Regeneration Economy and Growth,Corporate Property and Land,Third Party Payments,430100,Rendered by Private Contractors,11/12/2023,4211812-3394357057,"1,200.00",ARJO UK LTD.
Children and Young Peoples Services,Head of Education and Skills,Transport,230034,Contract Hire,11/12/2023,4211814-4002/NOV23,"2,071.00",ARMSTRONG`S TAXIS.
Children and Young Peoples Services,Head of Education and Skills,Transport,230006,Contract Hire,11/12/2023,4211814-NOV2023-1,"1,683.57",ARMSTRONG`S TAXIS.
Children and Young Peoples Services,Head of Education and Skills,Transport,230006,Contract Hire,11/12/2023,4211814-NOV2023-4,768.00,ARMSTRONG`S TAXIS.
Children and Young Peoples Services,Head of Education and Skills,Transport,230034,Contract Hire,11/12/2023,4211814-NOVEMBER2023,"2,071.00",ARMSTRONG`S TAXIS.
Children and Young Peoples Services,Head of Education and Skills,Transport,230034,Contract Hire,11/12/2023,4211818-1003,"1,792.00",AT TAXIS LTD.
Children and Young Peoples Services,Head of Education and Skills,Transport,230006,Contract Hire,11/12/2023,4211818-F300NOV23,"2,364.00",AT TAXIS LTD.
Children and Young Peoples Services,Head of Education and Skills,Transport,230006,Contract Hire,11/12/2023,4211818-F329NOV23,"3,591.00",AT TAXIS LTD.
Children and Young Peoples Services,Head of Education and Skills,Transport,230008,Contract Hire,11/12/2023,4211818-M037NOV23,"3,135.00",AT TAXIS LTD.
Children and Young Peoples Services,Head of Education and Skills,Transport,230007,Contract Hire,11/12/2023,4211818-W084NOV23,"3,553.00",AT TAXIS LTD.
Regeneration Economy and Growth,Corporate Property and Land,Third Party Payments,430100,Rendered by Private Contractors,11/12/2023,4211819-9573,"2,545.00",ATLAS WASHROOM SYSTEMS LTD.
Children and Young Peoples Services,Head of Education and Skills,Transport,230006,Contract Hire,11/12/2023,4211820-235,"1,672.00",AUCKLAND TRAVEL.
Children and Young Peoples Services,Head of Education and Skills,Transport,230008,Contract Hire,11/12/2023,4211820-236,"4,750.00",AUCKLAND TRAVEL.
Children and Young Peoples Services,Head of Education and Skills,Transport,230008,Contract Hire,11/12/2023,4211820-237,"3,785.94",AUCKLAND TRAVEL.
Children and Young Peoples Services,Head of Education and Skills,Transport,230006,Contract Hire,11/12/2023,4211820-238,"2,660.00",AUCKLAND TRAVEL.
Children and Young Peoples Services,Head of Education and Skills,Transport,230008,Contract Hire,11/12/2023,4211820-239,"4,275.00",AUCKLAND TRAVEL.
Children and Young Peoples Services,Head of Education and Skills,Transport,230008,Contract Hire,11/12/2023,4211820-240,"4,066.00",AUCKLAND TRAVEL.
Children and Young Peoples Services,Head of Education and Skills,Transport,230008,Contract Hire,11/12/2023,4211820-243,"3,135.00",AUCKLAND TRAVEL.
